{"text_format":"1","workbook":"xlsx","n_sheets":15,"sheets":["Front page & contents","Background","Instructions","Standards details","data dictionary","data entry","turnaround calc","PN calc","re-testing calc","Results overview","local turnaround time results","local PN results","local re-testing results","lists","days & weeks"],"not_rendered":{"charts":4,"images":3,"macros":1,"external_links":0,"defined_names":20,"comments":2,"pivot_tables":0},"unopened":[],"bounds":{"document_bytes":16777216,"sheet_cells":100000,"rows_first":2000,"rows_last":500,"rows_between":2000,"halvings":0,"cell_chars":16384,"cell_head_chars":4096},"cells_cut":0,"cells_raw":0,"read":"whole","date_system":"1900"}

{"sheet":"Front page & contents","index":0,"n_rows":27,"n_cols":3,"rows_kept":27,"cut":false,"hidden":false,"merged":[[12,1,12,11]]}
[]
[]
[]
[]
[]
[]
[]
[]
[]
[]
[]
[]
[null,"Audit tool to measure turnaround times, partner notification, and re-testing rates "]
[null,"National Chlamydia Screening Programme"]
[null,"March 2018"]
[]
[null,"Contact:","erna.buitendam@phe.gov.uk"]
[]
[null,"Contents:"]
[null,"Instructions"]
[null,"Details of the standards"]
[null,"Data dictionary"]
[null,"Data entry"]
[null,"Results overview"]
[null,"Detailed local turnaround time results"]
[null,"Detailed local partner notification results"]
[null,"Detailed local re-testing results"]

{"sheet":"Background","index":1,"n_rows":30,"n_cols":6,"rows_kept":30,"cut":false,"hidden":false,"merged":[[9,0,9,12],[11,0,11,12],[12,0,12,12],[26,0,26,12],[27,0,27,12],[24,0,24,12]]}
[]
[]
[null,null,null,null,null,"National Chlamydia Screening Programme"]
[null,null,null,null,null,"Audit tool"]
[]
[]
[]
[]
["Audit"]
["Audit results should be used to inform service improvement. Audits are an integral part of the The National Chlamydia Screening Programme's (NCSP) Quality Assurance Framework and inform various components of the Chlamydia Care Pathway. This audit tool measures performance against result notification turnaround time, treatment turnaround time, partner notification outcomes standards, and re-testing rates."]
["Chlamydia Care Pathway"]
["The Chlamydia Care Pathway (see figure 1) describes the individual steps which, taken together, represent comprehensive case management for an episode of chlamydia testing, diagnosis and treatment as recommended by the NCSP. The Chlamydia Care Pathway will allow local areas to explore and review local chlamydia activities and to create and instigate data driven action plans to improve service provision and outcomes.\n\n"]
["Fig 1: The Chlamydia Care Pathway"]
[]
[]
[]
[]
[]
[]
[]
[]
[]
[]
[]
[]
[]
["To support the application of the Chlamydia Care Pathway the NCSP team in Public Health England (PHE) have developed a Chlamydia Care Pathway Tool. This tool presents the relevant data for each component of the Chlamydia Care Pathway and will be used as the basis for discussions with local areas.  Applying the pathway will help users to identify the areas of programme delivery where implementing change may lead to improved outcomes for all."]
["Commissioners and service providers are encouraged to use the local outcomes of this audit tool to populate components 4 to 7 of the chlamydia care pathway. Together with data to populate components 1 to 3, it will show a comprehensive overview of local performance in quality of chlamydia screening along the patient's pathway."]
[]
["back to Contents"]

{"sheet":"Instructions","index":2,"n_rows":29,"n_cols":3,"rows_kept":29,"cut":false,"hidden":false,"merged":[[25,0,25,12],[9,0,9,12],[11,1,11,11],[12,1,12,11],[16,1,16,11],[13,2,13,10],[19,2,19,6],[18,2,18,6],[17,2,17,6],[20,2,20,6],[22,1,22,11],[15,2,15,12]]}
[]
[]
[]
[]
[]
[]
[]
[]
[]
["Instructions for audit tool to measure \nturnaround times, partner notification, and re-testing rates"]
[]
[null,"1) In the 'data entry' tab of this tool, please enter the name of your commissioning local authority, name of your service, and service type in the first row (cells A2, B2 and B3; this will be automatically copied to the cells below). "]
[null,"2) In the 'data entry' tab of this tool, please enter in the patient records from 50 patients tested for chlamydia, specifically:"]
[null,null,"40 consecutive patients found to be positive"]
[null,null,"and"]
[null,null,"10 consecutive patients found to be negative  (for which not all data fields required)"]
[null,"3) Look at your results as follows:"]
[null,null,"Overview of results"]
[null,null,"local detailed turnaround times results"]
[null,null,"local detailed PN results"]
[null,null,"local detailed re-testing results"]
[]
[null,"If you have any questions, please contact:"]
[null,"erna.buitendam@phe.gov.uk"]
[]
[]
[]
[]
["Back to Contents"]

{"sheet":"Standards details","index":3,"n_rows":37,"n_cols":1,"rows_kept":37,"cut":false,"hidden":false,"merged":[[22,0,22,12],[6,0,6,12],[14,0,14,12],[7,0,7,12],[10,0,10,12],[33,0,33,12],[23,0,23,12],[26,0,26,12],[25,0,25,12],[31,0,31,6],[32,0,32,6],[27,0,27,12],[29,0,29,12],[30,0,30,12],[0,0,0,12],[19,0,19,12],[20,0,20,12],[12,0,12,12],[13,0,13,12],[16,0,16,8],[17,0,17,8],[1,0,1,12],[15,0,15,8],[18,0,18,12],[2,0,2,12],[3,0,3,12],[4,0,4,12]]}
["Turnaround times"]
["Notification of Results"]
["Auditable outcome measure: All those tested notified of result within 10 working days (from date of test).*"]
["Key performance indicator: At least 95% of those tested notified of result within 10 working days."]
["* Test date assumed as date on the test form. Notification date assumed as date provider sent text / left verbal message"]
["Turnaround time for treatment"]
["Auditable outcome measure: All those testing positive offered treatment within six weeks of test date.*"]
["Key performance indicator: At least 95% of those testing positive treated within six weeks of test date."]
["* Test date is assumed to be the date on the test form"]
[]
["Partner notification"]
[]
[" At a national level, the NCSP uses the GUMCAD dataset to estimate PN rates by local area. At a local level sexual health commissioners and service providers should continue to monitor data on chlamydia treatment and PN rates. This tool offers a method to monitor PN rates."]
["Auditable Outcome Measures:\nThe NCSP follows the BASHH Standards for the management of STIs 2014 on PN for chlamydia:\n• Measure: The percentage of all contacts of index cases of chlamydia who attend a service commissioned to manage STIs within four weeks of the date of first PN discussion.\n• Standard: 0.6 contacts per index case\n* This is the first discussion between the index case and a HCW (including telephone) for the purpose of PN, with the appropriate documented competency."]
["Standard: > 0.6 contacts/index case with contact attendance reported by index or HCW within 4 weeks of PN discussion"]
["Calculation"]
["number of contacts with attendance (@ L1/2/3 clinic) documented as reported by index case or by a HCW within 4 weeks of PN discussion "]
["total number of index cases managed by service during the same interval "]
["Following BASHH guidance we include as meeting the standard, those contacts whose attendances are within 4 working weeks (20 working days) after the index PN discussion date with the index patient. "]
["The BASHH guidance on the management of STIs, including PN, can be found here:"]
["http://www.bashh.org/documents/Standards%20for%20the%20management%20of%20STIs%202014%20FINAL%20WEB.pdf"]
[]
["Re-testing"]
["At national level, the NCSP monitors re testing rates using existing data collection mechanisms, and the rates are published on a quarterly basis through the Chlamydia Testing Activity Data (CTAD) data portal, in conjunction with the routine quarterly reporting of CTAD data. "]
[]
["1: Calculating the re-testing rate"]
["Numerator: For each positive test within the period of interest, count one re-test if another test was carried out in the 7 to 14 weeks after the date of treatment. "]
["Denominator: Total number of positive tests within the period of interest (e.g a certain month, calendar quarter or year)."]
["2: Calculating positivity among re-tests"]
["Numerator: Number of positive tests at re-test."]
["Denominator: Total number of re-tests"]
[]
["3: Patients who persistently test positive for chlamydia"]
["For patients who are persistently positive for chlamydia despite adequate treatment, and where re-infection is considered unlikely, a culture service is available from the PHE Sexually Transmitted Bacteria Reference Laboratory (STBRL). For more details see: http://www.hpa.org.uk/web/HPAweb&HPAwebStandard/HPAweb_C/1195733785206 "]
[]
[]
["Back to Contents"]

{"sheet":"data dictionary","index":4,"n_rows":47,"n_cols":3,"rows_kept":47,"cut":false,"hidden":false,"merged":[[17,0,23,0],[17,2,23,2],[29,0,40,0],[29,2,40,2]]}
["Data item","Explanatory notes"]
["Name of commissioning authority","Please enter name of the main commissioning local authority. If you have more than one commissioning authority, you may wish to complete an audit tool for each one as part of potential contract requirements to undertake audits. This will only need to be completed once, not for every patient. Please use data for 40 patients found to be positive from a specific date, going back in time until 40 records have been found. In addition, please add 10 records with data to measure result notification times for patients who were found to be negative.","return to data entry"]
["Name of service provider","Please enter name of the clinic or organisation that provides the services. This will only need to be entered once, not for every patient","return to data entry"]
["Type of service provider","This is the type of service provider of which the name is given in column B (previous question). Please select from drop down list.","return to data entry"]
["index patient number","Please enter a number, between 1 and 50 inclusive. This should not be the same as any ID numbers used in your service. You may keep the 'key' locally if you wish to keep an audit trail.","return to data entry"]
["date of test","Date of test taken, format/length: an10  dd/mm/ccyy, if no date available or known, please leave blank","return to data entry"]
["gender","This can be male, female or unknown (this includes when it is not recorded)","return to data entry"]
["age","Please provide age at time of the test, not date of birth, for NCSP only age 15-24 to be included","return to data entry"]
["type of test site","This can be one of the following: GUM clinic, SRH/CASH clinic, GP, Community Pharmacy, remote (online) testing, CSO, outreach & education, Integrated sexual health service, or 'other' (incl prison/YOI, military, ToP, gynae, A&E/MIU, antenatal etc.)","return to data entry"]
["date of result notification","Date when result was notified to patient, if no date available, please leave blank. Please use the following format: dd/mm/yyyy","return to data entry"]
["test result","This can be either positive or negative, please select through drop down list","return to data entry"]
["treatment accepted?","This can be one of the following: yes, no, unknown. Selection is through drop down list","return to data entry"]
["date of treatment","Date of the day the treatment is provided to the young person, if no date available or known, please leave blank. Please use the following format: dd/mm/yyyy","return to data entry"]
["if not treatment accepted, why not?","This can be one of the following (selection is through drop down list): \nNo response after 3 or more efforts at contacting the patient\nNo response after less than 3 attempts at contacting patient\nTreatment elsewhere, confirmed\nTreatment elsewhere, unconfirmed\nYoung person did not attend scheduled appointment for treatment\nIncorrect or no contact details on test form\nTreatment refused\nOutcome not recorded\nUnknown/other","return to data entry"]
["type of treatment site","This can be one of the following: GUM clinic, SRH/CASH clinic, GP, Community Pharmacy, Postal treatment, CSO, outreach & education, Integrated sexual health service, or 'other' (incl prison/YOI, military, ToP, gynae, A&E/MIU, antenatal etc.)","return to data entry"]
["offered PN?","This can be 'Yes', 'No', 'Unknown' (which includes when this has not been recorded)","return to data entry"]
["date of PN discussion","This is the date of the first PN discussion, which is the first discussion (including a telephone discussion) for the purpose of PN between the index case and a HCW with the appropriate documented competency. If not available, please leave blank. Please use the following format: dd/mm/yyyy","return to data entry"]
["if no PN offered, why not?","Please answer this question if 'no' or 'unknown' has been selected in the question: 'offered PN?'. Answer can be one of the following:","return to data entry"]
[null,"no documented evidence of PN"]
[null,"patient routinely seen for SH care elsewhere"]
[null,"patient transferred care"]
[null,"documented that PN performed elsewhere"]
[null,"lost to follow up before PN initiated"]
[null,"other"]
["Total number of contacts","Please enter a number, include both contactable and non-contactable partners, between a minimum of 1 and a maximum of 5. If index patient is partner of a positive patient, and no further partners need to be notified, please select '1' in this cell. Please select 'unknown' if no PN was offered, or not recorded.","return to data entry"]
["Total number of contactable contacts","Please enter the number of contacts for which sufficient baseline contact information has been recorded to enable PN to take place","return to data entry"]
["date of index patient or HCW reported attendance for testing and treating contact 1 etc","Date of contact attending a sexual health service for testing and or treatment as reported by the index patient or a healthcare worker. If not available, please leave blank. Please use the following format: dd/mm/yyyy. For pragmatic reasons, please limit data entry to 5 contacts.","return to data entry"]
["PN outcome","Please select for each for up to 5 contacts from drop down list, as reported by index patient or HCW, one of the following options:\ncontact already known to have chlamydia infection\ncontact had a negative test in your service\ncontact had a negative in another service\ncontact had a positive test in your service\ncontact had a positive test in another service\ncontact had a chlamydia test, but result not known\nrecord made that contact informed of risk of chlamydia infection, but not known to have had a chlamydia test\ncontact not known to have been informed of risk of chlamydia infection\ncontact treated but not tested\nother","return to data entry"]
["patient offered a re-test?","This can be 'Yes', 'No', 'Unknown' (which includes when this has not been recorded)","return to data entry"]
["Method used to recall patient:\n","If your service only uses one recall method, please select the same option for all patients entered, otherwise select from the available options the one with the description that closest matches your practice. This will allow analysis as to which method appears most effective in re testing. The options are:","return to data entry"]
[null,"Conversation about re-testing when given your test result and no further reminder "]
[null,"Reminder card when given your test result and no further reminder"]
[null,"Appointment to be re-tested made when given your test result"]
[null,"Given testing kit when given your test result and no further reminder"]
[null,"Given testing kit when given your test result and later reminded when you should test again"]
[null,"Sent text message when you should test again"]
[null,"Invited by phone call when you should test again"]
[null,"Invited by post when you should test again"]
[null,"Sent email when you should test again"]
[null,"Testing kit posted to an address of your choice when you should test again"]
[null,"Retesting advised at follow up call - text message will be sent at 3 months"]
["Date of re-test","Date when re-test taken, format/length: an10  dd/mm/ccyy, if no date available or known, please leave blank","return to data entry"]
["Re-testing service type","This can be one of the following: GUM clinic, SRH/CASH clinic, GP, Community Pharmacy, remote testing, CSO, outreach & education, Integrated sexual health service, 'other' (incl prison/YOI, military, ToP, gynae, A&E/MIU, antenatal etc.), or 'unknown'","return to data entry"]
["Result of re-test","This can be one of the following: positive, negative, equivocal/inhibitory, insufficient, unknown. Selection is through drop down list","return to data entry"]
[]
[]
["Back to Contents"]

{"sheet":"data entry","index":5,"n_rows":53,"n_cols":34,"rows_kept":53,"cut":false,"hidden":false,"merged":[[41,10,50,33]]}
["Commissioning local authority","Name of service provider","Type of service provider","patient number (index)","date of test","gender","age","testing service type","date of result notification","test result","treatment accepted?","date of treatment","If treatment not accepted, why not?","treatment service type","offered PN?","date of PN discussion","if no PN offered, reason?","total no of contacts","total  number of contactable contacts","date of patient/HCW reported attendance for testing and treating contact 1","date of patient/HCW reported attendance for testing and treating contact 2","date of patient/HCW reported attendance for testing and treating contact 3","date of patient/HCW reported attendance for testing and treating contact 4","date of patient/HCW reported attendance for testing and treating contact 5","PN outcome for contact no 1","PN outcome for contact no 2","PN outcome for contact no 3","PN outcome for contact no 4","PN outcome for contact no 5","patient offered a re-test?","Method used to recall patient:","Date of re-test","re-testing service type","result of re-test"]
[null,null,null,1,null,null,null,null,null,"positive"]
[{"$f":"IF($A$2=0,\"\",$A$2)","v":""},{"$f":"IF($B$2=0,\"\",$B$2)","v":""},{"$f":"IF($C$2=0,\"\",$C$2)","v":""},2,null,null,null,null,null,"positive"]
[{"$f":"IF($A$2=0,\"\",$A$2)","v":""},{"$f":"IF($B$2=0,\"\",$B$2)","v":""},{"$f":"IF($C$2=0,\"\",$C$2)","v":""},3,null,null,null,null,null,"positive"]
["","","",4,null,null,null,null,null,"positive"]
["","","",5,null,null,null,null,null,"positive"]
["","","",6,null,null,null,null,null,"positive"]
["","","",7,null,null,null,null,null,"positive"]
["","","",8,null,null,null,null,null,"positive"]
["","","",9,null,null,null,null,null,"positive"]
["","","",10,null,null,null,null,null,"positive"]
["","","",11,null,null,null,null,null,"positive"]
["","","",12,null,null,null,null,null,"positive"]
["","","",13,null,null,null,null,null,"positive"]
["","","",14,null,null,null,null,null,"positive"]
["","","",15,null,null,null,null,null,"positive"]
["","","",16,null,null,null,null,null,"positive"]
["","","",17,null,null,null,null,null,"positive"]
["","","",18,null,null,null,null,null,"positive"]
["","","",19,null,null,null,null,null,"positive"]
["","","",20,null,null,null,null,null,"positive"]
["","","",21,null,null,null,null,null,"positive"]
["","","",22,null,null,null,null,null,"positive"]
["","","",23,null,null,null,null,null,"positive"]
["","","",24,null,null,null,null,null,"positive"]
["","","",25,null,null,null,null,null,"positive"]
["","","",26,null,null,null,null,null,"positive"]
["","","",27,null,null,null,null,null,"positive"]
["","","",28,null,null,null,null,null,"positive"]
["","","",29,null,null,null,null,null,"positive"]
["","","",30,null,null,null,null,null,"positive"]
["","","",31,null,null,null,null,null,"positive"]
["","","",32,null,null,null,null,null,"positive"]
["","","",33,null,null,null,null,null,"positive"]
["","","",34,null,null,null,null,null,"positive"]
["","","",35,null,null,null,null,null,"positive"]
["","","",36,null,null,null,null,null,"positive"]
["","","",37,null,null,null,null,null,"positive"]
["","","",38,null,null,null,null,null,"positive"]
["","","",39,null,null,null,null,null,"positive"]
["","","",40,null,null,null,null,null,"positive"]
["","","",41,null,null,null,null,null,"negative"]
["","","",42,null,null,null,null,null,"negative"]
["","","",43,null,null,null,null,null,"negative"]
["","","",44,null,null,null,null,null,"negative"]
["","","",45,null,null,null,null,null,"negative"]
["","","",46,null,null,null,null,null,"negative"]
["","","",47,null,null,null,null,null,"negative"]
["","","",48,null,null,null,null,null,"negative"]
["","","",49,null,null,null,null,null,"negative"]
["","","",50,null,null,null,null,null,"negative"]
[]
["Back to contents"]

{"sheet":"turnaround calc","index":6,"n_rows":51,"n_cols":11,"rows_kept":51,"cut":false,"hidden":true,"merged":[]}
["patient","If notified, 1, otherwise 0","no of days between test and result","meet notification standard <10 working days?\n (1=yes,0=no)","If result positive, 1, otherwise 0","If treated, 1, otherwise 0","If positive and treated, 1, otherwise 0","no of days between test and treatment of positive patient","of those treated meet treatment standard <31 (6 weeks of 5 days) working days? (1=yes,0=no)","treatment date on or before test date (i.e. epidemiological treatment)? \n(1=yes,0=no)","if both notification and treatment standard met = 1, otherwise = 0"]
[{"$f":"'data entry'!D2","v":1},{"$f":"IF('data entry'!E2=0,\"not completed\",IF('data entry'!I2=0,\"not notified\",1))","v":"not completed"},{"$f":"IF(B2=1,NETWORKDAYS('data entry'!E2,'data entry'!I2),\"not notified or not completed\")","v":"not notified or not completed"},{"$f":"IF(C2<11,1,0)","v":0},{"$f":"IF('data entry'!J2=\"positive\",1,0)","v":1},{"$f":"IF('data entry'!K2=\"yes\",1,0)","v":0},{"$f":"IF(AND(E2=1,F2=1),1,0)","v":0},{"$f":"IF(AND(G2=1,'data entry'!L2>0),NETWORKDAYS('data entry'!E2,'data entry'!L2),\"not treated and or not positive\")","v":"not treated and or not positive"},{"$f":"IF(H2<31,1,0)","v":0},{"$f":"IF('data entry'!L2=0,\"not completed\",IF('data entry'!L2<='data entry'!E2,1,0))","v":"not completed"},{"$f":"IF(AND(D2=1,I2=1),1,0)","v":0}]
[{"$f":"'data entry'!D3","v":2},{"$f":"IF('data entry'!E3=0,\"not completed\",IF('data entry'!I3=0,\"not notified\",1))","v":"not completed"},{"$f":"IF(B3=1,NETWORKDAYS('data entry'!E3,'data entry'!I3),\"not notified or not completed\")","v":"not notified or not completed"},{"$f":"IF(C3<11,1,0)","v":0},{"$f":"IF('data entry'!J3=\"positive\",1,0)","v":1},{"$f":"IF('data entry'!K3=\"yes\",1,0)","v":0},{"$f":"IF(AND(E3=1,F3=1),1,0)","v":0},{"$f":"IF(AND(G3=1,'data entry'!L3>0),NETWORKDAYS('data entry'!E3,'data entry'!L3),\"not treated and or not positive\")","v":"not treated and or not positive"},{"$f":"IF(H3<31,1,0)","v":0},{"$f":"IF('data entry'!L3=0,\"not completed\",IF('data entry'!L3<='data entry'!E3,1,0))","v":"not completed"},{"$f":"IF(AND(D3=1,I3=1),1,0)","v":0}]
[{"$f":"'data entry'!D4","v":3},{"$f":"IF('data entry'!E4=0,\"not completed\",IF('data entry'!I4=0,\"not notified\",1))","v":"not completed"},{"$f":"IF(B4=1,NETWORKDAYS('data entry'!E4,'data entry'!I4),\"not notified or not completed\")","v":"not notified or not completed"},0,{"$f":"IF('data entry'!J4=\"positive\",1,0)","v":1},{"$f":"IF('data entry'!K4=\"yes\",1,0)","v":0},0,{"$f":"IF(AND(G4=1,'data entry'!L4>0),NETWORKDAYS('data entry'!E4,'data entry'!L4),\"not treated and or not positive\")","v":"not treated and or not positive"},0,{"$f":"IF('data entry'!L4=0,\"not completed\",IF('data entry'!L4<='data entry'!E4,1,0))","v":"not completed"},0]
[{"$f":"'data entry'!D5","v":4},{"$f":"IF('data entry'!E5=0,\"not completed\",IF('data entry'!I5=0,\"not notified\",1))","v":"not completed"},{"$f":"IF(B5=1,NETWORKDAYS('data entry'!E5,'data entry'!I5),\"not notified or not completed\")","v":"not notified or not completed"},0,{"$f":"IF('data entry'!J5=\"positive\",1,0)","v":1},{"$f":"IF('data entry'!K5=\"yes\",1,0)","v":0},0,{"$f":"IF(AND(G5=1,'data entry'!L5>0),NETWORKDAYS('data entry'!E5,'data entry'!L5),\"not treated and or not positive\")","v":"not treated and or not positive"},0,{"$f":"IF('data entry'!L5=0,\"not completed\",IF('data entry'!L5<='data entry'!E5,1,0))","v":"not completed"},0]
[{"$f":"'data entry'!D6","v":5},{"$f":"IF('data entry'!E6=0,\"not completed\",IF('data entry'!I6=0,\"not notified\",1))","v":"not completed"},{"$f":"IF(B6=1,NETWORKDAYS('data entry'!E6,'data entry'!I6),\"not notified or not completed\")","v":"not notified or not completed"},0,{"$f":"IF('data entry'!J6=\"positive\",1,0)","v":1},{"$f":"IF('data entry'!K6=\"yes\",1,0)","v":0},0,{"$f":"IF(AND(G6=1,'data entry'!L6>0),NETWORKDAYS('data entry'!E6,'data entry'!L6),\"not treated and or not positive\")","v":"not treated and or not positive"},0,{"$f":"IF('data entry'!L6=0,\"not completed\",IF('data entry'!L6<='data entry'!E6,1,0))","v":"not completed"},0]
[{"$f":"'data entry'!D7","v":6},{"$f":"IF('data entry'!E7=0,\"not completed\",IF('data entry'!I7=0,\"not notified\",1))","v":"not completed"},{"$f":"IF(B7=1,NETWORKDAYS('data entry'!E7,'data entry'!I7),\"not notified or not completed\")","v":"not notified or not completed"},0,{"$f":"IF('data entry'!J7=\"positive\",1,0)","v":1},{"$f":"IF('data entry'!K7=\"yes\",1,0)","v":0},0,{"$f":"IF(AND(G7=1,'data entry'!L7>0),NETWORKDAYS('data entry'!E7,'data entry'!L7),\"not treated and or not positive\")","v":"not treated and or not positive"},0,{"$f":"IF('data entry'!L7=0,\"not completed\",IF('data entry'!L7<='data entry'!E7,1,0))","v":"not completed"},0]
[{"$f":"'data entry'!D8","v":7},{"$f":"IF('data entry'!E8=0,\"not completed\",IF('data entry'!I8=0,\"not notified\",1))","v":"not completed"},{"$f":"IF(B8=1,NETWORKDAYS('data entry'!E8,'data entry'!I8),\"not notified or not completed\")","v":"not notified or not completed"},0,{"$f":"IF('data entry'!J8=\"positive\",1,0)","v":1},{"$f":"IF('data entry'!K8=\"yes\",1,0)","v":0},0,{"$f":"IF(AND(G8=1,'data entry'!L8>0),NETWORKDAYS('data entry'!E8,'data entry'!L8),\"not treated and or not positive\")","v":"not treated and or not positive"},0,{"$f":"IF('data entry'!L8=0,\"not completed\",IF('data entry'!L8<='data entry'!E8,1,0))","v":"not completed"},0]
[{"$f":"'data entry'!D9","v":8},{"$f":"IF('data entry'!E9=0,\"not completed\",IF('data entry'!I9=0,\"not notified\",1))","v":"not completed"},{"$f":"IF(B9=1,NETWORKDAYS('data entry'!E9,'data entry'!I9),\"not notified or not completed\")","v":"not notified or not completed"},0,{"$f":"IF('data entry'!J9=\"positive\",1,0)","v":1},{"$f":"IF('data entry'!K9=\"yes\",1,0)","v":0},0,{"$f":"IF(AND(G9=1,'data entry'!L9>0),NETWORKDAYS('data entry'!E9,'data entry'!L9),\"not treated and or not positive\")","v":"not treated and or not positive"},0,{"$f":"IF('data entry'!L9=0,\"not completed\",IF('data entry'!L9<='data entry'!E9,1,0))","v":"not completed"},0]
[{"$f":"'data entry'!D10","v":9},{"$f":"IF('data entry'!E10=0,\"not completed\",IF('data entry'!I10=0,\"not notified\",1))","v":"not completed"},{"$f":"IF(B10=1,NETWORKDAYS('data entry'!E10,'data entry'!I10),\"not notified or not completed\")","v":"not notified or not completed"},0,{"$f":"IF('data entry'!J10=\"positive\",1,0)","v":1},{"$f":"IF('data entry'!K10=\"yes\",1,0)","v":0},0,{"$f":"IF(AND(G10=1,'data entry'!L10>0),NETWORKDAYS('data entry'!E10,'data entry'!L10),\"not treated and or not positive\")","v":"not treated and or not positive"},0,{"$f":"IF('data entry'!L10=0,\"not completed\",IF('data entry'!L10<='data entry'!E10,1,0))","v":"not completed"},0]
[{"$f":"'data entry'!D11","v":10},{"$f":"IF('data entry'!E11=0,\"not completed\",IF('data entry'!I11=0,\"not notified\",1))","v":"not completed"},{"$f":"IF(B11=1,NETWORKDAYS('data entry'!E11,'data entry'!I11),\"not notified or not completed\")","v":"not notified or not completed"},0,{"$f":"IF('data entry'!J11=\"positive\",1,0)","v":1},{"$f":"IF('data entry'!K11=\"yes\",1,0)","v":0},0,{"$f":"IF(AND(G11=1,'data entry'!L11>0),NETWORKDAYS('data entry'!E11,'data entry'!L11),\"not treated and or not positive\")","v":"not treated and or not positive"},0,{"$f":"IF('data entry'!L11=0,\"not completed\",IF('data entry'!L11<='data entry'!E11,1,0))","v":"not completed"},0]
[{"$f":"'data entry'!D12","v":11},{"$f":"IF('data entry'!E12=0,\"not completed\",IF('data entry'!I12=0,\"not notified\",1))","v":"not completed"},{"$f":"IF(B12=1,NETWORKDAYS('data entry'!E12,'data entry'!I12),\"not notified or not completed\")","v":"not notified or not completed"},0,{"$f":"IF('data entry'!J12=\"positive\",1,0)","v":1},{"$f":"IF('data entry'!K12=\"yes\",1,0)","v":0},0,{"$f":"IF(AND(G12=1,'data entry'!L12>0),NETWORKDAYS('data entry'!E12,'data entry'!L12),\"not treated and or not positive\")","v":"not treated and or not positive"},0,{"$f":"IF('data entry'!L12=0,\"not completed\",IF('data entry'!L12<='data entry'!E12,1,0))","v":"not completed"},0]
[{"$f":"'data entry'!D13","v":12},{"$f":"IF('data entry'!E13=0,\"not completed\",IF('data entry'!I13=0,\"not notified\",1))","v":"not completed"},{"$f":"IF(B13=1,NETWORKDAYS('data entry'!E13,'data entry'!I13),\"not notified or not completed\")","v":"not notified or not completed"},0,{"$f":"IF('data entry'!J13=\"positive\",1,0)","v":1},{"$f":"IF('data entry'!K13=\"yes\",1,0)","v":0},0,{"$f":"IF(AND(G13=1,'data entry'!L13>0),NETWORKDAYS('data entry'!E13,'data entry'!L13),\"not treated and or not positive\")","v":"not treated and or not positive"},0,{"$f":"IF('data entry'!L13=0,\"not completed\",IF('data entry'!L13<='data entry'!E13,1,0))","v":"not completed"},0]
[{"$f":"'data entry'!D14","v":13},{"$f":"IF('data entry'!E14=0,\"not completed\",IF('data entry'!I14=0,\"not notified\",1))","v":"not completed"},{"$f":"IF(B14=1,NETWORKDAYS('data entry'!E14,'data entry'!I14),\"not notified or not completed\")","v":"not notified or not completed"},0,{"$f":"IF('data entry'!J14=\"positive\",1,0)","v":1},{"$f":"IF('data entry'!K14=\"yes\",1,0)","v":0},0,{"$f":"IF(AND(G14=1,'data entry'!L14>0),NETWORKDAYS('data entry'!E14,'data entry'!L14),\"not treated and or not positive\")","v":"not treated and or not positive"},0,{"$f":"IF('data entry'!L14=0,\"not completed\",IF('data entry'!L14<='data entry'!E14,1,0))","v":"not completed"},0]
[{"$f":"'data entry'!D15","v":14},{"$f":"IF('data entry'!E15=0,\"not completed\",IF('data entry'!I15=0,\"not notified\",1))","v":"not completed"},{"$f":"IF(B15=1,NETWORKDAYS('data entry'!E15,'data entry'!I15),\"not notified or not completed\")","v":"not notified or not completed"},0,{"$f":"IF('data entry'!J15=\"positive\",1,0)","v":1},{"$f":"IF('data entry'!K15=\"yes\",1,0)","v":0},0,{"$f":"IF(AND(G15=1,'data entry'!L15>0),NETWORKDAYS('data entry'!E15,'data entry'!L15),\"not treated and or not positive\")","v":"not treated and or not positive"},0,{"$f":"IF('data entry'!L15=0,\"not completed\",IF('data entry'!L15<='data entry'!E15,1,0))","v":"not completed"},0]
[{"$f":"'data entry'!D16","v":15},{"$f":"IF('data entry'!E16=0,\"not completed\",IF('data entry'!I16=0,\"not notified\",1))","v":"not completed"},{"$f":"IF(B16=1,NETWORKDAYS('data entry'!E16,'data entry'!I16),\"not notified or not completed\")","v":"not notified or not completed"},0,{"$f":"IF('data entry'!J16=\"positive\",1,0)","v":1},{"$f":"IF('data entry'!K16=\"yes\",1,0)","v":0},0,{"$f":"IF(AND(G16=1,'data entry'!L16>0),NETWORKDAYS('data entry'!E16,'data entry'!L16),\"not treated and or not positive\")","v":"not treated and or not positive"},0,{"$f":"IF('data entry'!L16=0,\"not completed\",IF('data entry'!L16<='data entry'!E16,1,0))","v":"not completed"},0]
[{"$f":"'data entry'!D17","v":16},{"$f":"IF('data entry'!E17=0,\"not completed\",IF('data entry'!I17=0,\"not notified\",1))","v":"not completed"},{"$f":"IF(B17=1,NETWORKDAYS('data entry'!E17,'data entry'!I17),\"not notified or not completed\")","v":"not notified or not completed"},0,{"$f":"IF('data entry'!J17=\"positive\",1,0)","v":1},{"$f":"IF('data entry'!K17=\"yes\",1,0)","v":0},0,{"$f":"IF(AND(G17=1,'data entry'!L17>0),NETWORKDAYS('data entry'!E17,'data entry'!L17),\"not treated and or not positive\")","v":"not treated and or not positive"},0,{"$f":"IF('data entry'!L17=0,\"not completed\",IF('data entry'!L17<='data entry'!E17,1,0))","v":"not completed"},0]
[{"$f":"'data entry'!D18","v":17},{"$f":"IF('data entry'!E18=0,\"not completed\",IF('data entry'!I18=0,\"not notified\",1))","v":"not completed"},{"$f":"IF(B18=1,NETWORKDAYS('data entry'!E18,'data entry'!I18),\"not notified or not completed\")","v":"not notified or not completed"},0,{"$f":"IF('data entry'!J18=\"positive\",1,0)","v":1},{"$f":"IF('data entry'!K18=\"yes\",1,0)","v":0},0,{"$f":"IF(AND(G18=1,'data entry'!L18>0),NETWORKDAYS('data entry'!E18,'data entry'!L18),\"not treated and or not positive\")","v":"not treated and or not positive"},0,{"$f":"IF('data entry'!L18=0,\"not completed\",IF('data entry'!L18<='data entry'!E18,1,0))","v":"not completed"},0]
[{"$f":"'data entry'!D19","v":18},{"$f":"IF('data entry'!E19=0,\"not completed\",IF('data entry'!I19=0,\"not notified\",1))","v":"not completed"},{"$f":"IF(B19=1,NETWORKDAYS('data entry'!E19,'data entry'!I19),\"not notified or not completed\")","v":"not notified or not completed"},0,{"$f":"IF('data entry'!J19=\"positive\",1,0)","v":1},{"$f":"IF('data entry'!K19=\"yes\",1,0)","v":0},0,{"$f":"IF(AND(G19=1,'data entry'!L19>0),NETWORKDAYS('data entry'!E19,'data entry'!L19),\"not treated and or not positive\")","v":"not treated and or not positive"},0,{"$f":"IF('data entry'!L19=0,\"not completed\",IF('data entry'!L19<='data entry'!E19,1,0))","v":"not completed"},0]
[{"$f":"'data entry'!D20","v":19},{"$f":"IF('data entry'!E20=0,\"not completed\",IF('data entry'!I20=0,\"not notified\",1))","v":"not completed"},{"$f":"IF(B20=1,NETWORKDAYS('data entry'!E20,'data entry'!I20),\"not notified or not completed\")","v":"not notified or not completed"},0,{"$f":"IF('data entry'!J20=\"positive\",1,0)","v":1},{"$f":"IF('data entry'!K20=\"yes\",1,0)","v":0},0,{"$f":"IF(AND(G20=1,'data entry'!L20>0),NETWORKDAYS('data entry'!E20,'data entry'!L20),\"not treated and or not positive\")","v":"not treated and or not positive"},0,{"$f":"IF('data entry'!L20=0,\"not completed\",IF('data entry'!L20<='data entry'!E20,1,0))","v":"not completed"},0]
[{"$f":"'data entry'!D21","v":20},{"$f":"IF('data entry'!E21=0,\"not completed\",IF('data entry'!I21=0,\"not notified\",1))","v":"not completed"},{"$f":"IF(B21=1,NETWORKDAYS('data entry'!E21,'data entry'!I21),\"not notified or not completed\")","v":"not notified or not completed"},0,{"$f":"IF('data entry'!J21=\"positive\",1,0)","v":1},{"$f":"IF('data entry'!K21=\"yes\",1,0)","v":0},0,{"$f":"IF(AND(G21=1,'data entry'!L21>0),NETWORKDAYS('data entry'!E21,'data entry'!L21),\"not treated and or not positive\")","v":"not treated and or not positive"},0,{"$f":"IF('data entry'!L21=0,\"not completed\",IF('data entry'!L21<='data entry'!E21,1,0))","v":"not completed"},0]
[{"$f":"'data entry'!D22","v":21},{"$f":"IF('data entry'!E22=0,\"not completed\",IF('data entry'!I22=0,\"not notified\",1))","v":"not completed"},{"$f":"IF(B22=1,NETWORKDAYS('data entry'!E22,'data entry'!I22),\"not notified or not completed\")","v":"not notified or not completed"},0,{"$f":"IF('data entry'!J22=\"positive\",1,0)","v":1},{"$f":"IF('data entry'!K22=\"yes\",1,0)","v":0},0,{"$f":"IF(AND(G22=1,'data entry'!L22>0),NETWORKDAYS('data entry'!E22,'data entry'!L22),\"not treated and or not positive\")","v":"not treated and or not positive"},0,{"$f":"IF('data entry'!L22=0,\"not completed\",IF('data entry'!L22<='data entry'!E22,1,0))","v":"not completed"},0]
[{"$f":"'data entry'!D23","v":22},{"$f":"IF('data entry'!E23=0,\"not completed\",IF('data entry'!I23=0,\"not notified\",1))","v":"not completed"},{"$f":"IF(B23=1,NETWORKDAYS('data entry'!E23,'data entry'!I23),\"not notified or not completed\")","v":"not notified or not completed"},0,{"$f":"IF('data entry'!J23=\"positive\",1,0)","v":1},{"$f":"IF('data entry'!K23=\"yes\",1,0)","v":0},0,{"$f":"IF(AND(G23=1,'data entry'!L23>0),NETWORKDAYS('data entry'!E23,'data entry'!L23),\"not treated and or not positive\")","v":"not treated and or not positive"},0,{"$f":"IF('data entry'!L23=0,\"not completed\",IF('data entry'!L23<='data entry'!E23,1,0))","v":"not completed"},0]
[{"$f":"'data entry'!D24","v":23},{"$f":"IF('data entry'!E24=0,\"not completed\",IF('data entry'!I24=0,\"not notified\",1))","v":"not completed"},{"$f":"IF(B24=1,NETWORKDAYS('data entry'!E24,'data entry'!I24),\"not notified or not completed\")","v":"not notified or not completed"},0,{"$f":"IF('data entry'!J24=\"positive\",1,0)","v":1},{"$f":"IF('data entry'!K24=\"yes\",1,0)","v":0},0,{"$f":"IF(AND(G24=1,'data entry'!L24>0),NETWORKDAYS('data entry'!E24,'data entry'!L24),\"not treated and or not positive\")","v":"not treated and or not positive"},0,{"$f":"IF('data entry'!L24=0,\"not completed\",IF('data entry'!L24<='data entry'!E24,1,0))","v":"not completed"},0]
[{"$f":"'data entry'!D25","v":24},{"$f":"IF('data entry'!E25=0,\"not completed\",IF('data entry'!I25=0,\"not notified\",1))","v":"not completed"},{"$f":"IF(B25=1,NETWORKDAYS('data entry'!E25,'data entry'!I25),\"not notified or not completed\")","v":"not notified or not completed"},0,{"$f":"IF('data entry'!J25=\"positive\",1,0)","v":1},{"$f":"IF('data entry'!K25=\"yes\",1,0)","v":0},0,{"$f":"IF(AND(G25=1,'data entry'!L25>0),NETWORKDAYS('data entry'!E25,'data entry'!L25),\"not treated and or not positive\")","v":"not treated and or not positive"},0,{"$f":"IF('data entry'!L25=0,\"not completed\",IF('data entry'!L25<='data entry'!E25,1,0))","v":"not completed"},0]
[{"$f":"'data entry'!D26","v":25},{"$f":"IF('data entry'!E26=0,\"not completed\",IF('data entry'!I26=0,\"not notified\",1))","v":"not completed"},{"$f":"IF(B26=1,NETWORKDAYS('data entry'!E26,'data entry'!I26),\"not notified or not completed\")","v":"not notified or not completed"},0,{"$f":"IF('data entry'!J26=\"positive\",1,0)","v":1},{"$f":"IF('data entry'!K26=\"yes\",1,0)","v":0},0,{"$f":"IF(AND(G26=1,'data entry'!L26>0),NETWORKDAYS('data entry'!E26,'data entry'!L26),\"not treated and or not positive\")","v":"not treated and or not positive"},0,{"$f":"IF('data entry'!L26=0,\"not completed\",IF('data entry'!L26<='data entry'!E26,1,0))","v":"not completed"},0]
[{"$f":"'data entry'!D27","v":26},{"$f":"IF('data entry'!E27=0,\"not completed\",IF('data entry'!I27=0,\"not notified\",1))","v":"not completed"},{"$f":"IF(B27=1,NETWORKDAYS('data entry'!E27,'data entry'!I27),\"not notified or not completed\")","v":"not notified or not completed"},0,{"$f":"IF('data entry'!J27=\"positive\",1,0)","v":1},{"$f":"IF('data entry'!K27=\"yes\",1,0)","v":0},0,{"$f":"IF(AND(G27=1,'data entry'!L27>0),NETWORKDAYS('data entry'!E27,'data entry'!L27),\"not treated and or not positive\")","v":"not treated and or not positive"},0,{"$f":"IF('data entry'!L27=0,\"not completed\",IF('data entry'!L27<='data entry'!E27,1,0))","v":"not completed"},0]
[{"$f":"'data entry'!D28","v":27},{"$f":"IF('data entry'!E28=0,\"not completed\",IF('data entry'!I28=0,\"not notified\",1))","v":"not completed"},{"$f":"IF(B28=1,NETWORKDAYS('data entry'!E28,'data entry'!I28),\"not notified or not completed\")","v":"not notified or not completed"},0,{"$f":"IF('data entry'!J28=\"positive\",1,0)","v":1},{"$f":"IF('data entry'!K28=\"yes\",1,0)","v":0},0,{"$f":"IF(AND(G28=1,'data entry'!L28>0),NETWORKDAYS('data entry'!E28,'data entry'!L28),\"not treated and or not positive\")","v":"not treated and or not positive"},0,{"$f":"IF('data entry'!L28=0,\"not completed\",IF('data entry'!L28<='data entry'!E28,1,0))","v":"not completed"},0]
[{"$f":"'data entry'!D29","v":28},{"$f":"IF('data entry'!E29=0,\"not completed\",IF('data entry'!I29=0,\"not notified\",1))","v":"not completed"},{"$f":"IF(B29=1,NETWORKDAYS('data entry'!E29,'data entry'!I29),\"not notified or not completed\")","v":"not notified or not completed"},0,{"$f":"IF('data entry'!J29=\"positive\",1,0)","v":1},{"$f":"IF('data entry'!K29=\"yes\",1,0)","v":0},0,{"$f":"IF(AND(G29=1,'data entry'!L29>0),NETWORKDAYS('data entry'!E29,'data entry'!L29),\"not treated and or not positive\")","v":"not treated and or not positive"},0,{"$f":"IF('data entry'!L29=0,\"not completed\",IF('data entry'!L29<='data entry'!E29,1,0))","v":"not completed"},0]
[{"$f":"'data entry'!D30","v":29},{"$f":"IF('data entry'!E30=0,\"not completed\",IF('data entry'!I30=0,\"not notified\",1))","v":"not completed"},{"$f":"IF(B30=1,NETWORKDAYS('data entry'!E30,'data entry'!I30),\"not notified or not completed\")","v":"not notified or not completed"},0,{"$f":"IF('data entry'!J30=\"positive\",1,0)","v":1},{"$f":"IF('data entry'!K30=\"yes\",1,0)","v":0},0,{"$f":"IF(AND(G30=1,'data entry'!L30>0),NETWORKDAYS('data entry'!E30,'data entry'!L30),\"not treated and or not positive\")","v":"not treated and or not positive"},0,{"$f":"IF('data entry'!L30=0,\"not completed\",IF('data entry'!L30<='data entry'!E30,1,0))","v":"not completed"},0]
[{"$f":"'data entry'!D31","v":30},{"$f":"IF('data entry'!E31=0,\"not completed\",IF('data entry'!I31=0,\"not notified\",1))","v":"not completed"},{"$f":"IF(B31=1,NETWORKDAYS('data entry'!E31,'data entry'!I31),\"not notified or not completed\")","v":"not notified or not completed"},0,{"$f":"IF('data entry'!J31=\"positive\",1,0)","v":1},{"$f":"IF('data entry'!K31=\"yes\",1,0)","v":0},0,{"$f":"IF(AND(G31=1,'data entry'!L31>0),NETWORKDAYS('data entry'!E31,'data entry'!L31),\"not treated and or not positive\")","v":"not treated and or not positive"},0,{"$f":"IF('data entry'!L31=0,\"not completed\",IF('data entry'!L31<='data entry'!E31,1,0))","v":"not completed"},0]
[{"$f":"'data entry'!D32","v":31},{"$f":"IF('data entry'!E32=0,\"not completed\",IF('data entry'!I32=0,\"not notified\",1))","v":"not completed"},{"$f":"IF(B32=1,NETWORKDAYS('data entry'!E32,'data entry'!I32),\"not notified or not completed\")","v":"not notified or not completed"},0,{"$f":"IF('data entry'!J32=\"positive\",1,0)","v":1},{"$f":"IF('data entry'!K32=\"yes\",1,0)","v":0},0,{"$f":"IF(AND(G32=1,'data entry'!L32>0),NETWORKDAYS('data entry'!E32,'data entry'!L32),\"not treated and or not positive\")","v":"not treated and or not positive"},0,{"$f":"IF('data entry'!L32=0,\"not completed\",IF('data entry'!L32<='data entry'!E32,1,0))","v":"not completed"},0]
[{"$f":"'data entry'!D33","v":32},{"$f":"IF('data entry'!E33=0,\"not completed\",IF('data entry'!I33=0,\"not notified\",1))","v":"not completed"},{"$f":"IF(B33=1,NETWORKDAYS('data entry'!E33,'data entry'!I33),\"not notified or not completed\")","v":"not notified or not completed"},0,{"$f":"IF('data entry'!J33=\"positive\",1,0)","v":1},{"$f":"IF('data entry'!K33=\"yes\",1,0)","v":0},0,{"$f":"IF(AND(G33=1,'data entry'!L33>0),NETWORKDAYS('data entry'!E33,'data entry'!L33),\"not treated and or not positive\")","v":"not treated and or not positive"},0,{"$f":"IF('data entry'!L33=0,\"not completed\",IF('data entry'!L33<='data entry'!E33,1,0))","v":"not completed"},0]
[{"$f":"'data entry'!D34","v":33},{"$f":"IF('data entry'!E34=0,\"not completed\",IF('data entry'!I34=0,\"not notified\",1))","v":"not completed"},{"$f":"IF(B34=1,NETWORKDAYS('data entry'!E34,'data entry'!I34),\"not notified or not completed\")","v":"not notified or not completed"},0,{"$f":"IF('data entry'!J34=\"positive\",1,0)","v":1},{"$f":"IF('data entry'!K34=\"yes\",1,0)","v":0},0,{"$f":"IF(AND(G34=1,'data entry'!L34>0),NETWORKDAYS('data entry'!E34,'data entry'!L34),\"not treated and or not positive\")","v":"not treated and or not positive"},0,{"$f":"IF('data entry'!L34=0,\"not completed\",IF('data entry'!L34<='data entry'!E34,1,0))","v":"not completed"},0]
[{"$f":"'data entry'!D35","v":34},{"$f":"IF('data entry'!E35=0,\"not completed\",IF('data entry'!I35=0,\"not notified\",1))","v":"not completed"},{"$f":"IF(B35=1,NETWORKDAYS('data entry'!E35,'data entry'!I35),\"not notified or not completed\")","v":"not notified or not completed"},0,{"$f":"IF('data entry'!J35=\"positive\",1,0)","v":1},{"$f":"IF('data entry'!K35=\"yes\",1,0)","v":0},0,{"$f":"IF(AND(G35=1,'data entry'!L35>0),NETWORKDAYS('data entry'!E35,'data entry'!L35),\"not treated and or not positive\")","v":"not treated and or not positive"},0,{"$f":"IF('data entry'!L35=0,\"not completed\",IF('data entry'!L35<='data entry'!E35,1,0))","v":"not completed"},0]
[{"$f":"'data entry'!D36","v":35},{"$f":"IF('data entry'!E36=0,\"not completed\",IF('data entry'!I36=0,\"not notified\",1))","v":"not completed"},{"$f":"IF(B36=1,NETWORKDAYS('data entry'!E36,'data entry'!I36),\"not notified or not completed\")","v":"not notified or not completed"},0,{"$f":"IF('data entry'!J36=\"positive\",1,0)","v":1},{"$f":"IF('data entry'!K36=\"yes\",1,0)","v":0},0,{"$f":"IF(AND(G36=1,'data entry'!L36>0),NETWORKDAYS('data entry'!E36,'data entry'!L36),\"not treated and or not positive\")","v":"not treated and or not positive"},0,{"$f":"IF('data entry'!L36=0,\"not completed\",IF('data entry'!L36<='data entry'!E36,1,0))","v":"not completed"},0]
[{"$f":"'data entry'!D37","v":36},{"$f":"IF('data entry'!E37=0,\"not completed\",IF('data entry'!I37=0,\"not notified\",1))","v":"not completed"},{"$f":"IF(B37=1,NETWORKDAYS('data entry'!E37,'data entry'!I37),\"not notified or not completed\")","v":"not notified or not completed"},0,{"$f":"IF('data entry'!J37=\"positive\",1,0)","v":1},{"$f":"IF('data entry'!K37=\"yes\",1,0)","v":0},0,{"$f":"IF(AND(G37=1,'data entry'!L37>0),NETWORKDAYS('data entry'!E37,'data entry'!L37),\"not treated and or not positive\")","v":"not treated and or not positive"},0,{"$f":"IF('data entry'!L37=0,\"not completed\",IF('data entry'!L37<='data entry'!E37,1,0))","v":"not completed"},0]
[{"$f":"'data entry'!D38","v":37},{"$f":"IF('data entry'!E38=0,\"not completed\",IF('data entry'!I38=0,\"not notified\",1))","v":"not completed"},{"$f":"IF(B38=1,NETWORKDAYS('data entry'!E38,'data entry'!I38),\"not notified or not completed\")","v":"not notified or not completed"},0,{"$f":"IF('data entry'!J38=\"positive\",1,0)","v":1},{"$f":"IF('data entry'!K38=\"yes\",1,0)","v":0},0,{"$f":"IF(AND(G38=1,'data entry'!L38>0),NETWORKDAYS('data entry'!E38,'data entry'!L38),\"not treated and or not positive\")","v":"not treated and or not positive"},0,{"$f":"IF('data entry'!L38=0,\"not completed\",IF('data entry'!L38<='data entry'!E38,1,0))","v":"not completed"},0]
[{"$f":"'data entry'!D39","v":38},{"$f":"IF('data entry'!E39=0,\"not completed\",IF('data entry'!I39=0,\"not notified\",1))","v":"not completed"},{"$f":"IF(B39=1,NETWORKDAYS('data entry'!E39,'data entry'!I39),\"not notified or not completed\")","v":"not notified or not completed"},0,{"$f":"IF('data entry'!J39=\"positive\",1,0)","v":1},{"$f":"IF('data entry'!K39=\"yes\",1,0)","v":0},0,{"$f":"IF(AND(G39=1,'data entry'!L39>0),NETWORKDAYS('data entry'!E39,'data entry'!L39),\"not treated and or not positive\")","v":"not treated and or not positive"},0,{"$f":"IF('data entry'!L39=0,\"not completed\",IF('data entry'!L39<='data entry'!E39,1,0))","v":"not completed"},0]
[{"$f":"'data entry'!D40","v":39},{"$f":"IF('data entry'!E40=0,\"not completed\",IF('data entry'!I40=0,\"not notified\",1))","v":"not completed"},{"$f":"IF(B40=1,NETWORKDAYS('data entry'!E40,'data entry'!I40),\"not notified or not completed\")","v":"not notified or not completed"},0,{"$f":"IF('data entry'!J40=\"positive\",1,0)","v":1},{"$f":"IF('data entry'!K40=\"yes\",1,0)","v":0},0,{"$f":"IF(AND(G40=1,'data entry'!L40>0),NETWORKDAYS('data entry'!E40,'data entry'!L40),\"not treated and or not positive\")","v":"not treated and or not positive"},0,{"$f":"IF('data entry'!L40=0,\"not completed\",IF('data entry'!L40<='data entry'!E40,1,0))","v":"not completed"},0]
[{"$f":"'data entry'!D41","v":40},{"$f":"IF('data entry'!E41=0,\"not completed\",IF('data entry'!I41=0,\"not notified\",1))","v":"not completed"},{"$f":"IF(B41=1,NETWORKDAYS('data entry'!E41,'data entry'!I41),\"not notified or not completed\")","v":"not notified or not completed"},0,{"$f":"IF('data entry'!J41=\"positive\",1,0)","v":1},{"$f":"IF('data entry'!K41=\"yes\",1,0)","v":0},0,{"$f":"IF(AND(G41=1,'data entry'!L41>0),NETWORKDAYS('data entry'!E41,'data entry'!L41),\"not treated and or not positive\")","v":"not treated and or not positive"},0,{"$f":"IF('data entry'!L41=0,\"not completed\",IF('data entry'!L41<='data entry'!E41,1,0))","v":"not completed"},0]
[{"$f":"'data entry'!D42","v":41},{"$f":"IF('data entry'!E42=0,\"not completed\",IF('data entry'!I42=0,\"not notified\",1))","v":"not completed"},{"$f":"IF(B42=1,NETWORKDAYS('data entry'!E42,'data entry'!I42),\"not notified or not completed\")","v":"not notified or not completed"},{"$f":"IF(C42<11,1,0)","v":0},{"$f":"IF('data entry'!J42=\"positive\",1,0)","v":0},{"$f":"IF('data entry'!K42=\"yes\",1,0)","v":0},{"$f":"IF(AND(E42=1,F42=1),1,0)","v":0},{"$f":"IF(AND(G42=1,'data entry'!L42>0),NETWORKDAYS('data entry'!E42,'data entry'!L42),\"not treated and or not positive\")","v":"not treated and or not positive"},{"$f":"IF(H42<31,1,0)","v":0},{"$f":"IF('data entry'!L42=0,\"not completed\",IF('data entry'!L42<='data entry'!E42,1,0))","v":"not completed"},{"$f":"IF(AND(D42=1,I42=1),1,0)","v":0}]
[{"$f":"'data entry'!D43","v":42},{"$f":"IF('data entry'!E43=0,\"not completed\",IF('data entry'!I43=0,\"not notified\",1))","v":"not completed"},{"$f":"IF(B43=1,NETWORKDAYS('data entry'!E43,'data entry'!I43),\"not notified or not completed\")","v":"not notified or not completed"},0,{"$f":"IF('data entry'!J43=\"positive\",1,0)","v":0},{"$f":"IF('data entry'!K43=\"yes\",1,0)","v":0},0,{"$f":"IF(AND(G43=1,'data entry'!L43>0),NETWORKDAYS('data entry'!E43,'data entry'!L43),\"not treated and or not positive\")","v":"not treated and or not positive"},0,{"$f":"IF('data entry'!L43=0,\"not completed\",IF('data entry'!L43<='data entry'!E43,1,0))","v":"not completed"},0]
[{"$f":"'data entry'!D44","v":43},{"$f":"IF('data entry'!E44=0,\"not completed\",IF('data entry'!I44=0,\"not notified\",1))","v":"not completed"},{"$f":"IF(B44=1,NETWORKDAYS('data entry'!E44,'data entry'!I44),\"not notified or not completed\")","v":"not notified or not completed"},0,{"$f":"IF('data entry'!J44=\"positive\",1,0)","v":0},{"$f":"IF('data entry'!K44=\"yes\",1,0)","v":0},0,{"$f":"IF(AND(G44=1,'data entry'!L44>0),NETWORKDAYS('data entry'!E44,'data entry'!L44),\"not treated and or not positive\")","v":"not treated and or not positive"},0,{"$f":"IF('data entry'!L44=0,\"not completed\",IF('data entry'!L44<='data entry'!E44,1,0))","v":"not completed"},0]
[{"$f":"'data entry'!D45","v":44},{"$f":"IF('data entry'!E45=0,\"not completed\",IF('data entry'!I45=0,\"not notified\",1))","v":"not completed"},{"$f":"IF(B45=1,NETWORKDAYS('data entry'!E45,'data entry'!I45),\"not notified or not completed\")","v":"not notified or not completed"},0,{"$f":"IF('data entry'!J45=\"positive\",1,0)","v":0},{"$f":"IF('data entry'!K45=\"yes\",1,0)","v":0},0,{"$f":"IF(AND(G45=1,'data entry'!L45>0),NETWORKDAYS('data entry'!E45,'data entry'!L45),\"not treated and or not positive\")","v":"not treated and or not positive"},0,{"$f":"IF('data entry'!L45=0,\"not completed\",IF('data entry'!L45<='data entry'!E45,1,0))","v":"not completed"},0]
[{"$f":"'data entry'!D46","v":45},{"$f":"IF('data entry'!E46=0,\"not completed\",IF('data entry'!I46=0,\"not notified\",1))","v":"not completed"},{"$f":"IF(B46=1,NETWORKDAYS('data entry'!E46,'data entry'!I46),\"not notified or not completed\")","v":"not notified or not completed"},0,{"$f":"IF('data entry'!J46=\"positive\",1,0)","v":0},{"$f":"IF('data entry'!K46=\"yes\",1,0)","v":0},0,{"$f":"IF(AND(G46=1,'data entry'!L46>0),NETWORKDAYS('data entry'!E46,'data entry'!L46),\"not treated and or not positive\")","v":"not treated and or not positive"},0,{"$f":"IF('data entry'!L46=0,\"not completed\",IF('data entry'!L46<='data entry'!E46,1,0))","v":"not completed"},0]
[{"$f":"'data entry'!D47","v":46},{"$f":"IF('data entry'!E47=0,\"not completed\",IF('data entry'!I47=0,\"not notified\",1))","v":"not completed"},{"$f":"IF(B47=1,NETWORKDAYS('data entry'!E47,'data entry'!I47),\"not notified or not completed\")","v":"not notified or not completed"},0,{"$f":"IF('data entry'!J47=\"positive\",1,0)","v":0},{"$f":"IF('data entry'!K47=\"yes\",1,0)","v":0},0,{"$f":"IF(AND(G47=1,'data entry'!L47>0),NETWORKDAYS('data entry'!E47,'data entry'!L47),\"not treated and or not positive\")","v":"not treated and or not positive"},0,{"$f":"IF('data entry'!L47=0,\"not completed\",IF('data entry'!L47<='data entry'!E47,1,0))","v":"not completed"},0]
[{"$f":"'data entry'!D48","v":47},{"$f":"IF('data entry'!E48=0,\"not completed\",IF('data entry'!I48=0,\"not notified\",1))","v":"not completed"},{"$f":"IF(B48=1,NETWORKDAYS('data entry'!E48,'data entry'!I48),\"not notified or not completed\")","v":"not notified or not completed"},0,{"$f":"IF('data entry'!J48=\"positive\",1,0)","v":0},{"$f":"IF('data entry'!K48=\"yes\",1,0)","v":0},0,{"$f":"IF(AND(G48=1,'data entry'!L48>0),NETWORKDAYS('data entry'!E48,'data entry'!L48),\"not treated and or not positive\")","v":"not treated and or not positive"},0,{"$f":"IF('data entry'!L48=0,\"not completed\",IF('data entry'!L48<='data entry'!E48,1,0))","v":"not completed"},0]
[{"$f":"'data entry'!D49","v":48},{"$f":"IF('data entry'!E49=0,\"not completed\",IF('data entry'!I49=0,\"not notified\",1))","v":"not completed"},{"$f":"IF(B49=1,NETWORKDAYS('data entry'!E49,'data entry'!I49),\"not notified or not completed\")","v":"not notified or not completed"},0,{"$f":"IF('data entry'!J49=\"positive\",1,0)","v":0},{"$f":"IF('data entry'!K49=\"yes\",1,0)","v":0},0,{"$f":"IF(AND(G49=1,'data entry'!L49>0),NETWORKDAYS('data entry'!E49,'data entry'!L49),\"not treated and or not positive\")","v":"not treated and or not positive"},0,{"$f":"IF('data entry'!L49=0,\"not completed\",IF('data entry'!L49<='data entry'!E49,1,0))","v":"not completed"},0]
[{"$f":"'data entry'!D50","v":49},{"$f":"IF('data entry'!E50=0,\"not completed\",IF('data entry'!I50=0,\"not notified\",1))","v":"not completed"},{"$f":"IF(B50=1,NETWORKDAYS('data entry'!E50,'data entry'!I50),\"not notified or not completed\")","v":"not notified or not completed"},0,{"$f":"IF('data entry'!J50=\"positive\",1,0)","v":0},{"$f":"IF('data entry'!K50=\"yes\",1,0)","v":0},0,{"$f":"IF(AND(G50=1,'data entry'!L50>0),NETWORKDAYS('data entry'!E50,'data entry'!L50),\"not treated and or not positive\")","v":"not treated and or not positive"},0,{"$f":"IF('data entry'!L50=0,\"not completed\",IF('data entry'!L50<='data entry'!E50,1,0))","v":"not completed"},0]
[{"$f":"'data entry'!D51","v":50},{"$f":"IF('data entry'!E51=0,\"not completed\",IF('data entry'!I51=0,\"not notified\",1))","v":"not completed"},{"$f":"IF(B51=1,NETWORKDAYS('data entry'!E51,'data entry'!I51),\"not notified or not completed\")","v":"not notified or not completed"},0,{"$f":"IF('data entry'!J51=\"positive\",1,0)","v":0},{"$f":"IF('data entry'!K51=\"yes\",1,0)","v":0},0,{"$f":"IF(AND(G51=1,'data entry'!L51>0),NETWORKDAYS('data entry'!E51,'data entry'!L51),\"not treated and or not positive\")","v":"not treated and or not positive"},0,{"$f":"IF('data entry'!L51=0,\"not completed\",IF('data entry'!L51<='data entry'!E51,1,0))","v":"not completed"},0]

{"sheet":"PN calc","index":7,"n_rows":41,"n_cols":32,"rows_kept":41,"cut":false,"hidden":true,"merged":[]}
["positive patient (index)","If PN offered, 1, otherwise leave blank","Date of PN discussion","date of patient reported attendance for testing and treating contact 1","date of patient reported attendance for testing and treating contact 2","date of patient reported attendance for testing and treating contact 3","date of patient reported attendance for testing and treating contact 4","date of patient reported attendance for testing and treating contact 5","days between PN discussion and date of patient reported attendance contact 1","days between PN discussion and date of patient reported attendance contact 2","days between PN discussion and date of patient reported attendance contact 3","days between PN discussion and date of patient reported attendance contact 4","days between PN discussion and date of patient reported attendance contact 5","meeting standard (between 0 and 21 working days - four working weeks after date of PN discussion) contact 1","meeting standard (between 0 and 21 working days - four working weeks after date of PN discussion) contact 2","meeting standard (between 0 and 21 working days - four working weeks after date of PN discussion) contact 3","meeting standard (between 0 and 21 working days - four working weeks after date of PN discussion) contact 4","meeting standard (between 0 and 21 working days - four working weeks after date of PN discussion) contact 5","number where patient/\nhcw reported standard has been met","Number of contacts with an attendance date ","total number of contacts",null,"PN outcome: contact already known to have chlamydia infection","PN outcome: contact had a negative test in your service","PN outcome: contact had a negative test in another service","PN outcome: contact had a positive test in your service","PN outcome: contact had a positive test in another service","PN outcome: contact had a chlamydia test, but result not known","PN outcome: record made that contact informed of risk of chlamydia infection, but not known to have had a chlamydia test","PN outcome: contact not known to have been informed of risk of chlamydia infection","contact treated but not tested","Other"]
[{"$f":"'data entry'!D2","v":1},{"$f":"IF('data entry'!$O2=\"yes\",1,\"\")","v":""},{"$f":"IF('data entry'!P2>0,'data entry'!P2,\"0\")","v":"0"},{"$f":"IF(AND('data entry'!T2>0,$B2=1),'data entry'!T2,\"NA\")","v":"NA"},{"$f":"IF(AND('data entry'!U2>0,$B2=1),'data entry'!U2,\"NA\")","v":"NA"},{"$f":"IF(AND('data entry'!V2>0,$B2=1),'data entry'!V2,\"NA\")","v":"NA"},{"$f":"IF(AND('data entry'!W2>0,$B2=1),'data entry'!W2,\"NA\")","v":"NA"},{"$f":"IF(AND('data entry'!X2>0,$B2=1),'data entry'!X2,\"NA\")","v":"NA"},{"$f":"IF(D2=\"na\",\"NA\",NETWORKDAYS(C2,D2))","v":"NA"},{"$f":"IF(E2=\"NA\",\"NA\",NETWORKDAYS(C2,E2))","v":"NA"},{"$f":"IF($F2=\"NA\",\"NA\",NETWORKDAYS(C2,F2))","v":"NA"},{"$f":"IF($G2=\"NA\",\"NA\",NETWORKDAYS(C2,G2))","v":"NA"},{"$f":"IF($H2=\"NA\",\"NA\",NETWORKDAYS(C2,H2))","v":"NA"},{"$f":"IF(AND($I2<21,$I2>=0),1,0)","v":0},{"$f":"IF(AND($J2<21,$J2>=0),1,0)","v":0},{"$f":"IF(AND($K2<21,$K2>=0),1,0)","v":0},{"$f":"IF(AND($L2<21,$L2>=0),1,0)","v":0},{"$f":"IF(AND($M2<21,$M2>=0),1,0)","v":0},{"$f":"SUM(N2:R2)","v":0},{"$f":"COUNT(D2:H2)","v":0},{"$f":"'data entry'!R2","v":0},null,{"$f":"COUNTIF('data entry'!$Y$2:$AC$2,\"contact already known to have chlamydia infection\")","v":0},{"$f":"COUNTIF('data entry'!$Y2:$AC2,\"contact had a negative test in your service\")","v":0},{"$f":"COUNTIF('data entry'!$Y2:$AC2,\"contact had a negative test in another service\")","v":0},{"$f":"COUNTIF('data entry'!$Y2:$AC2,\"contact had a positive test in your service\")","v":0},{"$f":"COUNTIF('data entry'!$Y2:$AC2,\"contact had a positive test in another service\")","v":0},{"$f":"COUNTIF('data entry'!$Y2:$AC2,\"contact had a chlamydia test, but result not known\")","v":0},{"$f":"COUNTIF('data entry'!$Y2:$AC2,\"record made that contact informed of risk of chlamydia infection, but not known to have had a chlamydia test\")","v":0},{"$f":"COUNTIF('data entry'!$Y2:$AC2,\"contact not known to have been informed of risk of chlamydia infection\")","v":0},{"$f":"COUNTIF('data entry'!$Y2:$AC2,\"contact treated but not tested\")","v":0},{"$f":"COUNTIF('data entry'!$Y2:$AC2,\"other\")","v":0}]
[{"$f":"'data entry'!D3","v":2},{"$f":"IF('data entry'!$O3=\"yes\",1,\"\")","v":""},{"$f":"IF('data entry'!P3>0,'data entry'!P3,\"0\")","v":"0"},{"$f":"IF(AND('data entry'!T3>0,$B3=1),'data entry'!T3,\"NA\")","v":"NA"},{"$f":"IF(AND('data entry'!U3>0,$B3=1),'data entry'!U3,\"NA\")","v":"NA"},{"$f":"IF(AND('data entry'!V3>0,$B3=1),'data entry'!V3,\"NA\")","v":"NA"},{"$f":"IF(AND('data entry'!W3>0,$B3=1),'data entry'!W3,\"NA\")","v":"NA"},{"$f":"IF(AND('data entry'!X3>0,$B3=1),'data entry'!X3,\"NA\")","v":"NA"},{"$f":"IF(D3=\"na\",\"NA\",NETWORKDAYS(C3,D3))","v":"NA"},{"$f":"IF(E3=\"NA\",\"NA\",NETWORKDAYS(C3,E3))","v":"NA"},"NA","NA","NA",0,0,0,0,0,{"$f":"SUM(N3:R3)","v":0},0,{"$f":"'data entry'!R3","v":0},null,{"$f":"COUNTIF('data entry'!$Y3:$AC3,\"contact already known to have chlamydia infection\")","v":0},{"$f":"COUNTIF('data entry'!$Y3:$AC3,\"contact had a negative test in your service\")","v":0},{"$f":"COUNTIF('data entry'!$Y3:$AC3,\"contact had a negative test in another service\")","v":0},{"$f":"COUNTIF('data entry'!$Y3:$AC3,\"contact had a positive test in your service\")","v":0},{"$f":"COUNTIF('data entry'!$Y3:$AC3,\"contact had a positive test in another service\")","v":0},{"$f":"COUNTIF('data entry'!$Y3:$AC3,\"contact had a chlamydia test, but result not known\")","v":0},{"$f":"COUNTIF('data entry'!$Y3:$AC3,\"record made that contact informed of risk of chlamydia infection, but not known to have had a chlamydia test\")","v":0},{"$f":"COUNTIF('data entry'!$Y3:$AC3,\"contact not known to have been informed of risk of chlamydia infection\")","v":0},{"$f":"COUNTIF('data entry'!$Y3:$AC3,\"contact treated but not tested\")","v":0},{"$f":"COUNTIF('data entry'!$Y3:$AC3,\"other\")","v":0}]
[{"$f":"'data entry'!D4","v":3},{"$f":"IF('data entry'!$O4=\"yes\",1,\"\")","v":""},{"$f":"IF('data entry'!P4>0,'data entry'!P4,\"0\")","v":"0"},{"$f":"IF(AND('data entry'!T4>0,$B4=1),'data entry'!T4,\"NA\")","v":"NA"},{"$f":"IF(AND('data entry'!U4>0,$B4=1),'data entry'!U4,\"NA\")","v":"NA"},{"$f":"IF(AND('data entry'!V4>0,$B4=1),'data entry'!V4,\"NA\")","v":"NA"},{"$f":"IF(AND('data entry'!W4>0,$B4=1),'data entry'!W4,\"NA\")","v":"NA"},{"$f":"IF(AND('data entry'!X4>0,$B4=1),'data entry'!X4,\"NA\")","v":"NA"},{"$f":"IF(D4=\"na\",\"NA\",NETWORKDAYS(C4,D4))","v":"NA"},{"$f":"IF(E4=\"NA\",\"NA\",NETWORKDAYS(C4,E4))","v":"NA"},"NA","NA","NA",0,0,0,0,0,0,0,{"$f":"'data entry'!R4","v":0},null,{"$f":"COUNTIF('data entry'!$Y4:$AC4,\"contact already known to have chlamydia infection\")","v":0},{"$f":"COUNTIF('data entry'!$Y4:$AC4,\"contact had a negative test in your service\")","v":0},{"$f":"COUNTIF('data entry'!$Y4:$AC4,\"contact had a negative test in another service\")","v":0},{"$f":"COUNTIF('data entry'!$Y4:$AC4,\"contact had a positive test in your service\")","v":0},{"$f":"COUNTIF('data entry'!$Y4:$AC4,\"contact had a positive test in another service\")","v":0},{"$f":"COUNTIF('data entry'!$Y4:$AC4,\"contact had a chlamydia test, but result not known\")","v":0},{"$f":"COUNTIF('data entry'!$Y4:$AC4,\"record made that contact informed of risk of chlamydia infection, but not known to have had a chlamydia test\")","v":0},{"$f":"COUNTIF('data entry'!$Y4:$AC4,\"contact not known to have been informed of risk of chlamydia infection\")","v":0},{"$f":"COUNTIF('data entry'!$Y4:$AC4,\"contact treated but not tested\")","v":0},{"$f":"COUNTIF('data entry'!$Y4:$AC4,\"other\")","v":0}]
[{"$f":"'data entry'!D5","v":4},{"$f":"IF('data entry'!$O5=\"yes\",1,\"\")","v":""},{"$f":"IF('data entry'!P5>0,'data entry'!P5,\"0\")","v":"0"},{"$f":"IF(AND('data entry'!T5>0,$B5=1),'data entry'!T5,\"NA\")","v":"NA"},{"$f":"IF(AND('data entry'!U5>0,$B5=1),'data entry'!U5,\"NA\")","v":"NA"},{"$f":"IF(AND('data entry'!V5>0,$B5=1),'data entry'!V5,\"NA\")","v":"NA"},{"$f":"IF(AND('data entry'!W5>0,$B5=1),'data entry'!W5,\"NA\")","v":"NA"},{"$f":"IF(AND('data entry'!X5>0,$B5=1),'data entry'!X5,\"NA\")","v":"NA"},"NA","NA","NA","NA","NA",0,0,0,0,0,0,0,{"$f":"'data entry'!R5","v":0},null,{"$f":"COUNTIF('data entry'!$Y5:$AC5,\"contact already known to have chlamydia infection\")","v":0},{"$f":"COUNTIF('data entry'!$Y5:$AC5,\"contact had a negative test in your service\")","v":0},{"$f":"COUNTIF('data entry'!$Y5:$AC5,\"contact had a negative test in another service\")","v":0},{"$f":"COUNTIF('data entry'!$Y5:$AC5,\"contact had a positive test in your service\")","v":0},{"$f":"COUNTIF('data entry'!$Y5:$AC5,\"contact had a positive test in another service\")","v":0},{"$f":"COUNTIF('data entry'!$Y5:$AC5,\"contact had a chlamydia test, but result not known\")","v":0},{"$f":"COUNTIF('data entry'!$Y5:$AC5,\"record made that contact informed of risk of chlamydia infection, but not known to have had a chlamydia test\")","v":0},{"$f":"COUNTIF('data entry'!$Y5:$AC5,\"contact not known to have been informed of risk of chlamydia infection\")","v":0},{"$f":"COUNTIF('data entry'!$Y5:$AC5,\"contact treated but not tested\")","v":0},{"$f":"COUNTIF('data entry'!$Y5:$AC5,\"other\")","v":0}]
[{"$f":"'data entry'!D6","v":5},{"$f":"IF('data entry'!$O6=\"yes\",1,\"\")","v":""},{"$f":"IF('data entry'!P6>0,'data entry'!P6,\"0\")","v":"0"},{"$f":"IF(AND('data entry'!T6>0,$B6=1),'data entry'!T6,\"NA\")","v":"NA"},{"$f":"IF(AND('data entry'!U6>0,$B6=1),'data entry'!U6,\"NA\")","v":"NA"},{"$f":"IF(AND('data entry'!V6>0,$B6=1),'data entry'!V6,\"NA\")","v":"NA"},{"$f":"IF(AND('data entry'!W6>0,$B6=1),'data entry'!W6,\"NA\")","v":"NA"},{"$f":"IF(AND('data entry'!X6>0,$B6=1),'data entry'!X6,\"NA\")","v":"NA"},"NA","NA","NA","NA","NA",0,0,0,0,0,0,0,{"$f":"'data entry'!R6","v":0},null,{"$f":"COUNTIF('data entry'!$Y6:$AC6,\"contact already known to have chlamydia infection\")","v":0},{"$f":"COUNTIF('data entry'!$Y6:$AC6,\"contact had a negative test in your service\")","v":0},{"$f":"COUNTIF('data entry'!$Y6:$AC6,\"contact had a negative test in another service\")","v":0},{"$f":"COUNTIF('data entry'!$Y6:$AC6,\"contact had a positive test in your service\")","v":0},{"$f":"COUNTIF('data entry'!$Y6:$AC6,\"contact had a positive test in another service\")","v":0},{"$f":"COUNTIF('data entry'!$Y6:$AC6,\"contact had a chlamydia test, but result not known\")","v":0},{"$f":"COUNTIF('data entry'!$Y6:$AC6,\"record made that contact informed of risk of chlamydia infection, but not known to have had a chlamydia test\")","v":0},{"$f":"COUNTIF('data entry'!$Y6:$AC6,\"contact not known to have been informed of risk of chlamydia infection\")","v":0},{"$f":"COUNTIF('data entry'!$Y6:$AC6,\"contact treated but not tested\")","v":0},{"$f":"COUNTIF('data entry'!$Y6:$AC6,\"other\")","v":0}]
[{"$f":"'data entry'!D7","v":6},{"$f":"IF('data entry'!$O7=\"yes\",1,\"\")","v":""},{"$f":"IF('data entry'!P7>0,'data entry'!P7,\"0\")","v":"0"},{"$f":"IF(AND('data entry'!T7>0,$B7=1),'data entry'!T7,\"NA\")","v":"NA"},{"$f":"IF(AND('data entry'!U7>0,$B7=1),'data entry'!U7,\"NA\")","v":"NA"},{"$f":"IF(AND('data entry'!V7>0,$B7=1),'data entry'!V7,\"NA\")","v":"NA"},{"$f":"IF(AND('data entry'!W7>0,$B7=1),'data entry'!W7,\"NA\")","v":"NA"},{"$f":"IF(AND('data entry'!X7>0,$B7=1),'data entry'!X7,\"NA\")","v":"NA"},"NA","NA","NA","NA","NA",0,0,0,0,0,0,0,{"$f":"'data entry'!R7","v":0},null,{"$f":"COUNTIF('data entry'!$Y7:$AC7,\"contact already known to have chlamydia infection\")","v":0},{"$f":"COUNTIF('data entry'!$Y7:$AC7,\"contact had a negative test in your service\")","v":0},{"$f":"COUNTIF('data entry'!$Y7:$AC7,\"contact had a negative test in another service\")","v":0},{"$f":"COUNTIF('data entry'!$Y7:$AC7,\"contact had a positive test in your service\")","v":0},{"$f":"COUNTIF('data entry'!$Y7:$AC7,\"contact had a positive test in another service\")","v":0},{"$f":"COUNTIF('data entry'!$Y7:$AC7,\"contact had a chlamydia test, but result not known\")","v":0},{"$f":"COUNTIF('data entry'!$Y7:$AC7,\"record made that contact informed of risk of chlamydia infection, but not known to have had a chlamydia test\")","v":0},{"$f":"COUNTIF('data entry'!$Y7:$AC7,\"contact not known to have been informed of risk of chlamydia infection\")","v":0},{"$f":"COUNTIF('data entry'!$Y7:$AC7,\"contact treated but not tested\")","v":0},{"$f":"COUNTIF('data entry'!$Y7:$AC7,\"other\")","v":0}]
[{"$f":"'data entry'!D8","v":7},{"$f":"IF('data entry'!$O8=\"yes\",1,\"\")","v":""},{"$f":"IF('data entry'!P8>0,'data entry'!P8,\"0\")","v":"0"},{"$f":"IF(AND('data entry'!T8>0,$B8=1),'data entry'!T8,\"NA\")","v":"NA"},{"$f":"IF(AND('data entry'!U8>0,$B8=1),'data entry'!U8,\"NA\")","v":"NA"},{"$f":"IF(AND('data entry'!V8>0,$B8=1),'data entry'!V8,\"NA\")","v":"NA"},{"$f":"IF(AND('data entry'!W8>0,$B8=1),'data entry'!W8,\"NA\")","v":"NA"},{"$f":"IF(AND('data entry'!X8>0,$B8=1),'data entry'!X8,\"NA\")","v":"NA"},"NA","NA","NA","NA","NA",0,0,0,0,0,0,0,{"$f":"'data entry'!R8","v":0},null,{"$f":"COUNTIF('data entry'!$Y8:$AC8,\"contact already known to have chlamydia infection\")","v":0},{"$f":"COUNTIF('data entry'!$Y8:$AC8,\"contact had a negative test in your service\")","v":0},{"$f":"COUNTIF('data entry'!$Y8:$AC8,\"contact had a negative test in another service\")","v":0},{"$f":"COUNTIF('data entry'!$Y8:$AC8,\"contact had a positive test in your service\")","v":0},{"$f":"COUNTIF('data entry'!$Y8:$AC8,\"contact had a positive test in another service\")","v":0},{"$f":"COUNTIF('data entry'!$Y8:$AC8,\"contact had a chlamydia test, but result not known\")","v":0},{"$f":"COUNTIF('data entry'!$Y8:$AC8,\"record made that contact informed of risk of chlamydia infection, but not known to have had a chlamydia test\")","v":0},{"$f":"COUNTIF('data entry'!$Y8:$AC8,\"contact not known to have been informed of risk of chlamydia infection\")","v":0},{"$f":"COUNTIF('data entry'!$Y8:$AC8,\"contact treated but not tested\")","v":0},{"$f":"COUNTIF('data entry'!$Y8:$AC8,\"other\")","v":0}]
[{"$f":"'data entry'!D9","v":8},{"$f":"IF('data entry'!$O9=\"yes\",1,\"\")","v":""},{"$f":"IF('data entry'!P9>0,'data entry'!P9,\"0\")","v":"0"},{"$f":"IF(AND('data entry'!T9>0,$B9=1),'data entry'!T9,\"NA\")","v":"NA"},{"$f":"IF(AND('data entry'!U9>0,$B9=1),'data entry'!U9,\"NA\")","v":"NA"},{"$f":"IF(AND('data entry'!V9>0,$B9=1),'data entry'!V9,\"NA\")","v":"NA"},{"$f":"IF(AND('data entry'!W9>0,$B9=1),'data entry'!W9,\"NA\")","v":"NA"},{"$f":"IF(AND('data entry'!X9>0,$B9=1),'data entry'!X9,\"NA\")","v":"NA"},"NA","NA","NA","NA","NA",0,0,0,0,0,0,0,{"$f":"'data entry'!R9","v":0},null,{"$f":"COUNTIF('data entry'!$Y9:$AC9,\"contact already known to have chlamydia infection\")","v":0},{"$f":"COUNTIF('data entry'!$Y9:$AC9,\"contact had a negative test in your service\")","v":0},{"$f":"COUNTIF('data entry'!$Y9:$AC9,\"contact had a negative test in another service\")","v":0},{"$f":"COUNTIF('data entry'!$Y9:$AC9,\"contact had a positive test in your service\")","v":0},{"$f":"COUNTIF('data entry'!$Y9:$AC9,\"contact had a positive test in another service\")","v":0},{"$f":"COUNTIF('data entry'!$Y9:$AC9,\"contact had a chlamydia test, but result not known\")","v":0},{"$f":"COUNTIF('data entry'!$Y9:$AC9,\"record made that contact informed of risk of chlamydia infection, but not known to have had a chlamydia test\")","v":0},{"$f":"COUNTIF('data entry'!$Y9:$AC9,\"contact not known to have been informed of risk of chlamydia infection\")","v":0},{"$f":"COUNTIF('data entry'!$Y9:$AC9,\"contact treated but not tested\")","v":0},{"$f":"COUNTIF('data entry'!$Y9:$AC9,\"other\")","v":0}]
[{"$f":"'data entry'!D10","v":9},{"$f":"IF('data entry'!$O10=\"yes\",1,\"\")","v":""},{"$f":"IF('data entry'!P10>0,'data entry'!P10,\"0\")","v":"0"},{"$f":"IF(AND('data entry'!T10>0,$B10=1),'data entry'!T10,\"NA\")","v":"NA"},{"$f":"IF(AND('data entry'!U10>0,$B10=1),'data entry'!U10,\"NA\")","v":"NA"},{"$f":"IF(AND('data entry'!V10>0,$B10=1),'data entry'!V10,\"NA\")","v":"NA"},{"$f":"IF(AND('data entry'!W10>0,$B10=1),'data entry'!W10,\"NA\")","v":"NA"},{"$f":"IF(AND('data entry'!X10>0,$B10=1),'data entry'!X10,\"NA\")","v":"NA"},"NA","NA","NA","NA","NA",0,0,0,0,0,0,0,{"$f":"'data entry'!R10","v":0},null,{"$f":"COUNTIF('data entry'!$Y10:$AC10,\"contact already known to have chlamydia infection\")","v":0},{"$f":"COUNTIF('data entry'!$Y10:$AC10,\"contact had a negative test in your service\")","v":0},{"$f":"COUNTIF('data entry'!$Y10:$AC10,\"contact had a negative test in another service\")","v":0},{"$f":"COUNTIF('data entry'!$Y10:$AC10,\"contact had a positive test in your service\")","v":0},{"$f":"COUNTIF('data entry'!$Y10:$AC10,\"contact had a positive test in another service\")","v":0},{"$f":"COUNTIF('data entry'!$Y10:$AC10,\"contact had a chlamydia test, but result not known\")","v":0},{"$f":"COUNTIF('data entry'!$Y10:$AC10,\"record made that contact informed of risk of chlamydia infection, but not known to have had a chlamydia test\")","v":0},{"$f":"COUNTIF('data entry'!$Y10:$AC10,\"contact not known to have been informed of risk of chlamydia infection\")","v":0},{"$f":"COUNTIF('data entry'!$Y10:$AC10,\"contact treated but not tested\")","v":0},{"$f":"COUNTIF('data entry'!$Y10:$AC10,\"other\")","v":0}]
[{"$f":"'data entry'!D11","v":10},{"$f":"IF('data entry'!$O11=\"yes\",1,\"\")","v":""},{"$f":"IF('data entry'!P11>0,'data entry'!P11,\"0\")","v":"0"},{"$f":"IF(AND('data entry'!T11>0,$B11=1),'data entry'!T11,\"NA\")","v":"NA"},{"$f":"IF(AND('data entry'!U11>0,$B11=1),'data entry'!U11,\"NA\")","v":"NA"},{"$f":"IF(AND('data entry'!V11>0,$B11=1),'data entry'!V11,\"NA\")","v":"NA"},{"$f":"IF(AND('data entry'!W11>0,$B11=1),'data entry'!W11,\"NA\")","v":"NA"},{"$f":"IF(AND('data entry'!X11>0,$B11=1),'data entry'!X11,\"NA\")","v":"NA"},"NA","NA","NA","NA","NA",0,0,0,0,0,0,0,{"$f":"'data entry'!R11","v":0},null,{"$f":"COUNTIF('data entry'!$Y11:$AC11,\"contact already known to have chlamydia infection\")","v":0},{"$f":"COUNTIF('data entry'!$Y11:$AC11,\"contact had a negative test in your service\")","v":0},{"$f":"COUNTIF('data entry'!$Y11:$AC11,\"contact had a negative test in another service\")","v":0},{"$f":"COUNTIF('data entry'!$Y11:$AC11,\"contact had a positive test in your service\")","v":0},{"$f":"COUNTIF('data entry'!$Y11:$AC11,\"contact had a positive test in another service\")","v":0},{"$f":"COUNTIF('data entry'!$Y11:$AC11,\"contact had a chlamydia test, but result not known\")","v":0},{"$f":"COUNTIF('data entry'!$Y11:$AC11,\"record made that contact informed of risk of chlamydia infection, but not known to have had a chlamydia test\")","v":0},{"$f":"COUNTIF('data entry'!$Y11:$AC11,\"contact not known to have been informed of risk of chlamydia infection\")","v":0},{"$f":"COUNTIF('data entry'!$Y11:$AC11,\"contact treated but not tested\")","v":0},{"$f":"COUNTIF('data entry'!$Y11:$AC11,\"other\")","v":0}]
[{"$f":"'data entry'!D12","v":11},{"$f":"IF('data entry'!$O12=\"yes\",1,\"\")","v":""},{"$f":"IF('data entry'!P12>0,'data entry'!P12,\"0\")","v":"0"},{"$f":"IF(AND('data entry'!T12>0,$B12=1),'data entry'!T12,\"NA\")","v":"NA"},{"$f":"IF(AND('data entry'!U12>0,$B12=1),'data entry'!U12,\"NA\")","v":"NA"},{"$f":"IF(AND('data entry'!V12>0,$B12=1),'data entry'!V12,\"NA\")","v":"NA"},{"$f":"IF(AND('data entry'!W12>0,$B12=1),'data entry'!W12,\"NA\")","v":"NA"},{"$f":"IF(AND('data entry'!X12>0,$B12=1),'data entry'!X12,\"NA\")","v":"NA"},"NA","NA","NA","NA","NA",0,0,0,0,0,0,0,{"$f":"'data entry'!R12","v":0},null,{"$f":"COUNTIF('data entry'!$Y12:$AC12,\"contact already known to have chlamydia infection\")","v":0},{"$f":"COUNTIF('data entry'!$Y12:$AC12,\"contact had a negative test in your service\")","v":0},{"$f":"COUNTIF('data entry'!$Y12:$AC12,\"contact had a negative test in another service\")","v":0},{"$f":"COUNTIF('data entry'!$Y12:$AC12,\"contact had a positive test in your service\")","v":0},{"$f":"COUNTIF('data entry'!$Y12:$AC12,\"contact had a positive test in another service\")","v":0},{"$f":"COUNTIF('data entry'!$Y12:$AC12,\"contact had a chlamydia test, but result not known\")","v":0},{"$f":"COUNTIF('data entry'!$Y12:$AC12,\"record made that contact informed of risk of chlamydia infection, but not known to have had a chlamydia test\")","v":0},{"$f":"COUNTIF('data entry'!$Y12:$AC12,\"contact not known to have been informed of risk of chlamydia infection\")","v":0},{"$f":"COUNTIF('data entry'!$Y12:$AC12,\"contact treated but not tested\")","v":0},{"$f":"COUNTIF('data entry'!$Y12:$AC12,\"other\")","v":0}]
[{"$f":"'data entry'!D13","v":12},{"$f":"IF('data entry'!$O13=\"yes\",1,\"\")","v":""},{"$f":"IF('data entry'!P13>0,'data entry'!P13,\"0\")","v":"0"},{"$f":"IF(AND('data entry'!T13>0,$B13=1),'data entry'!T13,\"NA\")","v":"NA"},{"$f":"IF(AND('data entry'!U13>0,$B13=1),'data entry'!U13,\"NA\")","v":"NA"},{"$f":"IF(AND('data entry'!V13>0,$B13=1),'data entry'!V13,\"NA\")","v":"NA"},{"$f":"IF(AND('data entry'!W13>0,$B13=1),'data entry'!W13,\"NA\")","v":"NA"},{"$f":"IF(AND('data entry'!X13>0,$B13=1),'data entry'!X13,\"NA\")","v":"NA"},"NA","NA","NA","NA","NA",0,0,0,0,0,0,0,{"$f":"'data entry'!R13","v":0},null,{"$f":"COUNTIF('data entry'!$Y13:$AC13,\"contact already known to have chlamydia infection\")","v":0},{"$f":"COUNTIF('data entry'!$Y13:$AC13,\"contact had a negative test in your service\")","v":0},{"$f":"COUNTIF('data entry'!$Y13:$AC13,\"contact had a negative test in another service\")","v":0},{"$f":"COUNTIF('data entry'!$Y13:$AC13,\"contact had a positive test in your service\")","v":0},{"$f":"COUNTIF('data entry'!$Y13:$AC13,\"contact had a positive test in another service\")","v":0},{"$f":"COUNTIF('data entry'!$Y13:$AC13,\"contact had a chlamydia test, but result not known\")","v":0},{"$f":"COUNTIF('data entry'!$Y13:$AC13,\"record made that contact informed of risk of chlamydia infection, but not known to have had a chlamydia test\")","v":0},{"$f":"COUNTIF('data entry'!$Y13:$AC13,\"contact not known to have been informed of risk of chlamydia infection\")","v":0},{"$f":"COUNTIF('data entry'!$Y13:$AC13,\"contact treated but not tested\")","v":0},{"$f":"COUNTIF('data entry'!$Y13:$AC13,\"other\")","v":0}]
[{"$f":"'data entry'!D14","v":13},{"$f":"IF('data entry'!$O14=\"yes\",1,\"\")","v":""},{"$f":"IF('data entry'!P14>0,'data entry'!P14,\"0\")","v":"0"},{"$f":"IF(AND('data entry'!T14>0,$B14=1),'data entry'!T14,\"NA\")","v":"NA"},{"$f":"IF(AND('data entry'!U14>0,$B14=1),'data entry'!U14,\"NA\")","v":"NA"},{"$f":"IF(AND('data entry'!V14>0,$B14=1),'data entry'!V14,\"NA\")","v":"NA"},{"$f":"IF(AND('data entry'!W14>0,$B14=1),'data entry'!W14,\"NA\")","v":"NA"},{"$f":"IF(AND('data entry'!X14>0,$B14=1),'data entry'!X14,\"NA\")","v":"NA"},"NA","NA","NA","NA","NA",0,0,0,0,0,0,0,{"$f":"'data entry'!R14","v":0},null,{"$f":"COUNTIF('data entry'!$Y14:$AC14,\"contact already known to have chlamydia infection\")","v":0},{"$f":"COUNTIF('data entry'!$Y14:$AC14,\"contact had a negative test in your service\")","v":0},{"$f":"COUNTIF('data entry'!$Y14:$AC14,\"contact had a negative test in another service\")","v":0},{"$f":"COUNTIF('data entry'!$Y14:$AC14,\"contact had a positive test in your service\")","v":0},{"$f":"COUNTIF('data entry'!$Y14:$AC14,\"contact had a positive test in another service\")","v":0},{"$f":"COUNTIF('data entry'!$Y14:$AC14,\"contact had a chlamydia test, but result not known\")","v":0},{"$f":"COUNTIF('data entry'!$Y14:$AC14,\"record made that contact informed of risk of chlamydia infection, but not known to have had a chlamydia test\")","v":0},{"$f":"COUNTIF('data entry'!$Y14:$AC14,\"contact not known to have been informed of risk of chlamydia infection\")","v":0},{"$f":"COUNTIF('data entry'!$Y14:$AC14,\"contact treated but not tested\")","v":0},{"$f":"COUNTIF('data entry'!$Y14:$AC14,\"other\")","v":0}]
[{"$f":"'data entry'!D15","v":14},{"$f":"IF('data entry'!$O15=\"yes\",1,\"\")","v":""},{"$f":"IF('data entry'!P15>0,'data entry'!P15,\"0\")","v":"0"},{"$f":"IF(AND('data entry'!T15>0,$B15=1),'data entry'!T15,\"NA\")","v":"NA"},{"$f":"IF(AND('data entry'!U15>0,$B15=1),'data entry'!U15,\"NA\")","v":"NA"},{"$f":"IF(AND('data entry'!V15>0,$B15=1),'data entry'!V15,\"NA\")","v":"NA"},{"$f":"IF(AND('data entry'!W15>0,$B15=1),'data entry'!W15,\"NA\")","v":"NA"},{"$f":"IF(AND('data entry'!X15>0,$B15=1),'data entry'!X15,\"NA\")","v":"NA"},"NA","NA","NA","NA","NA",0,0,0,0,0,0,0,{"$f":"'data entry'!R15","v":0},null,{"$f":"COUNTIF('data entry'!$Y15:$AC15,\"contact already known to have chlamydia infection\")","v":0},{"$f":"COUNTIF('data entry'!$Y15:$AC15,\"contact had a negative test in your service\")","v":0},{"$f":"COUNTIF('data entry'!$Y15:$AC15,\"contact had a negative test in another service\")","v":0},{"$f":"COUNTIF('data entry'!$Y15:$AC15,\"contact had a positive test in your service\")","v":0},{"$f":"COUNTIF('data entry'!$Y15:$AC15,\"contact had a positive test in another service\")","v":0},{"$f":"COUNTIF('data entry'!$Y15:$AC15,\"contact had a chlamydia test, but result not known\")","v":0},{"$f":"COUNTIF('data entry'!$Y15:$AC15,\"record made that contact informed of risk of chlamydia infection, but not known to have had a chlamydia test\")","v":0},{"$f":"COUNTIF('data entry'!$Y15:$AC15,\"contact not known to have been informed of risk of chlamydia infection\")","v":0},{"$f":"COUNTIF('data entry'!$Y15:$AC15,\"contact treated but not tested\")","v":0},{"$f":"COUNTIF('data entry'!$Y15:$AC15,\"other\")","v":0}]
[{"$f":"'data entry'!D16","v":15},{"$f":"IF('data entry'!$O16=\"yes\",1,\"\")","v":""},{"$f":"IF('data entry'!P16>0,'data entry'!P16,\"0\")","v":"0"},{"$f":"IF(AND('data entry'!T16>0,$B16=1),'data entry'!T16,\"NA\")","v":"NA"},{"$f":"IF(AND('data entry'!U16>0,$B16=1),'data entry'!U16,\"NA\")","v":"NA"},{"$f":"IF(AND('data entry'!V16>0,$B16=1),'data entry'!V16,\"NA\")","v":"NA"},{"$f":"IF(AND('data entry'!W16>0,$B16=1),'data entry'!W16,\"NA\")","v":"NA"},{"$f":"IF(AND('data entry'!X16>0,$B16=1),'data entry'!X16,\"NA\")","v":"NA"},"NA","NA","NA","NA","NA",0,0,0,0,0,0,0,{"$f":"'data entry'!R16","v":0},null,{"$f":"COUNTIF('data entry'!$Y16:$AC16,\"contact already known to have chlamydia infection\")","v":0},{"$f":"COUNTIF('data entry'!$Y16:$AC16,\"contact had a negative test in your service\")","v":0},{"$f":"COUNTIF('data entry'!$Y16:$AC16,\"contact had a negative test in another service\")","v":0},{"$f":"COUNTIF('data entry'!$Y16:$AC16,\"contact had a positive test in your service\")","v":0},{"$f":"COUNTIF('data entry'!$Y16:$AC16,\"contact had a positive test in another service\")","v":0},{"$f":"COUNTIF('data entry'!$Y16:$AC16,\"contact had a chlamydia test, but result not known\")","v":0},{"$f":"COUNTIF('data entry'!$Y16:$AC16,\"record made that contact informed of risk of chlamydia infection, but not known to have had a chlamydia test\")","v":0},{"$f":"COUNTIF('data entry'!$Y16:$AC16,\"contact not known to have been informed of risk of chlamydia infection\")","v":0},{"$f":"COUNTIF('data entry'!$Y16:$AC16,\"contact treated but not tested\")","v":0},{"$f":"COUNTIF('data entry'!$Y16:$AC16,\"other\")","v":0}]
[{"$f":"'data entry'!D17","v":16},{"$f":"IF('data entry'!$O17=\"yes\",1,\"\")","v":""},{"$f":"IF('data entry'!P17>0,'data entry'!P17,\"0\")","v":"0"},{"$f":"IF(AND('data entry'!T17>0,$B17=1),'data entry'!T17,\"NA\")","v":"NA"},{"$f":"IF(AND('data entry'!U17>0,$B17=1),'data entry'!U17,\"NA\")","v":"NA"},{"$f":"IF(AND('data entry'!V17>0,$B17=1),'data entry'!V17,\"NA\")","v":"NA"},{"$f":"IF(AND('data entry'!W17>0,$B17=1),'data entry'!W17,\"NA\")","v":"NA"},{"$f":"IF(AND('data entry'!X17>0,$B17=1),'data entry'!X17,\"NA\")","v":"NA"},"NA","NA","NA","NA","NA",0,0,0,0,0,0,0,{"$f":"'data entry'!R17","v":0},null,{"$f":"COUNTIF('data entry'!$Y17:$AC17,\"contact already known to have chlamydia infection\")","v":0},{"$f":"COUNTIF('data entry'!$Y17:$AC17,\"contact had a negative test in your service\")","v":0},{"$f":"COUNTIF('data entry'!$Y17:$AC17,\"contact had a negative test in another service\")","v":0},{"$f":"COUNTIF('data entry'!$Y17:$AC17,\"contact had a positive test in your service\")","v":0},{"$f":"COUNTIF('data entry'!$Y17:$AC17,\"contact had a positive test in another service\")","v":0},{"$f":"COUNTIF('data entry'!$Y17:$AC17,\"contact had a chlamydia test, but result not known\")","v":0},{"$f":"COUNTIF('data entry'!$Y17:$AC17,\"record made that contact informed of risk of chlamydia infection, but not known to have had a chlamydia test\")","v":0},{"$f":"COUNTIF('data entry'!$Y17:$AC17,\"contact not known to have been informed of risk of chlamydia infection\")","v":0},{"$f":"COUNTIF('data entry'!$Y17:$AC17,\"contact treated but not tested\")","v":0},{"$f":"COUNTIF('data entry'!$Y17:$AC17,\"other\")","v":0}]
[{"$f":"'data entry'!D18","v":17},{"$f":"IF('data entry'!$O18=\"yes\",1,\"\")","v":""},{"$f":"IF('data entry'!P18>0,'data entry'!P18,\"0\")","v":"0"},{"$f":"IF(AND('data entry'!T18>0,$B18=1),'data entry'!T18,\"NA\")","v":"NA"},{"$f":"IF(AND('data entry'!U18>0,$B18=1),'data entry'!U18,\"NA\")","v":"NA"},{"$f":"IF(AND('data entry'!V18>0,$B18=1),'data entry'!V18,\"NA\")","v":"NA"},{"$f":"IF(AND('data entry'!W18>0,$B18=1),'data entry'!W18,\"NA\")","v":"NA"},{"$f":"IF(AND('data entry'!X18>0,$B18=1),'data entry'!X18,\"NA\")","v":"NA"},"NA","NA","NA","NA","NA",0,0,0,0,0,0,0,{"$f":"'data entry'!R18","v":0},null,{"$f":"COUNTIF('data entry'!$Y18:$AC18,\"contact already known to have chlamydia infection\")","v":0},{"$f":"COUNTIF('data entry'!$Y18:$AC18,\"contact had a negative test in your service\")","v":0},{"$f":"COUNTIF('data entry'!$Y18:$AC18,\"contact had a negative test in another service\")","v":0},{"$f":"COUNTIF('data entry'!$Y18:$AC18,\"contact had a positive test in your service\")","v":0},{"$f":"COUNTIF('data entry'!$Y18:$AC18,\"contact had a positive test in another service\")","v":0},{"$f":"COUNTIF('data entry'!$Y18:$AC18,\"contact had a chlamydia test, but result not known\")","v":0},{"$f":"COUNTIF('data entry'!$Y18:$AC18,\"record made that contact informed of risk of chlamydia infection, but not known to have had a chlamydia test\")","v":0},{"$f":"COUNTIF('data entry'!$Y18:$AC18,\"contact not known to have been informed of risk of chlamydia infection\")","v":0},{"$f":"COUNTIF('data entry'!$Y18:$AC18,\"contact treated but not tested\")","v":0},{"$f":"COUNTIF('data entry'!$Y18:$AC18,\"other\")","v":0}]
[{"$f":"'data entry'!D19","v":18},{"$f":"IF('data entry'!$O19=\"yes\",1,\"\")","v":""},{"$f":"IF('data entry'!P19>0,'data entry'!P19,\"0\")","v":"0"},{"$f":"IF(AND('data entry'!T19>0,$B19=1),'data entry'!T19,\"NA\")","v":"NA"},{"$f":"IF(AND('data entry'!U19>0,$B19=1),'data entry'!U19,\"NA\")","v":"NA"},{"$f":"IF(AND('data entry'!V19>0,$B19=1),'data entry'!V19,\"NA\")","v":"NA"},{"$f":"IF(AND('data entry'!W19>0,$B19=1),'data entry'!W19,\"NA\")","v":"NA"},{"$f":"IF(AND('data entry'!X19>0,$B19=1),'data entry'!X19,\"NA\")","v":"NA"},"NA","NA","NA","NA","NA",0,0,0,0,0,0,0,{"$f":"'data entry'!R19","v":0},null,{"$f":"COUNTIF('data entry'!$Y19:$AC19,\"contact already known to have chlamydia infection\")","v":0},{"$f":"COUNTIF('data entry'!$Y19:$AC19,\"contact had a negative test in your service\")","v":0},{"$f":"COUNTIF('data entry'!$Y19:$AC19,\"contact had a negative test in another service\")","v":0},{"$f":"COUNTIF('data entry'!$Y19:$AC19,\"contact had a positive test in your service\")","v":0},{"$f":"COUNTIF('data entry'!$Y19:$AC19,\"contact had a positive test in another service\")","v":0},{"$f":"COUNTIF('data entry'!$Y19:$AC19,\"contact had a chlamydia test, but result not known\")","v":0},{"$f":"COUNTIF('data entry'!$Y19:$AC19,\"record made that contact informed of risk of chlamydia infection, but not known to have had a chlamydia test\")","v":0},{"$f":"COUNTIF('data entry'!$Y19:$AC19,\"contact not known to have been informed of risk of chlamydia infection\")","v":0},{"$f":"COUNTIF('data entry'!$Y19:$AC19,\"contact treated but not tested\")","v":0},{"$f":"COUNTIF('data entry'!$Y19:$AC19,\"other\")","v":0}]
[{"$f":"'data entry'!D20","v":19},{"$f":"IF('data entry'!$O20=\"yes\",1,\"\")","v":""},{"$f":"IF('data entry'!P20>0,'data entry'!P20,\"0\")","v":"0"},{"$f":"IF(AND('data entry'!T20>0,$B20=1),'data entry'!T20,\"NA\")","v":"NA"},{"$f":"IF(AND('data entry'!U20>0,$B20=1),'data entry'!U20,\"NA\")","v":"NA"},{"$f":"IF(AND('data entry'!V20>0,$B20=1),'data entry'!V20,\"NA\")","v":"NA"},{"$f":"IF(AND('data entry'!W20>0,$B20=1),'data entry'!W20,\"NA\")","v":"NA"},{"$f":"IF(AND('data entry'!X20>0,$B20=1),'data entry'!X20,\"NA\")","v":"NA"},"NA","NA","NA","NA","NA",0,0,0,0,0,0,0,{"$f":"'data entry'!R20","v":0},null,{"$f":"COUNTIF('data entry'!$Y20:$AC20,\"contact already known to have chlamydia infection\")","v":0},{"$f":"COUNTIF('data entry'!$Y20:$AC20,\"contact had a negative test in your service\")","v":0},{"$f":"COUNTIF('data entry'!$Y20:$AC20,\"contact had a negative test in another service\")","v":0},{"$f":"COUNTIF('data entry'!$Y20:$AC20,\"contact had a positive test in your service\")","v":0},{"$f":"COUNTIF('data entry'!$Y20:$AC20,\"contact had a positive test in another service\")","v":0},{"$f":"COUNTIF('data entry'!$Y20:$AC20,\"contact had a chlamydia test, but result not known\")","v":0},{"$f":"COUNTIF('data entry'!$Y20:$AC20,\"record made that contact informed of risk of chlamydia infection, but not known to have had a chlamydia test\")","v":0},{"$f":"COUNTIF('data entry'!$Y20:$AC20,\"contact not known to have been informed of risk of chlamydia infection\")","v":0},{"$f":"COUNTIF('data entry'!$Y20:$AC20,\"contact treated but not tested\")","v":0},{"$f":"COUNTIF('data entry'!$Y20:$AC20,\"other\")","v":0}]
[{"$f":"'data entry'!D21","v":20},{"$f":"IF('data entry'!$O21=\"yes\",1,\"\")","v":""},{"$f":"IF('data entry'!P21>0,'data entry'!P21,\"0\")","v":"0"},{"$f":"IF(AND('data entry'!T21>0,$B21=1),'data entry'!T21,\"NA\")","v":"NA"},{"$f":"IF(AND('data entry'!U21>0,$B21=1),'data entry'!U21,\"NA\")","v":"NA"},{"$f":"IF(AND('data entry'!V21>0,$B21=1),'data entry'!V21,\"NA\")","v":"NA"},{"$f":"IF(AND('data entry'!W21>0,$B21=1),'data entry'!W21,\"NA\")","v":"NA"},{"$f":"IF(AND('data entry'!X21>0,$B21=1),'data entry'!X21,\"NA\")","v":"NA"},"NA","NA","NA","NA","NA",0,0,0,0,0,0,0,{"$f":"'data entry'!R21","v":0},null,{"$f":"COUNTIF('data entry'!$Y21:$AC21,\"contact already known to have chlamydia infection\")","v":0},{"$f":"COUNTIF('data entry'!$Y21:$AC21,\"contact had a negative test in your service\")","v":0},{"$f":"COUNTIF('data entry'!$Y21:$AC21,\"contact had a negative test in another service\")","v":0},{"$f":"COUNTIF('data entry'!$Y21:$AC21,\"contact had a positive test in your service\")","v":0},{"$f":"COUNTIF('data entry'!$Y21:$AC21,\"contact had a positive test in another service\")","v":0},{"$f":"COUNTIF('data entry'!$Y21:$AC21,\"contact had a chlamydia test, but result not known\")","v":0},{"$f":"COUNTIF('data entry'!$Y21:$AC21,\"record made that contact informed of risk of chlamydia infection, but not known to have had a chlamydia test\")","v":0},{"$f":"COUNTIF('data entry'!$Y21:$AC21,\"contact not known to have been informed of risk of chlamydia infection\")","v":0},{"$f":"COUNTIF('data entry'!$Y21:$AC21,\"contact treated but not tested\")","v":0},{"$f":"COUNTIF('data entry'!$Y21:$AC21,\"other\")","v":0}]
[{"$f":"'data entry'!D22","v":21},{"$f":"IF('data entry'!$O22=\"yes\",1,\"\")","v":""},{"$f":"IF('data entry'!P22>0,'data entry'!P22,\"0\")","v":"0"},{"$f":"IF(AND('data entry'!T22>0,$B22=1),'data entry'!T22,\"NA\")","v":"NA"},{"$f":"IF(AND('data entry'!U22>0,$B22=1),'data entry'!U22,\"NA\")","v":"NA"},{"$f":"IF(AND('data entry'!V22>0,$B22=1),'data entry'!V22,\"NA\")","v":"NA"},{"$f":"IF(AND('data entry'!W22>0,$B22=1),'data entry'!W22,\"NA\")","v":"NA"},{"$f":"IF(AND('data entry'!X22>0,$B22=1),'data entry'!X22,\"NA\")","v":"NA"},"NA","NA","NA","NA","NA",0,0,0,0,0,0,0,{"$f":"'data entry'!R22","v":0},null,{"$f":"COUNTIF('data entry'!$Y22:$AC22,\"contact already known to have chlamydia infection\")","v":0},{"$f":"COUNTIF('data entry'!$Y22:$AC22,\"contact had a negative test in your service\")","v":0},{"$f":"COUNTIF('data entry'!$Y22:$AC22,\"contact had a negative test in another service\")","v":0},{"$f":"COUNTIF('data entry'!$Y22:$AC22,\"contact had a positive test in your service\")","v":0},{"$f":"COUNTIF('data entry'!$Y22:$AC22,\"contact had a positive test in another service\")","v":0},{"$f":"COUNTIF('data entry'!$Y22:$AC22,\"contact had a chlamydia test, but result not known\")","v":0},{"$f":"COUNTIF('data entry'!$Y22:$AC22,\"record made that contact informed of risk of chlamydia infection, but not known to have had a chlamydia test\")","v":0},{"$f":"COUNTIF('data entry'!$Y22:$AC22,\"contact not known to have been informed of risk of chlamydia infection\")","v":0},{"$f":"COUNTIF('data entry'!$Y22:$AC22,\"contact treated but not tested\")","v":0},{"$f":"COUNTIF('data entry'!$Y22:$AC22,\"other\")","v":0}]
[{"$f":"'data entry'!D23","v":22},{"$f":"IF('data entry'!$O23=\"yes\",1,\"\")","v":""},{"$f":"IF('data entry'!P23>0,'data entry'!P23,\"0\")","v":"0"},{"$f":"IF(AND('data entry'!T23>0,$B23=1),'data entry'!T23,\"NA\")","v":"NA"},{"$f":"IF(AND('data entry'!U23>0,$B23=1),'data entry'!U23,\"NA\")","v":"NA"},{"$f":"IF(AND('data entry'!V23>0,$B23=1),'data entry'!V23,\"NA\")","v":"NA"},{"$f":"IF(AND('data entry'!W23>0,$B23=1),'data entry'!W23,\"NA\")","v":"NA"},{"$f":"IF(AND('data entry'!X23>0,$B23=1),'data entry'!X23,\"NA\")","v":"NA"},"NA","NA","NA","NA","NA",0,0,0,0,0,0,0,{"$f":"'data entry'!R23","v":0},null,{"$f":"COUNTIF('data entry'!$Y23:$AC23,\"contact already known to have chlamydia infection\")","v":0},{"$f":"COUNTIF('data entry'!$Y23:$AC23,\"contact had a negative test in your service\")","v":0},{"$f":"COUNTIF('data entry'!$Y23:$AC23,\"contact had a negative test in another service\")","v":0},{"$f":"COUNTIF('data entry'!$Y23:$AC23,\"contact had a positive test in your service\")","v":0},{"$f":"COUNTIF('data entry'!$Y23:$AC23,\"contact had a positive test in another service\")","v":0},{"$f":"COUNTIF('data entry'!$Y23:$AC23,\"contact had a chlamydia test, but result not known\")","v":0},{"$f":"COUNTIF('data entry'!$Y23:$AC23,\"record made that contact informed of risk of chlamydia infection, but not known to have had a chlamydia test\")","v":0},{"$f":"COUNTIF('data entry'!$Y23:$AC23,\"contact not known to have been informed of risk of chlamydia infection\")","v":0},{"$f":"COUNTIF('data entry'!$Y23:$AC23,\"contact treated but not tested\")","v":0},{"$f":"COUNTIF('data entry'!$Y23:$AC23,\"other\")","v":0}]
[{"$f":"'data entry'!D24","v":23},{"$f":"IF('data entry'!$O24=\"yes\",1,\"\")","v":""},{"$f":"IF('data entry'!P24>0,'data entry'!P24,\"0\")","v":"0"},{"$f":"IF(AND('data entry'!T24>0,$B24=1),'data entry'!T24,\"NA\")","v":"NA"},{"$f":"IF(AND('data entry'!U24>0,$B24=1),'data entry'!U24,\"NA\")","v":"NA"},{"$f":"IF(AND('data entry'!V24>0,$B24=1),'data entry'!V24,\"NA\")","v":"NA"},{"$f":"IF(AND('data entry'!W24>0,$B24=1),'data entry'!W24,\"NA\")","v":"NA"},{"$f":"IF(AND('data entry'!X24>0,$B24=1),'data entry'!X24,\"NA\")","v":"NA"},"NA","NA","NA","NA","NA",0,0,0,0,0,0,0,{"$f":"'data entry'!R24","v":0},null,{"$f":"COUNTIF('data entry'!$Y24:$AC24,\"contact already known to have chlamydia infection\")","v":0},{"$f":"COUNTIF('data entry'!$Y24:$AC24,\"contact had a negative test in your service\")","v":0},{"$f":"COUNTIF('data entry'!$Y24:$AC24,\"contact had a negative test in another service\")","v":0},{"$f":"COUNTIF('data entry'!$Y24:$AC24,\"contact had a positive test in your service\")","v":0},{"$f":"COUNTIF('data entry'!$Y24:$AC24,\"contact had a positive test in another service\")","v":0},{"$f":"COUNTIF('data entry'!$Y24:$AC24,\"contact had a chlamydia test, but result not known\")","v":0},{"$f":"COUNTIF('data entry'!$Y24:$AC24,\"record made that contact informed of risk of chlamydia infection, but not known to have had a chlamydia test\")","v":0},{"$f":"COUNTIF('data entry'!$Y24:$AC24,\"contact not known to have been informed of risk of chlamydia infection\")","v":0},{"$f":"COUNTIF('data entry'!$Y24:$AC24,\"contact treated but not tested\")","v":0},{"$f":"COUNTIF('data entry'!$Y24:$AC24,\"other\")","v":0}]
[{"$f":"'data entry'!D25","v":24},{"$f":"IF('data entry'!$O25=\"yes\",1,\"\")","v":""},{"$f":"IF('data entry'!P25>0,'data entry'!P25,\"0\")","v":"0"},{"$f":"IF(AND('data entry'!T25>0,$B25=1),'data entry'!T25,\"NA\")","v":"NA"},{"$f":"IF(AND('data entry'!U25>0,$B25=1),'data entry'!U25,\"NA\")","v":"NA"},{"$f":"IF(AND('data entry'!V25>0,$B25=1),'data entry'!V25,\"NA\")","v":"NA"},{"$f":"IF(AND('data entry'!W25>0,$B25=1),'data entry'!W25,\"NA\")","v":"NA"},{"$f":"IF(AND('data entry'!X25>0,$B25=1),'data entry'!X25,\"NA\")","v":"NA"},"NA","NA","NA","NA","NA",0,0,0,0,0,0,0,{"$f":"'data entry'!R25","v":0},null,{"$f":"COUNTIF('data entry'!$Y25:$AC25,\"contact already known to have chlamydia infection\")","v":0},{"$f":"COUNTIF('data entry'!$Y25:$AC25,\"contact had a negative test in your service\")","v":0},{"$f":"COUNTIF('data entry'!$Y25:$AC25,\"contact had a negative test in another service\")","v":0},{"$f":"COUNTIF('data entry'!$Y25:$AC25,\"contact had a positive test in your service\")","v":0},{"$f":"COUNTIF('data entry'!$Y25:$AC25,\"contact had a positive test in another service\")","v":0},{"$f":"COUNTIF('data entry'!$Y25:$AC25,\"contact had a chlamydia test, but result not known\")","v":0},{"$f":"COUNTIF('data entry'!$Y25:$AC25,\"record made that contact informed of risk of chlamydia infection, but not known to have had a chlamydia test\")","v":0},{"$f":"COUNTIF('data entry'!$Y25:$AC25,\"contact not known to have been informed of risk of chlamydia infection\")","v":0},{"$f":"COUNTIF('data entry'!$Y25:$AC25,\"contact treated but not tested\")","v":0},{"$f":"COUNTIF('data entry'!$Y25:$AC25,\"other\")","v":0}]
[{"$f":"'data entry'!D26","v":25},{"$f":"IF('data entry'!$O26=\"yes\",1,\"\")","v":""},{"$f":"IF('data entry'!P26>0,'data entry'!P26,\"0\")","v":"0"},{"$f":"IF(AND('data entry'!T26>0,$B26=1),'data entry'!T26,\"NA\")","v":"NA"},{"$f":"IF(AND('data entry'!U26>0,$B26=1),'data entry'!U26,\"NA\")","v":"NA"},{"$f":"IF(AND('data entry'!V26>0,$B26=1),'data entry'!V26,\"NA\")","v":"NA"},{"$f":"IF(AND('data entry'!W26>0,$B26=1),'data entry'!W26,\"NA\")","v":"NA"},{"$f":"IF(AND('data entry'!X26>0,$B26=1),'data entry'!X26,\"NA\")","v":"NA"},"NA","NA","NA","NA","NA",0,0,0,0,0,0,0,{"$f":"'data entry'!R26","v":0},null,{"$f":"COUNTIF('data entry'!$Y26:$AC26,\"contact already known to have chlamydia infection\")","v":0},{"$f":"COUNTIF('data entry'!$Y26:$AC26,\"contact had a negative test in your service\")","v":0},{"$f":"COUNTIF('data entry'!$Y26:$AC26,\"contact had a negative test in another service\")","v":0},{"$f":"COUNTIF('data entry'!$Y26:$AC26,\"contact had a positive test in your service\")","v":0},{"$f":"COUNTIF('data entry'!$Y26:$AC26,\"contact had a positive test in another service\")","v":0},{"$f":"COUNTIF('data entry'!$Y26:$AC26,\"contact had a chlamydia test, but result not known\")","v":0},{"$f":"COUNTIF('data entry'!$Y26:$AC26,\"record made that contact informed of risk of chlamydia infection, but not known to have had a chlamydia test\")","v":0},{"$f":"COUNTIF('data entry'!$Y26:$AC26,\"contact not known to have been informed of risk of chlamydia infection\")","v":0},{"$f":"COUNTIF('data entry'!$Y26:$AC26,\"contact treated but not tested\")","v":0},{"$f":"COUNTIF('data entry'!$Y26:$AC26,\"other\")","v":0}]
[{"$f":"'data entry'!D27","v":26},{"$f":"IF('data entry'!$O27=\"yes\",1,\"\")","v":""},{"$f":"IF('data entry'!P27>0,'data entry'!P27,\"0\")","v":"0"},{"$f":"IF(AND('data entry'!T27>0,$B27=1),'data entry'!T27,\"NA\")","v":"NA"},{"$f":"IF(AND('data entry'!U27>0,$B27=1),'data entry'!U27,\"NA\")","v":"NA"},{"$f":"IF(AND('data entry'!V27>0,$B27=1),'data entry'!V27,\"NA\")","v":"NA"},{"$f":"IF(AND('data entry'!W27>0,$B27=1),'data entry'!W27,\"NA\")","v":"NA"},{"$f":"IF(AND('data entry'!X27>0,$B27=1),'data entry'!X27,\"NA\")","v":"NA"},"NA","NA","NA","NA","NA",0,0,0,0,0,0,0,{"$f":"'data entry'!R27","v":0},null,{"$f":"COUNTIF('data entry'!$Y27:$AC27,\"contact already known to have chlamydia infection\")","v":0},{"$f":"COUNTIF('data entry'!$Y27:$AC27,\"contact had a negative test in your service\")","v":0},{"$f":"COUNTIF('data entry'!$Y27:$AC27,\"contact had a negative test in another service\")","v":0},{"$f":"COUNTIF('data entry'!$Y27:$AC27,\"contact had a positive test in your service\")","v":0},{"$f":"COUNTIF('data entry'!$Y27:$AC27,\"contact had a positive test in another service\")","v":0},{"$f":"COUNTIF('data entry'!$Y27:$AC27,\"contact had a chlamydia test, but result not known\")","v":0},{"$f":"COUNTIF('data entry'!$Y27:$AC27,\"record made that contact informed of risk of chlamydia infection, but not known to have had a chlamydia test\")","v":0},{"$f":"COUNTIF('data entry'!$Y27:$AC27,\"contact not known to have been informed of risk of chlamydia infection\")","v":0},{"$f":"COUNTIF('data entry'!$Y27:$AC27,\"contact treated but not tested\")","v":0},{"$f":"COUNTIF('data entry'!$Y27:$AC27,\"other\")","v":0}]
[{"$f":"'data entry'!D28","v":27},{"$f":"IF('data entry'!$O28=\"yes\",1,\"\")","v":""},{"$f":"IF('data entry'!P28>0,'data entry'!P28,\"0\")","v":"0"},{"$f":"IF(AND('data entry'!T28>0,$B28=1),'data entry'!T28,\"NA\")","v":"NA"},{"$f":"IF(AND('data entry'!U28>0,$B28=1),'data entry'!U28,\"NA\")","v":"NA"},{"$f":"IF(AND('data entry'!V28>0,$B28=1),'data entry'!V28,\"NA\")","v":"NA"},{"$f":"IF(AND('data entry'!W28>0,$B28=1),'data entry'!W28,\"NA\")","v":"NA"},{"$f":"IF(AND('data entry'!X28>0,$B28=1),'data entry'!X28,\"NA\")","v":"NA"},"NA","NA","NA","NA","NA",0,0,0,0,0,0,0,{"$f":"'data entry'!R28","v":0},null,{"$f":"COUNTIF('data entry'!$Y28:$AC28,\"contact already known to have chlamydia infection\")","v":0},{"$f":"COUNTIF('data entry'!$Y28:$AC28,\"contact had a negative test in your service\")","v":0},{"$f":"COUNTIF('data entry'!$Y28:$AC28,\"contact had a negative test in another service\")","v":0},{"$f":"COUNTIF('data entry'!$Y28:$AC28,\"contact had a positive test in your service\")","v":0},{"$f":"COUNTIF('data entry'!$Y28:$AC28,\"contact had a positive test in another service\")","v":0},{"$f":"COUNTIF('data entry'!$Y28:$AC28,\"contact had a chlamydia test, but result not known\")","v":0},{"$f":"COUNTIF('data entry'!$Y28:$AC28,\"record made that contact informed of risk of chlamydia infection, but not known to have had a chlamydia test\")","v":0},{"$f":"COUNTIF('data entry'!$Y28:$AC28,\"contact not known to have been informed of risk of chlamydia infection\")","v":0},{"$f":"COUNTIF('data entry'!$Y28:$AC28,\"contact treated but not tested\")","v":0},{"$f":"COUNTIF('data entry'!$Y28:$AC28,\"other\")","v":0}]
[{"$f":"'data entry'!D29","v":28},{"$f":"IF('data entry'!$O29=\"yes\",1,\"\")","v":""},{"$f":"IF('data entry'!P29>0,'data entry'!P29,\"0\")","v":"0"},{"$f":"IF(AND('data entry'!T29>0,$B29=1),'data entry'!T29,\"NA\")","v":"NA"},{"$f":"IF(AND('data entry'!U29>0,$B29=1),'data entry'!U29,\"NA\")","v":"NA"},{"$f":"IF(AND('data entry'!V29>0,$B29=1),'data entry'!V29,\"NA\")","v":"NA"},{"$f":"IF(AND('data entry'!W29>0,$B29=1),'data entry'!W29,\"NA\")","v":"NA"},{"$f":"IF(AND('data entry'!X29>0,$B29=1),'data entry'!X29,\"NA\")","v":"NA"},"NA","NA","NA","NA","NA",0,0,0,0,0,0,0,{"$f":"'data entry'!R29","v":0},null,{"$f":"COUNTIF('data entry'!$Y29:$AC29,\"contact already known to have chlamydia infection\")","v":0},{"$f":"COUNTIF('data entry'!$Y29:$AC29,\"contact had a negative test in your service\")","v":0},{"$f":"COUNTIF('data entry'!$Y29:$AC29,\"contact had a negative test in another service\")","v":0},{"$f":"COUNTIF('data entry'!$Y29:$AC29,\"contact had a positive test in your service\")","v":0},{"$f":"COUNTIF('data entry'!$Y29:$AC29,\"contact had a positive test in another service\")","v":0},{"$f":"COUNTIF('data entry'!$Y29:$AC29,\"contact had a chlamydia test, but result not known\")","v":0},{"$f":"COUNTIF('data entry'!$Y29:$AC29,\"record made that contact informed of risk of chlamydia infection, but not known to have had a chlamydia test\")","v":0},{"$f":"COUNTIF('data entry'!$Y29:$AC29,\"contact not known to have been informed of risk of chlamydia infection\")","v":0},{"$f":"COUNTIF('data entry'!$Y29:$AC29,\"contact treated but not tested\")","v":0},{"$f":"COUNTIF('data entry'!$Y29:$AC29,\"other\")","v":0}]
[{"$f":"'data entry'!D30","v":29},{"$f":"IF('data entry'!$O30=\"yes\",1,\"\")","v":""},{"$f":"IF('data entry'!P30>0,'data entry'!P30,\"0\")","v":"0"},{"$f":"IF(AND('data entry'!T30>0,$B30=1),'data entry'!T30,\"NA\")","v":"NA"},{"$f":"IF(AND('data entry'!U30>0,$B30=1),'data entry'!U30,\"NA\")","v":"NA"},{"$f":"IF(AND('data entry'!V30>0,$B30=1),'data entry'!V30,\"NA\")","v":"NA"},{"$f":"IF(AND('data entry'!W30>0,$B30=1),'data entry'!W30,\"NA\")","v":"NA"},{"$f":"IF(AND('data entry'!X30>0,$B30=1),'data entry'!X30,\"NA\")","v":"NA"},"NA","NA","NA","NA","NA",0,0,0,0,0,0,0,{"$f":"'data entry'!R30","v":0},null,{"$f":"COUNTIF('data entry'!$Y30:$AC30,\"contact already known to have chlamydia infection\")","v":0},{"$f":"COUNTIF('data entry'!$Y30:$AC30,\"contact had a negative test in your service\")","v":0},{"$f":"COUNTIF('data entry'!$Y30:$AC30,\"contact had a negative test in another service\")","v":0},{"$f":"COUNTIF('data entry'!$Y30:$AC30,\"contact had a positive test in your service\")","v":0},{"$f":"COUNTIF('data entry'!$Y30:$AC30,\"contact had a positive test in another service\")","v":0},{"$f":"COUNTIF('data entry'!$Y30:$AC30,\"contact had a chlamydia test, but result not known\")","v":0},{"$f":"COUNTIF('data entry'!$Y30:$AC30,\"record made that contact informed of risk of chlamydia infection, but not known to have had a chlamydia test\")","v":0},{"$f":"COUNTIF('data entry'!$Y30:$AC30,\"contact not known to have been informed of risk of chlamydia infection\")","v":0},{"$f":"COUNTIF('data entry'!$Y30:$AC30,\"contact treated but not tested\")","v":0},{"$f":"COUNTIF('data entry'!$Y30:$AC30,\"other\")","v":0}]
[{"$f":"'data entry'!D31","v":30},{"$f":"IF('data entry'!$O31=\"yes\",1,\"\")","v":""},{"$f":"IF('data entry'!P31>0,'data entry'!P31,\"0\")","v":"0"},{"$f":"IF(AND('data entry'!T31>0,$B31=1),'data entry'!T31,\"NA\")","v":"NA"},{"$f":"IF(AND('data entry'!U31>0,$B31=1),'data entry'!U31,\"NA\")","v":"NA"},{"$f":"IF(AND('data entry'!V31>0,$B31=1),'data entry'!V31,\"NA\")","v":"NA"},{"$f":"IF(AND('data entry'!W31>0,$B31=1),'data entry'!W31,\"NA\")","v":"NA"},{"$f":"IF(AND('data entry'!X31>0,$B31=1),'data entry'!X31,\"NA\")","v":"NA"},"NA","NA","NA","NA","NA",0,0,0,0,0,0,0,{"$f":"'data entry'!R31","v":0},null,{"$f":"COUNTIF('data entry'!$Y31:$AC31,\"contact already known to have chlamydia infection\")","v":0},{"$f":"COUNTIF('data entry'!$Y31:$AC31,\"contact had a negative test in your service\")","v":0},{"$f":"COUNTIF('data entry'!$Y31:$AC31,\"contact had a negative test in another service\")","v":0},{"$f":"COUNTIF('data entry'!$Y31:$AC31,\"contact had a positive test in your service\")","v":0},{"$f":"COUNTIF('data entry'!$Y31:$AC31,\"contact had a positive test in another service\")","v":0},{"$f":"COUNTIF('data entry'!$Y31:$AC31,\"contact had a chlamydia test, but result not known\")","v":0},{"$f":"COUNTIF('data entry'!$Y31:$AC31,\"record made that contact informed of risk of chlamydia infection, but not known to have had a chlamydia test\")","v":0},{"$f":"COUNTIF('data entry'!$Y31:$AC31,\"contact not known to have been informed of risk of chlamydia infection\")","v":0},{"$f":"COUNTIF('data entry'!$Y31:$AC31,\"contact treated but not tested\")","v":0},{"$f":"COUNTIF('data entry'!$Y31:$AC31,\"other\")","v":0}]
[{"$f":"'data entry'!D32","v":31},{"$f":"IF('data entry'!$O32=\"yes\",1,\"\")","v":""},{"$f":"IF('data entry'!P32>0,'data entry'!P32,\"0\")","v":"0"},{"$f":"IF(AND('data entry'!T32>0,$B32=1),'data entry'!T32,\"NA\")","v":"NA"},{"$f":"IF(AND('data entry'!U32>0,$B32=1),'data entry'!U32,\"NA\")","v":"NA"},{"$f":"IF(AND('data entry'!V32>0,$B32=1),'data entry'!V32,\"NA\")","v":"NA"},{"$f":"IF(AND('data entry'!W32>0,$B32=1),'data entry'!W32,\"NA\")","v":"NA"},{"$f":"IF(AND('data entry'!X32>0,$B32=1),'data entry'!X32,\"NA\")","v":"NA"},"NA","NA","NA","NA","NA",0,0,0,0,0,0,0,{"$f":"'data entry'!R32","v":0},null,{"$f":"COUNTIF('data entry'!$Y32:$AC32,\"contact already known to have chlamydia infection\")","v":0},{"$f":"COUNTIF('data entry'!$Y32:$AC32,\"contact had a negative test in your service\")","v":0},{"$f":"COUNTIF('data entry'!$Y32:$AC32,\"contact had a negative test in another service\")","v":0},{"$f":"COUNTIF('data entry'!$Y32:$AC32,\"contact had a positive test in your service\")","v":0},{"$f":"COUNTIF('data entry'!$Y32:$AC32,\"contact had a positive test in another service\")","v":0},{"$f":"COUNTIF('data entry'!$Y32:$AC32,\"contact had a chlamydia test, but result not known\")","v":0},{"$f":"COUNTIF('data entry'!$Y32:$AC32,\"record made that contact informed of risk of chlamydia infection, but not known to have had a chlamydia test\")","v":0},{"$f":"COUNTIF('data entry'!$Y32:$AC32,\"contact not known to have been informed of risk of chlamydia infection\")","v":0},{"$f":"COUNTIF('data entry'!$Y32:$AC32,\"contact treated but not tested\")","v":0},{"$f":"COUNTIF('data entry'!$Y32:$AC32,\"other\")","v":0}]
[{"$f":"'data entry'!D33","v":32},{"$f":"IF('data entry'!$O33=\"yes\",1,\"\")","v":""},{"$f":"IF('data entry'!P33>0,'data entry'!P33,\"0\")","v":"0"},{"$f":"IF(AND('data entry'!T33>0,$B33=1),'data entry'!T33,\"NA\")","v":"NA"},{"$f":"IF(AND('data entry'!U33>0,$B33=1),'data entry'!U33,\"NA\")","v":"NA"},{"$f":"IF(AND('data entry'!V33>0,$B33=1),'data entry'!V33,\"NA\")","v":"NA"},{"$f":"IF(AND('data entry'!W33>0,$B33=1),'data entry'!W33,\"NA\")","v":"NA"},{"$f":"IF(AND('data entry'!X33>0,$B33=1),'data entry'!X33,\"NA\")","v":"NA"},"NA","NA","NA","NA","NA",0,0,0,0,0,0,0,{"$f":"'data entry'!R33","v":0},null,{"$f":"COUNTIF('data entry'!$Y33:$AC33,\"contact already known to have chlamydia infection\")","v":0},{"$f":"COUNTIF('data entry'!$Y33:$AC33,\"contact had a negative test in your service\")","v":0},{"$f":"COUNTIF('data entry'!$Y33:$AC33,\"contact had a negative test in another service\")","v":0},{"$f":"COUNTIF('data entry'!$Y33:$AC33,\"contact had a positive test in your service\")","v":0},{"$f":"COUNTIF('data entry'!$Y33:$AC33,\"contact had a positive test in another service\")","v":0},{"$f":"COUNTIF('data entry'!$Y33:$AC33,\"contact had a chlamydia test, but result not known\")","v":0},{"$f":"COUNTIF('data entry'!$Y33:$AC33,\"record made that contact informed of risk of chlamydia infection, but not known to have had a chlamydia test\")","v":0},{"$f":"COUNTIF('data entry'!$Y33:$AC33,\"contact not known to have been informed of risk of chlamydia infection\")","v":0},{"$f":"COUNTIF('data entry'!$Y33:$AC33,\"contact treated but not tested\")","v":0},{"$f":"COUNTIF('data entry'!$Y33:$AC33,\"other\")","v":0}]
[{"$f":"'data entry'!D34","v":33},{"$f":"IF('data entry'!$O34=\"yes\",1,\"\")","v":""},{"$f":"IF('data entry'!P34>0,'data entry'!P34,\"0\")","v":"0"},{"$f":"IF(AND('data entry'!T34>0,$B34=1),'data entry'!T34,\"NA\")","v":"NA"},{"$f":"IF(AND('data entry'!U34>0,$B34=1),'data entry'!U34,\"NA\")","v":"NA"},{"$f":"IF(AND('data entry'!V34>0,$B34=1),'data entry'!V34,\"NA\")","v":"NA"},{"$f":"IF(AND('data entry'!W34>0,$B34=1),'data entry'!W34,\"NA\")","v":"NA"},{"$f":"IF(AND('data entry'!X34>0,$B34=1),'data entry'!X34,\"NA\")","v":"NA"},"NA","NA","NA","NA","NA",0,0,0,0,0,0,0,{"$f":"'data entry'!R34","v":0},null,{"$f":"COUNTIF('data entry'!$Y34:$AC34,\"contact already known to have chlamydia infection\")","v":0},{"$f":"COUNTIF('data entry'!$Y34:$AC34,\"contact had a negative test in your service\")","v":0},{"$f":"COUNTIF('data entry'!$Y34:$AC34,\"contact had a negative test in another service\")","v":0},{"$f":"COUNTIF('data entry'!$Y34:$AC34,\"contact had a positive test in your service\")","v":0},{"$f":"COUNTIF('data entry'!$Y34:$AC34,\"contact had a positive test in another service\")","v":0},{"$f":"COUNTIF('data entry'!$Y34:$AC34,\"contact had a chlamydia test, but result not known\")","v":0},{"$f":"COUNTIF('data entry'!$Y34:$AC34,\"record made that contact informed of risk of chlamydia infection, but not known to have had a chlamydia test\")","v":0},{"$f":"COUNTIF('data entry'!$Y34:$AC34,\"contact not known to have been informed of risk of chlamydia infection\")","v":0},{"$f":"COUNTIF('data entry'!$Y34:$AC34,\"contact treated but not tested\")","v":0},{"$f":"COUNTIF('data entry'!$Y34:$AC34,\"other\")","v":0}]
[{"$f":"'data entry'!D35","v":34},{"$f":"IF('data entry'!$O35=\"yes\",1,\"\")","v":""},{"$f":"IF('data entry'!P35>0,'data entry'!P35,\"0\")","v":"0"},{"$f":"IF(AND('data entry'!T35>0,$B35=1),'data entry'!T35,\"NA\")","v":"NA"},{"$f":"IF(AND('data entry'!U35>0,$B35=1),'data entry'!U35,\"NA\")","v":"NA"},{"$f":"IF(AND('data entry'!V35>0,$B35=1),'data entry'!V35,\"NA\")","v":"NA"},{"$f":"IF(AND('data entry'!W35>0,$B35=1),'data entry'!W35,\"NA\")","v":"NA"},{"$f":"IF(AND('data entry'!X35>0,$B35=1),'data entry'!X35,\"NA\")","v":"NA"},"NA","NA","NA","NA","NA",0,0,0,0,0,0,0,{"$f":"'data entry'!R35","v":0},null,{"$f":"COUNTIF('data entry'!$Y35:$AC35,\"contact already known to have chlamydia infection\")","v":0},{"$f":"COUNTIF('data entry'!$Y35:$AC35,\"contact had a negative test in your service\")","v":0},{"$f":"COUNTIF('data entry'!$Y35:$AC35,\"contact had a negative test in another service\")","v":0},{"$f":"COUNTIF('data entry'!$Y35:$AC35,\"contact had a positive test in your service\")","v":0},{"$f":"COUNTIF('data entry'!$Y35:$AC35,\"contact had a positive test in another service\")","v":0},{"$f":"COUNTIF('data entry'!$Y35:$AC35,\"contact had a chlamydia test, but result not known\")","v":0},{"$f":"COUNTIF('data entry'!$Y35:$AC35,\"record made that contact informed of risk of chlamydia infection, but not known to have had a chlamydia test\")","v":0},{"$f":"COUNTIF('data entry'!$Y35:$AC35,\"contact not known to have been informed of risk of chlamydia infection\")","v":0},{"$f":"COUNTIF('data entry'!$Y35:$AC35,\"contact treated but not tested\")","v":0},{"$f":"COUNTIF('data entry'!$Y35:$AC35,\"other\")","v":0}]
[{"$f":"'data entry'!D36","v":35},{"$f":"IF('data entry'!$O36=\"yes\",1,\"\")","v":""},{"$f":"IF('data entry'!P36>0,'data entry'!P36,\"0\")","v":"0"},{"$f":"IF(AND('data entry'!T36>0,$B36=1),'data entry'!T36,\"NA\")","v":"NA"},{"$f":"IF(AND('data entry'!U36>0,$B36=1),'data entry'!U36,\"NA\")","v":"NA"},{"$f":"IF(AND('data entry'!V36>0,$B36=1),'data entry'!V36,\"NA\")","v":"NA"},{"$f":"IF(AND('data entry'!W36>0,$B36=1),'data entry'!W36,\"NA\")","v":"NA"},{"$f":"IF(AND('data entry'!X36>0,$B36=1),'data entry'!X36,\"NA\")","v":"NA"},"NA","NA","NA","NA","NA",0,0,0,0,0,0,0,{"$f":"'data entry'!R36","v":0},null,{"$f":"COUNTIF('data entry'!$Y36:$AC36,\"contact already known to have chlamydia infection\")","v":0},{"$f":"COUNTIF('data entry'!$Y36:$AC36,\"contact had a negative test in your service\")","v":0},{"$f":"COUNTIF('data entry'!$Y36:$AC36,\"contact had a negative test in another service\")","v":0},{"$f":"COUNTIF('data entry'!$Y36:$AC36,\"contact had a positive test in your service\")","v":0},{"$f":"COUNTIF('data entry'!$Y36:$AC36,\"contact had a positive test in another service\")","v":0},{"$f":"COUNTIF('data entry'!$Y36:$AC36,\"contact had a chlamydia test, but result not known\")","v":0},{"$f":"COUNTIF('data entry'!$Y36:$AC36,\"record made that contact informed of risk of chlamydia infection, but not known to have had a chlamydia test\")","v":0},{"$f":"COUNTIF('data entry'!$Y36:$AC36,\"contact not known to have been informed of risk of chlamydia infection\")","v":0},{"$f":"COUNTIF('data entry'!$Y36:$AC36,\"contact treated but not tested\")","v":0},{"$f":"COUNTIF('data entry'!$Y36:$AC36,\"other\")","v":0}]
[{"$f":"'data entry'!D37","v":36},{"$f":"IF('data entry'!$O37=\"yes\",1,\"\")","v":""},{"$f":"IF('data entry'!P37>0,'data entry'!P37,\"0\")","v":"0"},{"$f":"IF(AND('data entry'!T37>0,$B37=1),'data entry'!T37,\"NA\")","v":"NA"},{"$f":"IF(AND('data entry'!U37>0,$B37=1),'data entry'!U37,\"NA\")","v":"NA"},{"$f":"IF(AND('data entry'!V37>0,$B37=1),'data entry'!V37,\"NA\")","v":"NA"},{"$f":"IF(AND('data entry'!W37>0,$B37=1),'data entry'!W37,\"NA\")","v":"NA"},{"$f":"IF(AND('data entry'!X37>0,$B37=1),'data entry'!X37,\"NA\")","v":"NA"},"NA","NA","NA","NA","NA",0,0,0,0,0,0,0,{"$f":"'data entry'!R37","v":0},null,{"$f":"COUNTIF('data entry'!$Y37:$AC37,\"contact already known to have chlamydia infection\")","v":0},{"$f":"COUNTIF('data entry'!$Y37:$AC37,\"contact had a negative test in your service\")","v":0},{"$f":"COUNTIF('data entry'!$Y37:$AC37,\"contact had a negative test in another service\")","v":0},{"$f":"COUNTIF('data entry'!$Y37:$AC37,\"contact had a positive test in your service\")","v":0},{"$f":"COUNTIF('data entry'!$Y37:$AC37,\"contact had a positive test in another service\")","v":0},{"$f":"COUNTIF('data entry'!$Y37:$AC37,\"contact had a chlamydia test, but result not known\")","v":0},{"$f":"COUNTIF('data entry'!$Y37:$AC37,\"record made that contact informed of risk of chlamydia infection, but not known to have had a chlamydia test\")","v":0},{"$f":"COUNTIF('data entry'!$Y37:$AC37,\"contact not known to have been informed of risk of chlamydia infection\")","v":0},{"$f":"COUNTIF('data entry'!$Y37:$AC37,\"contact treated but not tested\")","v":0},{"$f":"COUNTIF('data entry'!$Y37:$AC37,\"other\")","v":0}]
[{"$f":"'data entry'!D38","v":37},{"$f":"IF('data entry'!$O38=\"yes\",1,\"\")","v":""},{"$f":"IF('data entry'!P38>0,'data entry'!P38,\"0\")","v":"0"},{"$f":"IF(AND('data entry'!T38>0,$B38=1),'data entry'!T38,\"NA\")","v":"NA"},{"$f":"IF(AND('data entry'!U38>0,$B38=1),'data entry'!U38,\"NA\")","v":"NA"},{"$f":"IF(AND('data entry'!V38>0,$B38=1),'data entry'!V38,\"NA\")","v":"NA"},{"$f":"IF(AND('data entry'!W38>0,$B38=1),'data entry'!W38,\"NA\")","v":"NA"},{"$f":"IF(AND('data entry'!X38>0,$B38=1),'data entry'!X38,\"NA\")","v":"NA"},"NA","NA","NA","NA","NA",0,0,0,0,0,0,0,{"$f":"'data entry'!R38","v":0},null,{"$f":"COUNTIF('data entry'!$Y38:$AC38,\"contact already known to have chlamydia infection\")","v":0},{"$f":"COUNTIF('data entry'!$Y38:$AC38,\"contact had a negative test in your service\")","v":0},{"$f":"COUNTIF('data entry'!$Y38:$AC38,\"contact had a negative test in another service\")","v":0},{"$f":"COUNTIF('data entry'!$Y38:$AC38,\"contact had a positive test in your service\")","v":0},{"$f":"COUNTIF('data entry'!$Y38:$AC38,\"contact had a positive test in another service\")","v":0},{"$f":"COUNTIF('data entry'!$Y38:$AC38,\"contact had a chlamydia test, but result not known\")","v":0},{"$f":"COUNTIF('data entry'!$Y38:$AC38,\"record made that contact informed of risk of chlamydia infection, but not known to have had a chlamydia test\")","v":0},{"$f":"COUNTIF('data entry'!$Y38:$AC38,\"contact not known to have been informed of risk of chlamydia infection\")","v":0},{"$f":"COUNTIF('data entry'!$Y38:$AC38,\"contact treated but not tested\")","v":0},{"$f":"COUNTIF('data entry'!$Y38:$AC38,\"other\")","v":0}]
[{"$f":"'data entry'!D39","v":38},{"$f":"IF('data entry'!$O39=\"yes\",1,\"\")","v":""},{"$f":"IF('data entry'!P39>0,'data entry'!P39,\"0\")","v":"0"},{"$f":"IF(AND('data entry'!T39>0,$B39=1),'data entry'!T39,\"NA\")","v":"NA"},{"$f":"IF(AND('data entry'!U39>0,$B39=1),'data entry'!U39,\"NA\")","v":"NA"},{"$f":"IF(AND('data entry'!V39>0,$B39=1),'data entry'!V39,\"NA\")","v":"NA"},{"$f":"IF(AND('data entry'!W39>0,$B39=1),'data entry'!W39,\"NA\")","v":"NA"},{"$f":"IF(AND('data entry'!X39>0,$B39=1),'data entry'!X39,\"NA\")","v":"NA"},"NA","NA","NA","NA","NA",0,0,0,0,0,0,0,{"$f":"'data entry'!R39","v":0},null,{"$f":"COUNTIF('data entry'!$Y39:$AC39,\"contact already known to have chlamydia infection\")","v":0},{"$f":"COUNTIF('data entry'!$Y39:$AC39,\"contact had a negative test in your service\")","v":0},{"$f":"COUNTIF('data entry'!$Y39:$AC39,\"contact had a negative test in another service\")","v":0},{"$f":"COUNTIF('data entry'!$Y39:$AC39,\"contact had a positive test in your service\")","v":0},{"$f":"COUNTIF('data entry'!$Y39:$AC39,\"contact had a positive test in another service\")","v":0},{"$f":"COUNTIF('data entry'!$Y39:$AC39,\"contact had a chlamydia test, but result not known\")","v":0},{"$f":"COUNTIF('data entry'!$Y39:$AC39,\"record made that contact informed of risk of chlamydia infection, but not known to have had a chlamydia test\")","v":0},{"$f":"COUNTIF('data entry'!$Y39:$AC39,\"contact not known to have been informed of risk of chlamydia infection\")","v":0},{"$f":"COUNTIF('data entry'!$Y39:$AC39,\"contact treated but not tested\")","v":0},{"$f":"COUNTIF('data entry'!$Y39:$AC39,\"other\")","v":0}]
[{"$f":"'data entry'!D40","v":39},{"$f":"IF('data entry'!$O40=\"yes\",1,\"\")","v":""},{"$f":"IF('data entry'!P40>0,'data entry'!P40,\"0\")","v":"0"},{"$f":"IF(AND('data entry'!T40>0,$B40=1),'data entry'!T40,\"NA\")","v":"NA"},{"$f":"IF(AND('data entry'!U40>0,$B40=1),'data entry'!U40,\"NA\")","v":"NA"},{"$f":"IF(AND('data entry'!V40>0,$B40=1),'data entry'!V40,\"NA\")","v":"NA"},{"$f":"IF(AND('data entry'!W40>0,$B40=1),'data entry'!W40,\"NA\")","v":"NA"},{"$f":"IF(AND('data entry'!X40>0,$B40=1),'data entry'!X40,\"NA\")","v":"NA"},"NA","NA","NA","NA","NA",0,0,0,0,0,0,0,{"$f":"'data entry'!R40","v":0},null,{"$f":"COUNTIF('data entry'!$Y40:$AC40,\"contact already known to have chlamydia infection\")","v":0},{"$f":"COUNTIF('data entry'!$Y40:$AC40,\"contact had a negative test in your service\")","v":0},{"$f":"COUNTIF('data entry'!$Y40:$AC40,\"contact had a negative test in another service\")","v":0},{"$f":"COUNTIF('data entry'!$Y40:$AC40,\"contact had a positive test in your service\")","v":0},{"$f":"COUNTIF('data entry'!$Y40:$AC40,\"contact had a positive test in another service\")","v":0},{"$f":"COUNTIF('data entry'!$Y40:$AC40,\"contact had a chlamydia test, but result not known\")","v":0},{"$f":"COUNTIF('data entry'!$Y40:$AC40,\"record made that contact informed of risk of chlamydia infection, but not known to have had a chlamydia test\")","v":0},{"$f":"COUNTIF('data entry'!$Y40:$AC40,\"contact not known to have been informed of risk of chlamydia infection\")","v":0},{"$f":"COUNTIF('data entry'!$Y40:$AC40,\"contact treated but not tested\")","v":0},{"$f":"COUNTIF('data entry'!$Y40:$AC40,\"other\")","v":0}]
[{"$f":"'data entry'!D41","v":40},{"$f":"IF('data entry'!$O41=\"yes\",1,\"\")","v":""},{"$f":"IF('data entry'!P41>0,'data entry'!P41,\"0\")","v":"0"},{"$f":"IF(AND('data entry'!T41>0,$B41=1),'data entry'!T41,\"NA\")","v":"NA"},{"$f":"IF(AND('data entry'!U41>0,$B41=1),'data entry'!U41,\"NA\")","v":"NA"},{"$f":"IF(AND('data entry'!V41>0,$B41=1),'data entry'!V41,\"NA\")","v":"NA"},{"$f":"IF(AND('data entry'!W41>0,$B41=1),'data entry'!W41,\"NA\")","v":"NA"},{"$f":"IF(AND('data entry'!X41>0,$B41=1),'data entry'!X41,\"NA\")","v":"NA"},"NA","NA","NA","NA","NA",0,0,0,0,0,0,0,{"$f":"'data entry'!R41","v":0},null,{"$f":"COUNTIF('data entry'!$Y41:$AC41,\"contact already known to have chlamydia infection\")","v":0},{"$f":"COUNTIF('data entry'!$Y41:$AC41,\"contact had a negative test in your service\")","v":0},{"$f":"COUNTIF('data entry'!$Y41:$AC41,\"contact had a negative test in another service\")","v":0},{"$f":"COUNTIF('data entry'!$Y41:$AC41,\"contact had a positive test in your service\")","v":0},{"$f":"COUNTIF('data entry'!$Y41:$AC41,\"contact had a positive test in another service\")","v":0},{"$f":"COUNTIF('data entry'!$Y41:$AC41,\"contact had a chlamydia test, but result not known\")","v":0},{"$f":"COUNTIF('data entry'!$Y41:$AC41,\"record made that contact informed of risk of chlamydia infection, but not known to have had a chlamydia test\")","v":0},{"$f":"COUNTIF('data entry'!$Y41:$AC41,\"contact not known to have been informed of risk of chlamydia infection\")","v":0},{"$f":"COUNTIF('data entry'!$Y41:$AC41,\"contact treated but not tested\")","v":0},{"$f":"COUNTIF('data entry'!$Y41:$AC41,\"other\")","v":0}]

{"sheet":"re-testing calc","index":8,"n_rows":42,"n_cols":73,"rows_kept":42,"cut":false,"hidden":true,"merged":[[0,9,0,26],[0,27,0,44],[0,45,0,62],[0,6,0,8]]}
[null,null,null,null,null,null,"Offered a re-test",null,null,"Proportion of patients that re-tested of number of positive patients in selected period, based on treatment date",null,null,null,null,null,null,null,null,null,null,null,null,null,null,null,null,null,"Proportion of patients that re-tested of number of positive patients in selected period, based on test date",null,null,null,null,null,null,null,null,null,null,null,null,null,null,null,null,null,"Proportion of patients that re-tested of number of positive patients in selected period, total"]
["patient no","Number of days between date of treatment and date of re test","If treatment date unknown, number of days between date of test and date of re test","Total positives","positive male","positive female","if offered a re-test = 1, otherwise blank (all positives)","if offered a re-test = 1, otherwise blank (positive men)","if offered a re-test = 1, otherwise blank (positive women)","Retested with a treatment date","Total retests among men","Total retests among women","Re-tests less than 6 weeks, all","Re-tests less than 6 weeks, male","Re-tests less than 6 weeks, female","Re-tests between 6 and less than 10 weeks, all","Re-tests between 6 and less than 10 weeks, male","Re-tests between 6 and less than 10 weeks, female","Re-tests between 10 and less than 14 weeks, all","Re-tests between 10 and less than 14 weeks, male","Re-tests between 10 and less than 14 weeks, female","Re-tests between 10 and less than 26 weeks, all","Re-tests between 10 and less than 26 weeks, male","Re-tests between 10 and less than 26 weeks, female","Re-tests over 26 weeks, all","Re-tests over 26 weeks, male","Re-tests over 26 weeks, female","Retested but no treatment date","Total retests among men","Total retests among women","Re-tests less than 6 weeks, all","Re-tests less than 6 weeks, male","Re-tests less than 6 weeks, female","Re-tests between 6 and less than 10 weeks, all","Re-tests between 6 and less than 10 weeks, male","Re-tests between 6 and less than 10 weeks, female","Re-tests between 10 and less than 14 weeks, all","Re-tests between 10 and less than 14 weeks, male","Re-tests between 10 and less than 14 weeks, female","Re-tests between 10 and less than 26 weeks, all","Re-tests between 10 and less than 26 weeks, male","Re-tests between 10 and less than 26 weeks, female","Re-tests over 26 weeks, all","Re-tests over 26 weeks, male","Re-tests over 26 weeks, female","Total retests","Total retests among men","Total retests among women","Re-tests less than 6 weeks, all","Re-tests less than 6 weeks, male","Re-tests less than 6 weeks, female","Re-tests between 6 and less than 10 weeks, all","Re-tests between 6 and less than 10 weeks, male","Re-tests between 6 and less than 10 weeks, female","Re-tests between 10 and less than 14 weeks, all","Re-tests between 10 and less than 14 weeks, male","Re-tests between 10 and less than 14 weeks, female","Re-tests between 10 and less than 26 weeks, all","Re-tests between 10 and less than 26 weeks, male","Re-tests between 10 and less than 26 weeks, female","Re-tests over 26 weeks, all","Re-tests over 26 weeks, male","Re-tests over 26 weeks, female",null,"Positive at re-test, all, at any point in time","Positive at re-test, male, anytime","Positive at re-test, female, anytime","Positive at re-test, all, 10-14 weeks","Positive at re-test, male, 10-14 weeks","Positive at re-test, female, 10-14 weeks","Positive at re-test, all, 10-26 weeks","Positive at re-test, male, 10-26 weeks","Positive at re-test, female, 10-26 weeks"]
[{"$f":"'data entry'!D2","v":1},{"$f":"IF(ISBLANK('data entry'!AF2),\"no retest date\",(IF(ISBLANK('data entry'!L2),\"no treatment date\",DATEDIF('data entry'!L2,'data entry'!AF2,\"d\"))))","v":"no retest date"},{"$f":"IF(B3=\"no treatment date\",DATEDIF('data entry'!E2,'data entry'!AF2,\"d\"),\"\")","v":""},{"$f":"IF(AND('data entry'!E2<>\"\",'data entry'!J2=\"positive\"),1,\"\")","v":""},{"$f":"IF(AND('data entry'!E2<>\"\",'data entry'!F2= \"Male\",'data entry'!J2=\"positive\"),1,\"\")","v":""},{"$f":"IF(AND('data entry'!E2<>\"\",'data entry'!F2= \"Female\",'data entry'!J2=\"positive\"),1,\"\")","v":""},{"$f":"IF(AND('data entry'!J2=\"positive\",'data entry'!AD2=\"yes\"),1,\"\")","v":""},{"$f":"IF(AND('data entry'!J2=\"positive\",'data entry'!AD2=\"yes\",'data entry'!F2=\"Male\"),1,\"\")","v":""},{"$f":"IF(AND('data entry'!J2=\"positive\",'data entry'!AD2=\"yes\",'data entry'!F2=\"Female\"),1,\"\")","v":""},{"$f":"IF(AND('data entry'!E2<>\"\",'data entry'!AF2<>\"\",'data entry'!L2<>\"\"),1,\"\")","v":""},{"$f":"IF(AND(J3=1,'data entry'!F2= \"Male\"),1,\"\")","v":""},{"$f":"IF(AND(J3=1,'data entry'!F2= \"Female\"),1,\"\")","v":""},{"$f":"IF(AND(J3=1,B3<42),1,\"\")","v":""},{"$f":"IF(AND(K3=1,B3<42),1,\"\")","v":""},{"$f":"IF(AND(L3=1,B3<42),1,\"\")","v":""},{"$f":"IF(J3=1,IF(AND(B3>=42,B3<70),1,\"\"),\"\")","v":""},{"$f":"IF(K3=1,IF(AND(B3>=42,B3<70),1,\"\"),\"\")","v":""},{"$f":"IF(L3=1,IF(AND(B3>=42,B3<70),1,\"\"),\"\")","v":""},{"$f":"IF(J3=1,IF(AND(B3>=70,B3<98),1,\"\"),\"\")","v":""},{"$f":"IF(K3=1,IF(AND(B3>=70,B3<98),1,\"\"),\"\")","v":""},{"$f":"IF(L3=1,IF(AND(B3>=70,B3<98),1,\"\"),\"\")","v":""},{"$f":"IF(J3=1,IF(AND(B3>=70,B3<189),1,\"\"),\"\")","v":""},{"$f":"IF(K3=1,IF(AND(B3>=70,B3<189),1,\"\"),\"\")","v":""},{"$f":"IF(L3=1,IF(AND(B3>=70,B3<189),1,\"\"),\"\")","v":""},{"$f":"IF(AND(J3=1,B3>=189),1,\"\")","v":""},{"$f":"IF(AND(K3=1,B3>=189),1,\"\")","v":""},{"$f":"IF(AND(L3=1,B3>=189),1,\"\")","v":""},{"$f":"IF(AND('data entry'!E2<>\"\",'data entry'!AF2<>\"\",'data entry'!L2=\"\"),1,\"\")","v":""},{"$f":"IF(AND(AB3=1,'data entry'!F2= \"Male\",'data entry'!J2=\"positive\"),1,\"\")","v":""},{"$f":"IF(AND(AB3=1,'data entry'!F2= \"Female\",'data entry'!J2=\"positive\"),1,\"\")","v":""},{"$f":"IF(AND(AB3=1,C3<42),1,\"\")","v":""},{"$f":"IF(AND(AC3=1,C3<42),1,\"\")","v":""},{"$f":"IF(AND(AD3=1,C3<42),1,\"\")","v":""},{"$f":"IF(AB3=1,IF(AND(C3>=42,C3<70),1,\"\"),\"\")","v":""},{"$f":"IF(AC3=1,IF(AND(C3>=42,C3<70),1,\"\"),\"\")","v":""},{"$f":"IF(AD3=1,IF(AND(C3>=42,C3<70),1,\"\"),\"\")","v":""},{"$f":"IF(AB3=1,IF(AND(C3>=70,C3<98),1,\"\"),\"\")","v":""},{"$f":"IF(AC3=1,IF(AND(C3>=70,C3<98),1,\"\"),\"\")","v":""},{"$f":"IF(AD3=1,IF(AND(C3>=70,C3<98),1,\"\"),\"\")","v":""},{"$f":"IF(AB3=1,IF(AND(C3>=70,C3<189),1,\"\"),\"\")","v":""},{"$f":"IF(AC3=1,IF(AND(C3>=70,C3<189),1,\"\"),\"\")","v":""},{"$f":"IF(AD3=1,IF(AND(C3>=70,C3<189),1,\"\"),\"\")","v":""},{"$f":"IF(AND(AB3=1,C3>=189),1,\"\")","v":""},{"$f":"IF(AND(AC3=1,C3>=189),1,\"\")","v":""},{"$f":"IF(AND(AD3=1,C3>=189),1,\"\")","v":""},{"$f":"IF(OR(AB3=1,J3=1),1,\"\")","v":""},{"$f":"IF(OR(AC3=1,K3=1),1,\"\")","v":""},"",{"$f":"IF(OR(AE3=1,M3=1),1,\"\")","v":""},"",{"$f":"IF(OR(AG3=1,O3=1),1,\"\")","v":""},"",{"$f":"IF(OR(AI3=1,Q3=1),1,\"\")","v":""},"",{"$f":"IF(OR(AK3=1,S3=1),1,\"\")","v":""},"",{"$f":"IF(OR(AM3=1,U3=1),1,\"\")","v":""},{"$f":"IF(OR(AN3=1,V3=1),1,\"\")","v":""},{"$f":"IF(OR(AO3=1,W3=1),1,\"\")","v":""},"",{"$f":"IF(OR(AQ3=1,Y3=1),1,\"\")","v":""},"","",null,{"$f":"IF('data entry'!AH2=\"Positive\",1,\"\")","v":""},{"$f":"IF(AND('data entry'!AH2=\"Positive\",'data entry'!F2=\"Male\"),1,\"\")","v":""},{"$f":"IF(AND('data entry'!AH2=\"Positive\",'data entry'!F2=\"Female\"),1,\"\")","v":""},{"$f":"IF(AND('data entry'!AH2=\"Positive\",BC3=1),1,\"\")","v":""},{"$f":"IF(AND('data entry'!AH2=\"Positive\",'data entry'!F2=\"Male\",BD3=1),1,\"\")","v":""},{"$f":"IF(AND('data entry'!AH2=\"Positive\",'data entry'!F2=\"Female\",BE3=1),1,\"\")","v":""},{"$f":"IF(AND('data entry'!AH2=\"Positive\",BF3=1),1,\"\")","v":""},{"$f":"IF(AND('data entry'!AH2=\"Positive\",'data entry'!F2=\"Male\",BG3=1),1,\"\")","v":""},{"$f":"IF(AND('data entry'!AH2=\"Positive\",'data entry'!F2=\"Female\",BH3=1),1,\"\")","v":""}]
[{"$f":"'data entry'!D3","v":2},{"$f":"IF(ISBLANK('data entry'!AF3),\"no retest date\",(IF(ISBLANK('data entry'!L3),\"no treatment date\",DATEDIF('data entry'!L3,'data entry'!AF3,\"d\"))))","v":"no retest date"},{"$f":"IF(B4=\"no treatment date\",DATEDIF('data entry'!E3,'data entry'!AF3,\"d\"),\"\")","v":""},{"$f":"IF(AND('data entry'!E3<>\"\",'data entry'!J3=\"positive\"),1,\"\")","v":""},{"$f":"IF(AND('data entry'!E3<>\"\",'data entry'!F3= \"Male\",'data entry'!J3=\"positive\"),1,\"\")","v":""},{"$f":"IF(AND('data entry'!E3<>\"\",'data entry'!F3= \"Female\",'data entry'!J3=\"positive\"),1,\"\")","v":""},{"$f":"IF(AND('data entry'!J3=\"positive\",'data entry'!AD3=\"yes\"),1,\"\")","v":""},{"$f":"IF(AND('data entry'!J3=\"positive\",'data entry'!AD3=\"yes\",'data entry'!F3=\"Male\"),1,\"\")","v":""},{"$f":"IF(AND('data entry'!J3=\"positive\",'data entry'!AD3=\"yes\",'data entry'!F3=\"Female\"),1,\"\")","v":""},{"$f":"IF(AND('data entry'!E3<>\"\",'data entry'!AF3<>\"\",'data entry'!L3<>\"\"),1,\"\")","v":""},{"$f":"IF(AND(J4=1,'data entry'!F3= \"Male\"),1,\"\")","v":""},{"$f":"IF(AND(J4=1,'data entry'!F3= \"Female\"),1,\"\")","v":""},{"$f":"IF(AND(J4=1,B4<42),1,\"\")","v":""},{"$f":"IF(AND(K4=1,B4<42),1,\"\")","v":""},{"$f":"IF(AND(L4=1,B4<42),1,\"\")","v":""},{"$f":"IF(J4=1,IF(AND(B4>=42,B4<70),1,\"\"),\"\")","v":""},{"$f":"IF(K4=1,IF(AND(B4>=42,B4<70),1,\"\"),\"\")","v":""},{"$f":"IF(L4=1,IF(AND(B4>=42,B4<70),1,\"\"),\"\")","v":""},{"$f":"IF(J4=1,IF(AND(B4>=70,B4<98),1,\"\"),\"\")","v":""},{"$f":"IF(K4=1,IF(AND(B4>=70,B4<98),1,\"\"),\"\")","v":""},{"$f":"IF(L4=1,IF(AND(B4>=70,B4<98),1,\"\"),\"\")","v":""},{"$f":"IF(J4=1,IF(AND(B4>=70,B4<189),1,\"\"),\"\")","v":""},{"$f":"IF(K4=1,IF(AND(B4>=70,B4<189),1,\"\"),\"\")","v":""},{"$f":"IF(L4=1,IF(AND(B4>=70,B4<189),1,\"\"),\"\")","v":""},{"$f":"IF(AND(J4=1,B4>=189),1,\"\")","v":""},{"$f":"IF(AND(K4=1,B4>=189),1,\"\")","v":""},{"$f":"IF(AND(L4=1,B4>=189),1,\"\")","v":""},{"$f":"IF(AND('data entry'!E3<>\"\",'data entry'!AF3<>\"\",'data entry'!L3=\"\"),1,\"\")","v":""},{"$f":"IF(AND(AB4=1,'data entry'!F3= \"Male\",'data entry'!J3=\"positive\"),1,\"\")","v":""},{"$f":"IF(AND(AB4=1,'data entry'!F3= \"Female\",'data entry'!J3=\"positive\"),1,\"\")","v":""},{"$f":"IF(AND(AB4=1,C4<42),1,\"\")","v":""},{"$f":"IF(AND(AC4=1,C4<42),1,\"\")","v":""},{"$f":"IF(AND(AD4=1,C4<42),1,\"\")","v":""},{"$f":"IF(AB4=1,IF(AND(C4>=42,C4<70),1,\"\"),\"\")","v":""},{"$f":"IF(AC4=1,IF(AND(C4>=42,C4<70),1,\"\"),\"\")","v":""},{"$f":"IF(AD4=1,IF(AND(C4>=42,C4<70),1,\"\"),\"\")","v":""},{"$f":"IF(AB4=1,IF(AND(C4>=70,C4<98),1,\"\"),\"\")","v":""},{"$f":"IF(AC4=1,IF(AND(C4>=70,C4<98),1,\"\"),\"\")","v":""},{"$f":"IF(AD4=1,IF(AND(C4>=70,C4<98),1,\"\"),\"\")","v":""},{"$f":"IF(AB4=1,IF(AND(C4>=70,C4<189),1,\"\"),\"\")","v":""},{"$f":"IF(AC4=1,IF(AND(C4>=70,C4<189),1,\"\"),\"\")","v":""},{"$f":"IF(AD4=1,IF(AND(C4>=70,C4<189),1,\"\"),\"\")","v":""},{"$f":"IF(AND(AB4=1,C4>=189),1,\"\")","v":""},{"$f":"IF(AND(AC4=1,C4>=189),1,\"\")","v":""},{"$f":"IF(AND(AD4=1,C4>=189),1,\"\")","v":""},"","","","","","","","","","","","","","","","","","",null,{"$f":"IF('data entry'!AH3=\"Positive\",1,\"\")","v":""},{"$f":"IF(AND('data entry'!AH3=\"Positive\",'data entry'!F3=\"Male\"),1,\"\")","v":""},{"$f":"IF(AND('data entry'!AH3=\"Positive\",'data entry'!F3=\"Female\"),1,\"\")","v":""},{"$f":"IF(AND('data entry'!AH3=\"Positive\",BC4=1),1,\"\")","v":""},{"$f":"IF(AND('data entry'!AH3=\"Positive\",'data entry'!F3=\"Male\",BD4=1),1,\"\")","v":""},{"$f":"IF(AND('data entry'!AH3=\"Positive\",'data entry'!F3=\"Female\",BE4=1),1,\"\")","v":""},{"$f":"IF(AND('data entry'!AH3=\"Positive\",BF4=1),1,\"\")","v":""},{"$f":"IF(AND('data entry'!AH3=\"Positive\",'data entry'!F3=\"Male\",BG4=1),1,\"\")","v":""},{"$f":"IF(AND('data entry'!AH3=\"Positive\",'data entry'!F3=\"Female\",BH4=1),1,\"\")","v":""}]
[{"$f":"'data entry'!D4","v":3},{"$f":"IF(ISBLANK('data entry'!AF4),\"no retest date\",(IF(ISBLANK('data entry'!L4),\"no treatment date\",DATEDIF('data entry'!L4,'data entry'!AF4,\"d\"))))","v":"no retest date"},{"$f":"IF(B5=\"no treatment date\",DATEDIF('data entry'!E4,'data entry'!AF4,\"d\"),\"\")","v":""},{"$f":"IF(AND('data entry'!E4<>\"\",'data entry'!J4=\"positive\"),1,\"\")","v":""},{"$f":"IF(AND('data entry'!E4<>\"\",'data entry'!F4= \"Male\",'data entry'!J4=\"positive\"),1,\"\")","v":""},{"$f":"IF(AND('data entry'!E4<>\"\",'data entry'!F4= \"Female\",'data entry'!J4=\"positive\"),1,\"\")","v":""},{"$f":"IF(AND('data entry'!J4=\"positive\",'data entry'!AD4=\"yes\"),1,\"\")","v":""},{"$f":"IF(AND('data entry'!J4=\"positive\",'data entry'!AD4=\"yes\",'data entry'!F4=\"Male\"),1,\"\")","v":""},{"$f":"IF(AND('data entry'!J4=\"positive\",'data entry'!AD4=\"yes\",'data entry'!F4=\"Female\"),1,\"\")","v":""},{"$f":"IF(AND('data entry'!E4<>\"\",'data entry'!AF4<>\"\",'data entry'!L4<>\"\"),1,\"\")","v":""},{"$f":"IF(AND(J5=1,'data entry'!F4= \"Male\"),1,\"\")","v":""},{"$f":"IF(AND(J5=1,'data entry'!F4= \"Female\"),1,\"\")","v":""},"","","","","","","","","","","","",{"$f":"IF(AND(J5=1,B5>=189),1,\"\")","v":""},"","",{"$f":"IF(AND('data entry'!E4<>\"\",'data entry'!AF4<>\"\",'data entry'!L4=\"\"),1,\"\")","v":""},{"$f":"IF(AND(AB5=1,'data entry'!F4= \"Male\",'data entry'!J4=\"positive\"),1,\"\")","v":""},{"$f":"IF(AND(AB5=1,'data entry'!F4= \"Female\",'data entry'!J4=\"positive\"),1,\"\")","v":""},"","","","","","","","","","","","",{"$f":"IF(AND(AB5=1,C5>=189),1,\"\")","v":""},"","","","","","","","","","","","","","","","","","","","",null,{"$f":"IF('data entry'!AH4=\"Positive\",1,\"\")","v":""},{"$f":"IF(AND('data entry'!AH4=\"Positive\",'data entry'!F4=\"Male\"),1,\"\")","v":""},{"$f":"IF(AND('data entry'!AH4=\"Positive\",'data entry'!F4=\"Female\"),1,\"\")","v":""},{"$f":"IF(AND('data entry'!AH4=\"Positive\",BC5=1),1,\"\")","v":""},{"$f":"IF(AND('data entry'!AH4=\"Positive\",'data entry'!F4=\"Male\",BD5=1),1,\"\")","v":""},{"$f":"IF(AND('data entry'!AH4=\"Positive\",'data entry'!F4=\"Female\",BE5=1),1,\"\")","v":""},{"$f":"IF(AND('data entry'!AH4=\"Positive\",BF5=1),1,\"\")","v":""},{"$f":"IF(AND('data entry'!AH4=\"Positive\",'data entry'!F4=\"Male\",BG5=1),1,\"\")","v":""},{"$f":"IF(AND('data entry'!AH4=\"Positive\",'data entry'!F4=\"Female\",BH5=1),1,\"\")","v":""}]
[{"$f":"'data entry'!D5","v":4},{"$f":"IF(ISBLANK('data entry'!AF5),\"no retest date\",(IF(ISBLANK('data entry'!L5),\"no treatment date\",DATEDIF('data entry'!L5,'data entry'!AF5,\"d\"))))","v":"no retest date"},{"$f":"IF(B6=\"no treatment date\",DATEDIF('data entry'!E5,'data entry'!AF5,\"d\"),\"\")","v":""},{"$f":"IF(AND('data entry'!E5<>\"\",'data entry'!J5=\"positive\"),1,\"\")","v":""},{"$f":"IF(AND('data entry'!E5<>\"\",'data entry'!F5= \"Male\",'data entry'!J5=\"positive\"),1,\"\")","v":""},{"$f":"IF(AND('data entry'!E5<>\"\",'data entry'!F5= \"Female\",'data entry'!J5=\"positive\"),1,\"\")","v":""},{"$f":"IF(AND('data entry'!J5=\"positive\",'data entry'!AD5=\"yes\"),1,\"\")","v":""},{"$f":"IF(AND('data entry'!J5=\"positive\",'data entry'!AD5=\"yes\",'data entry'!F5=\"Male\"),1,\"\")","v":""},{"$f":"IF(AND('data entry'!J5=\"positive\",'data entry'!AD5=\"yes\",'data entry'!F5=\"Female\"),1,\"\")","v":""},{"$f":"IF(AND('data entry'!E5<>\"\",'data entry'!AF5<>\"\",'data entry'!L5<>\"\"),1,\"\")","v":""},{"$f":"IF(AND(J6=1,'data entry'!F5= \"Male\"),1,\"\")","v":""},{"$f":"IF(AND(J6=1,'data entry'!F5= \"Female\"),1,\"\")","v":""},"","","","","","","","","","","","","","","",{"$f":"IF(AND('data entry'!E5<>\"\",'data entry'!AF5<>\"\",'data entry'!L5=\"\"),1,\"\")","v":""},{"$f":"IF(AND(AB6=1,'data entry'!F5= \"Male\",'data entry'!J5=\"positive\"),1,\"\")","v":""},{"$f":"IF(AND(AB6=1,'data entry'!F5= \"Female\",'data entry'!J5=\"positive\"),1,\"\")","v":""},"","","","","","","","","","","","","","","","","","","","","","","","","","","","","","","","","",null,{"$f":"IF('data entry'!AH5=\"Positive\",1,\"\")","v":""},{"$f":"IF(AND('data entry'!AH5=\"Positive\",'data entry'!F5=\"Male\"),1,\"\")","v":""},{"$f":"IF(AND('data entry'!AH5=\"Positive\",'data entry'!F5=\"Female\"),1,\"\")","v":""},{"$f":"IF(AND('data entry'!AH5=\"Positive\",BC6=1),1,\"\")","v":""},{"$f":"IF(AND('data entry'!AH5=\"Positive\",'data entry'!F5=\"Male\",BD6=1),1,\"\")","v":""},{"$f":"IF(AND('data entry'!AH5=\"Positive\",'data entry'!F5=\"Female\",BE6=1),1,\"\")","v":""},{"$f":"IF(AND('data entry'!AH5=\"Positive\",BF6=1),1,\"\")","v":""},{"$f":"IF(AND('data entry'!AH5=\"Positive\",'data entry'!F5=\"Male\",BG6=1),1,\"\")","v":""},{"$f":"IF(AND('data entry'!AH5=\"Positive\",'data entry'!F5=\"Female\",BH6=1),1,\"\")","v":""}]
[{"$f":"'data entry'!D6","v":5},{"$f":"IF(ISBLANK('data entry'!AF6),\"no retest date\",(IF(ISBLANK('data entry'!L6),\"no treatment date\",DATEDIF('data entry'!L6,'data entry'!AF6,\"d\"))))","v":"no retest date"},{"$f":"IF(B7=\"no treatment date\",DATEDIF('data entry'!E6,'data entry'!AF6,\"d\"),\"\")","v":""},{"$f":"IF(AND('data entry'!E6<>\"\",'data entry'!J6=\"positive\"),1,\"\")","v":""},{"$f":"IF(AND('data entry'!E6<>\"\",'data entry'!F6= \"Male\",'data entry'!J6=\"positive\"),1,\"\")","v":""},{"$f":"IF(AND('data entry'!E6<>\"\",'data entry'!F6= \"Female\",'data entry'!J6=\"positive\"),1,\"\")","v":""},{"$f":"IF(AND('data entry'!J6=\"positive\",'data entry'!AD6=\"yes\"),1,\"\")","v":""},{"$f":"IF(AND('data entry'!J6=\"positive\",'data entry'!AD6=\"yes\",'data entry'!F6=\"Male\"),1,\"\")","v":""},{"$f":"IF(AND('data entry'!J6=\"positive\",'data entry'!AD6=\"yes\",'data entry'!F6=\"Female\"),1,\"\")","v":""},{"$f":"IF(AND('data entry'!E6<>\"\",'data entry'!AF6<>\"\",'data entry'!L6<>\"\"),1,\"\")","v":""},{"$f":"IF(AND(J7=1,'data entry'!F6= \"Male\"),1,\"\")","v":""},{"$f":"IF(AND(J7=1,'data entry'!F6= \"Female\"),1,\"\")","v":""},"","","","","","","","","","","","","","","",{"$f":"IF(AND('data entry'!E6<>\"\",'data entry'!AF6<>\"\",'data entry'!L6=\"\"),1,\"\")","v":""},{"$f":"IF(AND(AB7=1,'data entry'!F6= \"Male\",'data entry'!J6=\"positive\"),1,\"\")","v":""},{"$f":"IF(AND(AB7=1,'data entry'!F6= \"Female\",'data entry'!J6=\"positive\"),1,\"\")","v":""},"","","","","","","","","","","","","","","","","","","","","","","","","","","","","","","","","",null,{"$f":"IF('data entry'!AH6=\"Positive\",1,\"\")","v":""},{"$f":"IF(AND('data entry'!AH6=\"Positive\",'data entry'!F6=\"Male\"),1,\"\")","v":""},{"$f":"IF(AND('data entry'!AH6=\"Positive\",'data entry'!F6=\"Female\"),1,\"\")","v":""},{"$f":"IF(AND('data entry'!AH6=\"Positive\",BC7=1),1,\"\")","v":""},{"$f":"IF(AND('data entry'!AH6=\"Positive\",'data entry'!F6=\"Male\",BD7=1),1,\"\")","v":""},{"$f":"IF(AND('data entry'!AH6=\"Positive\",'data entry'!F6=\"Female\",BE7=1),1,\"\")","v":""},{"$f":"IF(AND('data entry'!AH6=\"Positive\",BF7=1),1,\"\")","v":""},{"$f":"IF(AND('data entry'!AH6=\"Positive\",'data entry'!F6=\"Male\",BG7=1),1,\"\")","v":""},{"$f":"IF(AND('data entry'!AH6=\"Positive\",'data entry'!F6=\"Female\",BH7=1),1,\"\")","v":""}]
[{"$f":"'data entry'!D7","v":6},{"$f":"IF(ISBLANK('data entry'!AF7),\"no retest date\",(IF(ISBLANK('data entry'!L7),\"no treatment date\",DATEDIF('data entry'!L7,'data entry'!AF7,\"d\"))))","v":"no retest date"},{"$f":"IF(B8=\"no treatment date\",DATEDIF('data entry'!E7,'data entry'!AF7,\"d\"),\"\")","v":""},{"$f":"IF(AND('data entry'!E7<>\"\",'data entry'!J7=\"positive\"),1,\"\")","v":""},{"$f":"IF(AND('data entry'!E7<>\"\",'data entry'!F7= \"Male\",'data entry'!J7=\"positive\"),1,\"\")","v":""},{"$f":"IF(AND('data entry'!E7<>\"\",'data entry'!F7= \"Female\",'data entry'!J7=\"positive\"),1,\"\")","v":""},{"$f":"IF(AND('data entry'!J7=\"positive\",'data entry'!AD7=\"yes\"),1,\"\")","v":""},{"$f":"IF(AND('data entry'!J7=\"positive\",'data entry'!AD7=\"yes\",'data entry'!F7=\"Male\"),1,\"\")","v":""},{"$f":"IF(AND('data entry'!J7=\"positive\",'data entry'!AD7=\"yes\",'data entry'!F7=\"Female\"),1,\"\")","v":""},{"$f":"IF(AND('data entry'!E7<>\"\",'data entry'!AF7<>\"\",'data entry'!L7<>\"\"),1,\"\")","v":""},{"$f":"IF(AND(J8=1,'data entry'!F7= \"Male\"),1,\"\")","v":""},{"$f":"IF(AND(J8=1,'data entry'!F7= \"Female\"),1,\"\")","v":""},"","","","","","","","","","","","","","","",{"$f":"IF(AND('data entry'!E7<>\"\",'data entry'!AF7<>\"\",'data entry'!L7=\"\"),1,\"\")","v":""},{"$f":"IF(AND(AB8=1,'data entry'!F7= \"Male\",'data entry'!J7=\"positive\"),1,\"\")","v":""},{"$f":"IF(AND(AB8=1,'data entry'!F7= \"Female\",'data entry'!J7=\"positive\"),1,\"\")","v":""},"","","","","","","","","","","","","","","","","","","","","","","","","","","","","","","","","",null,{"$f":"IF('data entry'!AH7=\"Positive\",1,\"\")","v":""},{"$f":"IF(AND('data entry'!AH7=\"Positive\",'data entry'!F7=\"Male\"),1,\"\")","v":""},{"$f":"IF(AND('data entry'!AH7=\"Positive\",'data entry'!F7=\"Female\"),1,\"\")","v":""},{"$f":"IF(AND('data entry'!AH7=\"Positive\",BC8=1),1,\"\")","v":""},{"$f":"IF(AND('data entry'!AH7=\"Positive\",'data entry'!F7=\"Male\",BD8=1),1,\"\")","v":""},{"$f":"IF(AND('data entry'!AH7=\"Positive\",'data entry'!F7=\"Female\",BE8=1),1,\"\")","v":""},{"$f":"IF(AND('data entry'!AH7=\"Positive\",BF8=1),1,\"\")","v":""},{"$f":"IF(AND('data entry'!AH7=\"Positive\",'data entry'!F7=\"Male\",BG8=1),1,\"\")","v":""},{"$f":"IF(AND('data entry'!AH7=\"Positive\",'data entry'!F7=\"Female\",BH8=1),1,\"\")","v":""}]
[{"$f":"'data entry'!D8","v":7},{"$f":"IF(ISBLANK('data entry'!AF8),\"no retest date\",(IF(ISBLANK('data entry'!L8),\"no treatment date\",DATEDIF('data entry'!L8,'data entry'!AF8,\"d\"))))","v":"no retest date"},{"$f":"IF(B9=\"no treatment date\",DATEDIF('data entry'!E8,'data entry'!AF8,\"d\"),\"\")","v":""},{"$f":"IF(AND('data entry'!E8<>\"\",'data entry'!J8=\"positive\"),1,\"\")","v":""},{"$f":"IF(AND('data entry'!E8<>\"\",'data entry'!F8= \"Male\",'data entry'!J8=\"positive\"),1,\"\")","v":""},{"$f":"IF(AND('data entry'!E8<>\"\",'data entry'!F8= \"Female\",'data entry'!J8=\"positive\"),1,\"\")","v":""},{"$f":"IF(AND('data entry'!J8=\"positive\",'data entry'!AD8=\"yes\"),1,\"\")","v":""},{"$f":"IF(AND('data entry'!J8=\"positive\",'data entry'!AD8=\"yes\",'data entry'!F8=\"Male\"),1,\"\")","v":""},{"$f":"IF(AND('data entry'!J8=\"positive\",'data entry'!AD8=\"yes\",'data entry'!F8=\"Female\"),1,\"\")","v":""},{"$f":"IF(AND('data entry'!E8<>\"\",'data entry'!AF8<>\"\",'data entry'!L8<>\"\"),1,\"\")","v":""},{"$f":"IF(AND(J9=1,'data entry'!F8= \"Male\"),1,\"\")","v":""},{"$f":"IF(AND(J9=1,'data entry'!F8= \"Female\"),1,\"\")","v":""},"","","","","","","","","","","","","","","",{"$f":"IF(AND('data entry'!E8<>\"\",'data entry'!AF8<>\"\",'data entry'!L8=\"\"),1,\"\")","v":""},{"$f":"IF(AND(AB9=1,'data entry'!F8= \"Male\",'data entry'!J8=\"positive\"),1,\"\")","v":""},{"$f":"IF(AND(AB9=1,'data entry'!F8= \"Female\",'data entry'!J8=\"positive\"),1,\"\")","v":""},"","","","","","","","","","","","","","","","","","","","","","","","","","","","","","","","","",null,{"$f":"IF('data entry'!AH8=\"Positive\",1,\"\")","v":""},{"$f":"IF(AND('data entry'!AH8=\"Positive\",'data entry'!F8=\"Male\"),1,\"\")","v":""},{"$f":"IF(AND('data entry'!AH8=\"Positive\",'data entry'!F8=\"Female\"),1,\"\")","v":""},{"$f":"IF(AND('data entry'!AH8=\"Positive\",BC9=1),1,\"\")","v":""},{"$f":"IF(AND('data entry'!AH8=\"Positive\",'data entry'!F8=\"Male\",BD9=1),1,\"\")","v":""},{"$f":"IF(AND('data entry'!AH8=\"Positive\",'data entry'!F8=\"Female\",BE9=1),1,\"\")","v":""},{"$f":"IF(AND('data entry'!AH8=\"Positive\",BF9=1),1,\"\")","v":""},{"$f":"IF(AND('data entry'!AH8=\"Positive\",'data entry'!F8=\"Male\",BG9=1),1,\"\")","v":""},{"$f":"IF(AND('data entry'!AH8=\"Positive\",'data entry'!F8=\"Female\",BH9=1),1,\"\")","v":""}]
[{"$f":"'data entry'!D9","v":8},{"$f":"IF(ISBLANK('data entry'!AF9),\"no retest date\",(IF(ISBLANK('data entry'!L9),\"no treatment date\",DATEDIF('data entry'!L9,'data entry'!AF9,\"d\"))))","v":"no retest date"},{"$f":"IF(B10=\"no treatment date\",DATEDIF('data entry'!E9,'data entry'!AF9,\"d\"),\"\")","v":""},{"$f":"IF(AND('data entry'!E9<>\"\",'data entry'!J9=\"positive\"),1,\"\")","v":""},{"$f":"IF(AND('data entry'!E9<>\"\",'data entry'!F9= \"Male\",'data entry'!J9=\"positive\"),1,\"\")","v":""},{"$f":"IF(AND('data entry'!E9<>\"\",'data entry'!F9= \"Female\",'data entry'!J9=\"positive\"),1,\"\")","v":""},{"$f":"IF(AND('data entry'!J9=\"positive\",'data entry'!AD9=\"yes\"),1,\"\")","v":""},{"$f":"IF(AND('data entry'!J9=\"positive\",'data entry'!AD9=\"yes\",'data entry'!F9=\"Male\"),1,\"\")","v":""},{"$f":"IF(AND('data entry'!J9=\"positive\",'data entry'!AD9=\"yes\",'data entry'!F9=\"Female\"),1,\"\")","v":""},{"$f":"IF(AND('data entry'!E9<>\"\",'data entry'!AF9<>\"\",'data entry'!L9<>\"\"),1,\"\")","v":""},{"$f":"IF(AND(J10=1,'data entry'!F9= \"Male\"),1,\"\")","v":""},{"$f":"IF(AND(J10=1,'data entry'!F9= \"Female\"),1,\"\")","v":""},"","","","","","","","","","","","",{"$f":"IF(AND(J10=1,B10>=189),1,\"\")","v":""},"","",{"$f":"IF(AND('data entry'!E9<>\"\",'data entry'!AF9<>\"\",'data entry'!L9=\"\"),1,\"\")","v":""},{"$f":"IF(AND(AB10=1,'data entry'!F9= \"Male\",'data entry'!J9=\"positive\"),1,\"\")","v":""},{"$f":"IF(AND(AB10=1,'data entry'!F9= \"Female\",'data entry'!J9=\"positive\"),1,\"\")","v":""},"","","","","","","","","","","","",{"$f":"IF(AND(AB10=1,C10>=189),1,\"\")","v":""},"","","","","","","","","","","","","","","","","","","","",null,{"$f":"IF('data entry'!AH9=\"Positive\",1,\"\")","v":""},{"$f":"IF(AND('data entry'!AH9=\"Positive\",'data entry'!F9=\"Male\"),1,\"\")","v":""},{"$f":"IF(AND('data entry'!AH9=\"Positive\",'data entry'!F9=\"Female\"),1,\"\")","v":""},{"$f":"IF(AND('data entry'!AH9=\"Positive\",BC10=1),1,\"\")","v":""},{"$f":"IF(AND('data entry'!AH9=\"Positive\",'data entry'!F9=\"Male\",BD10=1),1,\"\")","v":""},{"$f":"IF(AND('data entry'!AH9=\"Positive\",'data entry'!F9=\"Female\",BE10=1),1,\"\")","v":""},{"$f":"IF(AND('data entry'!AH9=\"Positive\",BF10=1),1,\"\")","v":""},{"$f":"IF(AND('data entry'!AH9=\"Positive\",'data entry'!F9=\"Male\",BG10=1),1,\"\")","v":""},{"$f":"IF(AND('data entry'!AH9=\"Positive\",'data entry'!F9=\"Female\",BH10=1),1,\"\")","v":""}]
[{"$f":"'data entry'!D10","v":9},{"$f":"IF(ISBLANK('data entry'!AF10),\"no retest date\",(IF(ISBLANK('data entry'!L10),\"no treatment date\",DATEDIF('data entry'!L10,'data entry'!AF10,\"d\"))))","v":"no retest date"},{"$f":"IF(B11=\"no treatment date\",DATEDIF('data entry'!E10,'data entry'!AF10,\"d\"),\"\")","v":""},{"$f":"IF(AND('data entry'!E10<>\"\",'data entry'!J10=\"positive\"),1,\"\")","v":""},{"$f":"IF(AND('data entry'!E10<>\"\",'data entry'!F10= \"Male\",'data entry'!J10=\"positive\"),1,\"\")","v":""},{"$f":"IF(AND('data entry'!E10<>\"\",'data entry'!F10= \"Female\",'data entry'!J10=\"positive\"),1,\"\")","v":""},{"$f":"IF(AND('data entry'!J10=\"positive\",'data entry'!AD10=\"yes\"),1,\"\")","v":""},{"$f":"IF(AND('data entry'!J10=\"positive\",'data entry'!AD10=\"yes\",'data entry'!F10=\"Male\"),1,\"\")","v":""},{"$f":"IF(AND('data entry'!J10=\"positive\",'data entry'!AD10=\"yes\",'data entry'!F10=\"Female\"),1,\"\")","v":""},{"$f":"IF(AND('data entry'!E10<>\"\",'data entry'!AF10<>\"\",'data entry'!L10<>\"\"),1,\"\")","v":""},{"$f":"IF(AND(J11=1,'data entry'!F10= \"Male\"),1,\"\")","v":""},{"$f":"IF(AND(J11=1,'data entry'!F10= \"Female\"),1,\"\")","v":""},"","","","","","","","","","","","","","","",{"$f":"IF(AND('data entry'!E10<>\"\",'data entry'!AF10<>\"\",'data entry'!L10=\"\"),1,\"\")","v":""},{"$f":"IF(AND(AB11=1,'data entry'!F10= \"Male\",'data entry'!J10=\"positive\"),1,\"\")","v":""},{"$f":"IF(AND(AB11=1,'data entry'!F10= \"Female\",'data entry'!J10=\"positive\"),1,\"\")","v":""},"","","","","","","","","","","","","","","","","","","","","","","","","","","","","","","","","",null,{"$f":"IF('data entry'!AH10=\"Positive\",1,\"\")","v":""},{"$f":"IF(AND('data entry'!AH10=\"Positive\",'data entry'!F10=\"Male\"),1,\"\")","v":""},{"$f":"IF(AND('data entry'!AH10=\"Positive\",'data entry'!F10=\"Female\"),1,\"\")","v":""},{"$f":"IF(AND('data entry'!AH10=\"Positive\",BC11=1),1,\"\")","v":""},{"$f":"IF(AND('data entry'!AH10=\"Positive\",'data entry'!F10=\"Male\",BD11=1),1,\"\")","v":""},{"$f":"IF(AND('data entry'!AH10=\"Positive\",'data entry'!F10=\"Female\",BE11=1),1,\"\")","v":""},{"$f":"IF(AND('data entry'!AH10=\"Positive\",BF11=1),1,\"\")","v":""},{"$f":"IF(AND('data entry'!AH10=\"Positive\",'data entry'!F10=\"Male\",BG11=1),1,\"\")","v":""},{"$f":"IF(AND('data entry'!AH10=\"Positive\",'data entry'!F10=\"Female\",BH11=1),1,\"\")","v":""}]
[{"$f":"'data entry'!D11","v":10},{"$f":"IF(ISBLANK('data entry'!AF11),\"no retest date\",(IF(ISBLANK('data entry'!L11),\"no treatment date\",DATEDIF('data entry'!L11,'data entry'!AF11,\"d\"))))","v":"no retest date"},{"$f":"IF(B12=\"no treatment date\",DATEDIF('data entry'!E11,'data entry'!AF11,\"d\"),\"\")","v":""},{"$f":"IF(AND('data entry'!E11<>\"\",'data entry'!J11=\"positive\"),1,\"\")","v":""},{"$f":"IF(AND('data entry'!E11<>\"\",'data entry'!F11= \"Male\",'data entry'!J11=\"positive\"),1,\"\")","v":""},{"$f":"IF(AND('data entry'!E11<>\"\",'data entry'!F11= \"Female\",'data entry'!J11=\"positive\"),1,\"\")","v":""},{"$f":"IF(AND('data entry'!J11=\"positive\",'data entry'!AD11=\"yes\"),1,\"\")","v":""},{"$f":"IF(AND('data entry'!J11=\"positive\",'data entry'!AD11=\"yes\",'data entry'!F11=\"Male\"),1,\"\")","v":""},{"$f":"IF(AND('data entry'!J11=\"positive\",'data entry'!AD11=\"yes\",'data entry'!F11=\"Female\"),1,\"\")","v":""},{"$f":"IF(AND('data entry'!E11<>\"\",'data entry'!AF11<>\"\",'data entry'!L11<>\"\"),1,\"\")","v":""},{"$f":"IF(AND(J12=1,'data entry'!F11= \"Male\"),1,\"\")","v":""},{"$f":"IF(AND(J12=1,'data entry'!F11= \"Female\"),1,\"\")","v":""},"","","","","","","","","","","","",{"$f":"IF(AND(J12=1,B12>=189),1,\"\")","v":""},{"$f":"IF(AND(K12=1,B12>=189),1,\"\")","v":""},"",{"$f":"IF(AND('data entry'!E11<>\"\",'data entry'!AF11<>\"\",'data entry'!L11=\"\"),1,\"\")","v":""},{"$f":"IF(AND(AB12=1,'data entry'!F11= \"Male\",'data entry'!J11=\"positive\"),1,\"\")","v":""},{"$f":"IF(AND(AB12=1,'data entry'!F11= \"Female\",'data entry'!J11=\"positive\"),1,\"\")","v":""},"","","","","","","","","","","","","","","","","","","","","","","","","","","","","","","","","",null,{"$f":"IF('data entry'!AH11=\"Positive\",1,\"\")","v":""},{"$f":"IF(AND('data entry'!AH11=\"Positive\",'data entry'!F11=\"Male\"),1,\"\")","v":""},{"$f":"IF(AND('data entry'!AH11=\"Positive\",'data entry'!F11=\"Female\"),1,\"\")","v":""},{"$f":"IF(AND('data entry'!AH11=\"Positive\",BC12=1),1,\"\")","v":""},{"$f":"IF(AND('data entry'!AH11=\"Positive\",'data entry'!F11=\"Male\",BD12=1),1,\"\")","v":""},{"$f":"IF(AND('data entry'!AH11=\"Positive\",'data entry'!F11=\"Female\",BE12=1),1,\"\")","v":""},{"$f":"IF(AND('data entry'!AH11=\"Positive\",BF12=1),1,\"\")","v":""},{"$f":"IF(AND('data entry'!AH11=\"Positive\",'data entry'!F11=\"Male\",BG12=1),1,\"\")","v":""},{"$f":"IF(AND('data entry'!AH11=\"Positive\",'data entry'!F11=\"Female\",BH12=1),1,\"\")","v":""}]
[{"$f":"'data entry'!D12","v":11},{"$f":"IF(ISBLANK('data entry'!AF12),\"no retest date\",(IF(ISBLANK('data entry'!L12),\"no treatment date\",DATEDIF('data entry'!L12,'data entry'!AF12,\"d\"))))","v":"no retest date"},{"$f":"IF(B13=\"no treatment date\",DATEDIF('data entry'!E12,'data entry'!AF12,\"d\"),\"\")","v":""},{"$f":"IF(AND('data entry'!E12<>\"\",'data entry'!J12=\"positive\"),1,\"\")","v":""},{"$f":"IF(AND('data entry'!E12<>\"\",'data entry'!F12= \"Male\",'data entry'!J12=\"positive\"),1,\"\")","v":""},{"$f":"IF(AND('data entry'!E12<>\"\",'data entry'!F12= \"Female\",'data entry'!J12=\"positive\"),1,\"\")","v":""},{"$f":"IF(AND('data entry'!J12=\"positive\",'data entry'!AD12=\"yes\"),1,\"\")","v":""},{"$f":"IF(AND('data entry'!J12=\"positive\",'data entry'!AD12=\"yes\",'data entry'!F12=\"Male\"),1,\"\")","v":""},{"$f":"IF(AND('data entry'!J12=\"positive\",'data entry'!AD12=\"yes\",'data entry'!F12=\"Female\"),1,\"\")","v":""},{"$f":"IF(AND('data entry'!E12<>\"\",'data entry'!AF12<>\"\",'data entry'!L12<>\"\"),1,\"\")","v":""},{"$f":"IF(AND(J13=1,'data entry'!F12= \"Male\"),1,\"\")","v":""},{"$f":"IF(AND(J13=1,'data entry'!F12= \"Female\"),1,\"\")","v":""},"","","","","","","","","","","","","","","",{"$f":"IF(AND('data entry'!E12<>\"\",'data entry'!AF12<>\"\",'data entry'!L12=\"\"),1,\"\")","v":""},{"$f":"IF(AND(AB13=1,'data entry'!F12= \"Male\",'data entry'!J12=\"positive\"),1,\"\")","v":""},{"$f":"IF(AND(AB13=1,'data entry'!F12= \"Female\",'data entry'!J12=\"positive\"),1,\"\")","v":""},"","","","","","","","","","","","","","","","","","","","","","","","","","","","","","","","","",null,{"$f":"IF('data entry'!AH12=\"Positive\",1,\"\")","v":""},{"$f":"IF(AND('data entry'!AH12=\"Positive\",'data entry'!F12=\"Male\"),1,\"\")","v":""},{"$f":"IF(AND('data entry'!AH12=\"Positive\",'data entry'!F12=\"Female\"),1,\"\")","v":""},{"$f":"IF(AND('data entry'!AH12=\"Positive\",BC13=1),1,\"\")","v":""},{"$f":"IF(AND('data entry'!AH12=\"Positive\",'data entry'!F12=\"Male\",BD13=1),1,\"\")","v":""},{"$f":"IF(AND('data entry'!AH12=\"Positive\",'data entry'!F12=\"Female\",BE13=1),1,\"\")","v":""},{"$f":"IF(AND('data entry'!AH12=\"Positive\",BF13=1),1,\"\")","v":""},{"$f":"IF(AND('data entry'!AH12=\"Positive\",'data entry'!F12=\"Male\",BG13=1),1,\"\")","v":""},{"$f":"IF(AND('data entry'!AH12=\"Positive\",'data entry'!F12=\"Female\",BH13=1),1,\"\")","v":""}]
[{"$f":"'data entry'!D13","v":12},{"$f":"IF(ISBLANK('data entry'!AF13),\"no retest date\",(IF(ISBLANK('data entry'!L13),\"no treatment date\",DATEDIF('data entry'!L13,'data entry'!AF13,\"d\"))))","v":"no retest date"},{"$f":"IF(B14=\"no treatment date\",DATEDIF('data entry'!E13,'data entry'!AF13,\"d\"),\"\")","v":""},{"$f":"IF(AND('data entry'!E13<>\"\",'data entry'!J13=\"positive\"),1,\"\")","v":""},{"$f":"IF(AND('data entry'!E13<>\"\",'data entry'!F13= \"Male\",'data entry'!J13=\"positive\"),1,\"\")","v":""},{"$f":"IF(AND('data entry'!E13<>\"\",'data entry'!F13= \"Female\",'data entry'!J13=\"positive\"),1,\"\")","v":""},{"$f":"IF(AND('data entry'!J13=\"positive\",'data entry'!AD13=\"yes\"),1,\"\")","v":""},{"$f":"IF(AND('data entry'!J13=\"positive\",'data entry'!AD13=\"yes\",'data entry'!F13=\"Male\"),1,\"\")","v":""},{"$f":"IF(AND('data entry'!J13=\"positive\",'data entry'!AD13=\"yes\",'data entry'!F13=\"Female\"),1,\"\")","v":""},{"$f":"IF(AND('data entry'!E13<>\"\",'data entry'!AF13<>\"\",'data entry'!L13<>\"\"),1,\"\")","v":""},{"$f":"IF(AND(J14=1,'data entry'!F13= \"Male\"),1,\"\")","v":""},{"$f":"IF(AND(J14=1,'data entry'!F13= \"Female\"),1,\"\")","v":""},"","","","","","","","","","","","","","","",{"$f":"IF(AND('data entry'!E13<>\"\",'data entry'!AF13<>\"\",'data entry'!L13=\"\"),1,\"\")","v":""},{"$f":"IF(AND(AB14=1,'data entry'!F13= \"Male\",'data entry'!J13=\"positive\"),1,\"\")","v":""},{"$f":"IF(AND(AB14=1,'data entry'!F13= \"Female\",'data entry'!J13=\"positive\"),1,\"\")","v":""},"","","","","","","","","","","","","","","","","","","","","","","","","","","","","","","","","",null,{"$f":"IF('data entry'!AH13=\"Positive\",1,\"\")","v":""},{"$f":"IF(AND('data entry'!AH13=\"Positive\",'data entry'!F13=\"Male\"),1,\"\")","v":""},{"$f":"IF(AND('data entry'!AH13=\"Positive\",'data entry'!F13=\"Female\"),1,\"\")","v":""},{"$f":"IF(AND('data entry'!AH13=\"Positive\",BC14=1),1,\"\")","v":""},{"$f":"IF(AND('data entry'!AH13=\"Positive\",'data entry'!F13=\"Male\",BD14=1),1,\"\")","v":""},{"$f":"IF(AND('data entry'!AH13=\"Positive\",'data entry'!F13=\"Female\",BE14=1),1,\"\")","v":""},{"$f":"IF(AND('data entry'!AH13=\"Positive\",BF14=1),1,\"\")","v":""},{"$f":"IF(AND('data entry'!AH13=\"Positive\",'data entry'!F13=\"Male\",BG14=1),1,\"\")","v":""},{"$f":"IF(AND('data entry'!AH13=\"Positive\",'data entry'!F13=\"Female\",BH14=1),1,\"\")","v":""}]
[{"$f":"'data entry'!D14","v":13},{"$f":"IF(ISBLANK('data entry'!AF14),\"no retest date\",(IF(ISBLANK('data entry'!L14),\"no treatment date\",DATEDIF('data entry'!L14,'data entry'!AF14,\"d\"))))","v":"no retest date"},{"$f":"IF(B15=\"no treatment date\",DATEDIF('data entry'!E14,'data entry'!AF14,\"d\"),\"\")","v":""},{"$f":"IF(AND('data entry'!E14<>\"\",'data entry'!J14=\"positive\"),1,\"\")","v":""},{"$f":"IF(AND('data entry'!E14<>\"\",'data entry'!F14= \"Male\",'data entry'!J14=\"positive\"),1,\"\")","v":""},{"$f":"IF(AND('data entry'!E14<>\"\",'data entry'!F14= \"Female\",'data entry'!J14=\"positive\"),1,\"\")","v":""},{"$f":"IF(AND('data entry'!J14=\"positive\",'data entry'!AD14=\"yes\"),1,\"\")","v":""},{"$f":"IF(AND('data entry'!J14=\"positive\",'data entry'!AD14=\"yes\",'data entry'!F14=\"Male\"),1,\"\")","v":""},{"$f":"IF(AND('data entry'!J14=\"positive\",'data entry'!AD14=\"yes\",'data entry'!F14=\"Female\"),1,\"\")","v":""},{"$f":"IF(AND('data entry'!E14<>\"\",'data entry'!AF14<>\"\",'data entry'!L14<>\"\"),1,\"\")","v":""},{"$f":"IF(AND(J15=1,'data entry'!F14= \"Male\"),1,\"\")","v":""},{"$f":"IF(AND(J15=1,'data entry'!F14= \"Female\"),1,\"\")","v":""},"","","","","","","","","","","","","","","",{"$f":"IF(AND('data entry'!E14<>\"\",'data entry'!AF14<>\"\",'data entry'!L14=\"\"),1,\"\")","v":""},{"$f":"IF(AND(AB15=1,'data entry'!F14= \"Male\",'data entry'!J14=\"positive\"),1,\"\")","v":""},{"$f":"IF(AND(AB15=1,'data entry'!F14= \"Female\",'data entry'!J14=\"positive\"),1,\"\")","v":""},"","","","","","","","","","","","","","","","","","","","","","","","","","","","","","","","","",null,{"$f":"IF('data entry'!AH14=\"Positive\",1,\"\")","v":""},{"$f":"IF(AND('data entry'!AH14=\"Positive\",'data entry'!F14=\"Male\"),1,\"\")","v":""},{"$f":"IF(AND('data entry'!AH14=\"Positive\",'data entry'!F14=\"Female\"),1,\"\")","v":""},{"$f":"IF(AND('data entry'!AH14=\"Positive\",BC15=1),1,\"\")","v":""},{"$f":"IF(AND('data entry'!AH14=\"Positive\",'data entry'!F14=\"Male\",BD15=1),1,\"\")","v":""},{"$f":"IF(AND('data entry'!AH14=\"Positive\",'data entry'!F14=\"Female\",BE15=1),1,\"\")","v":""},{"$f":"IF(AND('data entry'!AH14=\"Positive\",BF15=1),1,\"\")","v":""},{"$f":"IF(AND('data entry'!AH14=\"Positive\",'data entry'!F14=\"Male\",BG15=1),1,\"\")","v":""},{"$f":"IF(AND('data entry'!AH14=\"Positive\",'data entry'!F14=\"Female\",BH15=1),1,\"\")","v":""}]
[{"$f":"'data entry'!D15","v":14},{"$f":"IF(ISBLANK('data entry'!AF15),\"no retest date\",(IF(ISBLANK('data entry'!L15),\"no treatment date\",DATEDIF('data entry'!L15,'data entry'!AF15,\"d\"))))","v":"no retest date"},{"$f":"IF(B16=\"no treatment date\",DATEDIF('data entry'!E15,'data entry'!AF15,\"d\"),\"\")","v":""},{"$f":"IF(AND('data entry'!E15<>\"\",'data entry'!J15=\"positive\"),1,\"\")","v":""},{"$f":"IF(AND('data entry'!E15<>\"\",'data entry'!F15= \"Male\",'data entry'!J15=\"positive\"),1,\"\")","v":""},{"$f":"IF(AND('data entry'!E15<>\"\",'data entry'!F15= \"Female\",'data entry'!J15=\"positive\"),1,\"\")","v":""},{"$f":"IF(AND('data entry'!J15=\"positive\",'data entry'!AD15=\"yes\"),1,\"\")","v":""},{"$f":"IF(AND('data entry'!J15=\"positive\",'data entry'!AD15=\"yes\",'data entry'!F15=\"Male\"),1,\"\")","v":""},{"$f":"IF(AND('data entry'!J15=\"positive\",'data entry'!AD15=\"yes\",'data entry'!F15=\"Female\"),1,\"\")","v":""},{"$f":"IF(AND('data entry'!E15<>\"\",'data entry'!AF15<>\"\",'data entry'!L15<>\"\"),1,\"\")","v":""},{"$f":"IF(AND(J16=1,'data entry'!F15= \"Male\"),1,\"\")","v":""},{"$f":"IF(AND(J16=1,'data entry'!F15= \"Female\"),1,\"\")","v":""},"","","","","","","","","","","","","","","",{"$f":"IF(AND('data entry'!E15<>\"\",'data entry'!AF15<>\"\",'data entry'!L15=\"\"),1,\"\")","v":""},{"$f":"IF(AND(AB16=1,'data entry'!F15= \"Male\",'data entry'!J15=\"positive\"),1,\"\")","v":""},{"$f":"IF(AND(AB16=1,'data entry'!F15= \"Female\",'data entry'!J15=\"positive\"),1,\"\")","v":""},"","","","","","","","","","","","","","","","","","","","","","","","","","","","","","","","","",null,{"$f":"IF('data entry'!AH15=\"Positive\",1,\"\")","v":""},{"$f":"IF(AND('data entry'!AH15=\"Positive\",'data entry'!F15=\"Male\"),1,\"\")","v":""},{"$f":"IF(AND('data entry'!AH15=\"Positive\",'data entry'!F15=\"Female\"),1,\"\")","v":""},{"$f":"IF(AND('data entry'!AH15=\"Positive\",BC16=1),1,\"\")","v":""},{"$f":"IF(AND('data entry'!AH15=\"Positive\",'data entry'!F15=\"Male\",BD16=1),1,\"\")","v":""},{"$f":"IF(AND('data entry'!AH15=\"Positive\",'data entry'!F15=\"Female\",BE16=1),1,\"\")","v":""},{"$f":"IF(AND('data entry'!AH15=\"Positive\",BF16=1),1,\"\")","v":""},{"$f":"IF(AND('data entry'!AH15=\"Positive\",'data entry'!F15=\"Male\",BG16=1),1,\"\")","v":""},{"$f":"IF(AND('data entry'!AH15=\"Positive\",'data entry'!F15=\"Female\",BH16=1),1,\"\")","v":""}]
[{"$f":"'data entry'!D16","v":15},{"$f":"IF(ISBLANK('data entry'!AF16),\"no retest date\",(IF(ISBLANK('data entry'!L16),\"no treatment date\",DATEDIF('data entry'!L16,'data entry'!AF16,\"d\"))))","v":"no retest date"},{"$f":"IF(B17=\"no treatment date\",DATEDIF('data entry'!E16,'data entry'!AF16,\"d\"),\"\")","v":""},{"$f":"IF(AND('data entry'!E16<>\"\",'data entry'!J16=\"positive\"),1,\"\")","v":""},{"$f":"IF(AND('data entry'!E16<>\"\",'data entry'!F16= \"Male\",'data entry'!J16=\"positive\"),1,\"\")","v":""},{"$f":"IF(AND('data entry'!E16<>\"\",'data entry'!F16= \"Female\",'data entry'!J16=\"positive\"),1,\"\")","v":""},{"$f":"IF(AND('data entry'!J16=\"positive\",'data entry'!AD16=\"yes\"),1,\"\")","v":""},{"$f":"IF(AND('data entry'!J16=\"positive\",'data entry'!AD16=\"yes\",'data entry'!F16=\"Male\"),1,\"\")","v":""},{"$f":"IF(AND('data entry'!J16=\"positive\",'data entry'!AD16=\"yes\",'data entry'!F16=\"Female\"),1,\"\")","v":""},{"$f":"IF(AND('data entry'!E16<>\"\",'data entry'!AF16<>\"\",'data entry'!L16<>\"\"),1,\"\")","v":""},{"$f":"IF(AND(J17=1,'data entry'!F16= \"Male\"),1,\"\")","v":""},{"$f":"IF(AND(J17=1,'data entry'!F16= \"Female\"),1,\"\")","v":""},"","","","","","","","","","","","","","","",{"$f":"IF(AND('data entry'!E16<>\"\",'data entry'!AF16<>\"\",'data entry'!L16=\"\"),1,\"\")","v":""},{"$f":"IF(AND(AB17=1,'data entry'!F16= \"Male\",'data entry'!J16=\"positive\"),1,\"\")","v":""},{"$f":"IF(AND(AB17=1,'data entry'!F16= \"Female\",'data entry'!J16=\"positive\"),1,\"\")","v":""},"","","","","","","","","","","","","","","","","","","","","","","","","","","","","","","","","",null,{"$f":"IF('data entry'!AH16=\"Positive\",1,\"\")","v":""},{"$f":"IF(AND('data entry'!AH16=\"Positive\",'data entry'!F16=\"Male\"),1,\"\")","v":""},{"$f":"IF(AND('data entry'!AH16=\"Positive\",'data entry'!F16=\"Female\"),1,\"\")","v":""},{"$f":"IF(AND('data entry'!AH16=\"Positive\",BC17=1),1,\"\")","v":""},{"$f":"IF(AND('data entry'!AH16=\"Positive\",'data entry'!F16=\"Male\",BD17=1),1,\"\")","v":""},{"$f":"IF(AND('data entry'!AH16=\"Positive\",'data entry'!F16=\"Female\",BE17=1),1,\"\")","v":""},{"$f":"IF(AND('data entry'!AH16=\"Positive\",BF17=1),1,\"\")","v":""},{"$f":"IF(AND('data entry'!AH16=\"Positive\",'data entry'!F16=\"Male\",BG17=1),1,\"\")","v":""},{"$f":"IF(AND('data entry'!AH16=\"Positive\",'data entry'!F16=\"Female\",BH17=1),1,\"\")","v":""}]
[{"$f":"'data entry'!D17","v":16},{"$f":"IF(ISBLANK('data entry'!AF17),\"no retest date\",(IF(ISBLANK('data entry'!L17),\"no treatment date\",DATEDIF('data entry'!L17,'data entry'!AF17,\"d\"))))","v":"no retest date"},{"$f":"IF(B18=\"no treatment date\",DATEDIF('data entry'!E17,'data entry'!AF17,\"d\"),\"\")","v":""},{"$f":"IF(AND('data entry'!E17<>\"\",'data entry'!J17=\"positive\"),1,\"\")","v":""},{"$f":"IF(AND('data entry'!E17<>\"\",'data entry'!F17= \"Male\",'data entry'!J17=\"positive\"),1,\"\")","v":""},{"$f":"IF(AND('data entry'!E17<>\"\",'data entry'!F17= \"Female\",'data entry'!J17=\"positive\"),1,\"\")","v":""},{"$f":"IF(AND('data entry'!J17=\"positive\",'data entry'!AD17=\"yes\"),1,\"\")","v":""},{"$f":"IF(AND('data entry'!J17=\"positive\",'data entry'!AD17=\"yes\",'data entry'!F17=\"Male\"),1,\"\")","v":""},{"$f":"IF(AND('data entry'!J17=\"positive\",'data entry'!AD17=\"yes\",'data entry'!F17=\"Female\"),1,\"\")","v":""},{"$f":"IF(AND('data entry'!E17<>\"\",'data entry'!AF17<>\"\",'data entry'!L17<>\"\"),1,\"\")","v":""},{"$f":"IF(AND(J18=1,'data entry'!F17= \"Male\"),1,\"\")","v":""},{"$f":"IF(AND(J18=1,'data entry'!F17= \"Female\"),1,\"\")","v":""},"","","","","","","","","","","","","","","",{"$f":"IF(AND('data entry'!E17<>\"\",'data entry'!AF17<>\"\",'data entry'!L17=\"\"),1,\"\")","v":""},{"$f":"IF(AND(AB18=1,'data entry'!F17= \"Male\",'data entry'!J17=\"positive\"),1,\"\")","v":""},{"$f":"IF(AND(AB18=1,'data entry'!F17= \"Female\",'data entry'!J17=\"positive\"),1,\"\")","v":""},"","","","","","","","","","","","","","","","","","","","","","","","","","","","","","","","","",null,{"$f":"IF('data entry'!AH17=\"Positive\",1,\"\")","v":""},{"$f":"IF(AND('data entry'!AH17=\"Positive\",'data entry'!F17=\"Male\"),1,\"\")","v":""},{"$f":"IF(AND('data entry'!AH17=\"Positive\",'data entry'!F17=\"Female\"),1,\"\")","v":""},{"$f":"IF(AND('data entry'!AH17=\"Positive\",BC18=1),1,\"\")","v":""},{"$f":"IF(AND('data entry'!AH17=\"Positive\",'data entry'!F17=\"Male\",BD18=1),1,\"\")","v":""},{"$f":"IF(AND('data entry'!AH17=\"Positive\",'data entry'!F17=\"Female\",BE18=1),1,\"\")","v":""},{"$f":"IF(AND('data entry'!AH17=\"Positive\",BF18=1),1,\"\")","v":""},{"$f":"IF(AND('data entry'!AH17=\"Positive\",'data entry'!F17=\"Male\",BG18=1),1,\"\")","v":""},{"$f":"IF(AND('data entry'!AH17=\"Positive\",'data entry'!F17=\"Female\",BH18=1),1,\"\")","v":""}]
[{"$f":"'data entry'!D18","v":17},{"$f":"IF(ISBLANK('data entry'!AF18),\"no retest date\",(IF(ISBLANK('data entry'!L18),\"no treatment date\",DATEDIF('data entry'!L18,'data entry'!AF18,\"d\"))))","v":"no retest date"},{"$f":"IF(B19=\"no treatment date\",DATEDIF('data entry'!E18,'data entry'!AF18,\"d\"),\"\")","v":""},{"$f":"IF(AND('data entry'!E18<>\"\",'data entry'!J18=\"positive\"),1,\"\")","v":""},{"$f":"IF(AND('data entry'!E18<>\"\",'data entry'!F18= \"Male\",'data entry'!J18=\"positive\"),1,\"\")","v":""},{"$f":"IF(AND('data entry'!E18<>\"\",'data entry'!F18= \"Female\",'data entry'!J18=\"positive\"),1,\"\")","v":""},{"$f":"IF(AND('data entry'!J18=\"positive\",'data entry'!AD18=\"yes\"),1,\"\")","v":""},{"$f":"IF(AND('data entry'!J18=\"positive\",'data entry'!AD18=\"yes\",'data entry'!F18=\"Male\"),1,\"\")","v":""},{"$f":"IF(AND('data entry'!J18=\"positive\",'data entry'!AD18=\"yes\",'data entry'!F18=\"Female\"),1,\"\")","v":""},{"$f":"IF(AND('data entry'!E18<>\"\",'data entry'!AF18<>\"\",'data entry'!L18<>\"\"),1,\"\")","v":""},{"$f":"IF(AND(J19=1,'data entry'!F18= \"Male\"),1,\"\")","v":""},{"$f":"IF(AND(J19=1,'data entry'!F18= \"Female\"),1,\"\")","v":""},"","","","","","","","","","","","","","","",{"$f":"IF(AND('data entry'!E18<>\"\",'data entry'!AF18<>\"\",'data entry'!L18=\"\"),1,\"\")","v":""},{"$f":"IF(AND(AB19=1,'data entry'!F18= \"Male\",'data entry'!J18=\"positive\"),1,\"\")","v":""},{"$f":"IF(AND(AB19=1,'data entry'!F18= \"Female\",'data entry'!J18=\"positive\"),1,\"\")","v":""},"","","","","","","","","","","","","","","","","","","","","","","","","","","","","","","","","",null,{"$f":"IF('data entry'!AH18=\"Positive\",1,\"\")","v":""},{"$f":"IF(AND('data entry'!AH18=\"Positive\",'data entry'!F18=\"Male\"),1,\"\")","v":""},{"$f":"IF(AND('data entry'!AH18=\"Positive\",'data entry'!F18=\"Female\"),1,\"\")","v":""},{"$f":"IF(AND('data entry'!AH18=\"Positive\",BC19=1),1,\"\")","v":""},{"$f":"IF(AND('data entry'!AH18=\"Positive\",'data entry'!F18=\"Male\",BD19=1),1,\"\")","v":""},{"$f":"IF(AND('data entry'!AH18=\"Positive\",'data entry'!F18=\"Female\",BE19=1),1,\"\")","v":""},{"$f":"IF(AND('data entry'!AH18=\"Positive\",BF19=1),1,\"\")","v":""},{"$f":"IF(AND('data entry'!AH18=\"Positive\",'data entry'!F18=\"Male\",BG19=1),1,\"\")","v":""},{"$f":"IF(AND('data entry'!AH18=\"Positive\",'data entry'!F18=\"Female\",BH19=1),1,\"\")","v":""}]
[{"$f":"'data entry'!D19","v":18},{"$f":"IF(ISBLANK('data entry'!AF19),\"no retest date\",(IF(ISBLANK('data entry'!L19),\"no treatment date\",DATEDIF('data entry'!L19,'data entry'!AF19,\"d\"))))","v":"no retest date"},{"$f":"IF(B20=\"no treatment date\",DATEDIF('data entry'!E19,'data entry'!AF19,\"d\"),\"\")","v":""},{"$f":"IF(AND('data entry'!E19<>\"\",'data entry'!J19=\"positive\"),1,\"\")","v":""},{"$f":"IF(AND('data entry'!E19<>\"\",'data entry'!F19= \"Male\",'data entry'!J19=\"positive\"),1,\"\")","v":""},{"$f":"IF(AND('data entry'!E19<>\"\",'data entry'!F19= \"Female\",'data entry'!J19=\"positive\"),1,\"\")","v":""},{"$f":"IF(AND('data entry'!J19=\"positive\",'data entry'!AD19=\"yes\"),1,\"\")","v":""},{"$f":"IF(AND('data entry'!J19=\"positive\",'data entry'!AD19=\"yes\",'data entry'!F19=\"Male\"),1,\"\")","v":""},{"$f":"IF(AND('data entry'!J19=\"positive\",'data entry'!AD19=\"yes\",'data entry'!F19=\"Female\"),1,\"\")","v":""},{"$f":"IF(AND('data entry'!E19<>\"\",'data entry'!AF19<>\"\",'data entry'!L19<>\"\"),1,\"\")","v":""},{"$f":"IF(AND(J20=1,'data entry'!F19= \"Male\"),1,\"\")","v":""},{"$f":"IF(AND(J20=1,'data entry'!F19= \"Female\"),1,\"\")","v":""},"","","","","","","","","","","","","","","",{"$f":"IF(AND('data entry'!E19<>\"\",'data entry'!AF19<>\"\",'data entry'!L19=\"\"),1,\"\")","v":""},{"$f":"IF(AND(AB20=1,'data entry'!F19= \"Male\",'data entry'!J19=\"positive\"),1,\"\")","v":""},{"$f":"IF(AND(AB20=1,'data entry'!F19= \"Female\",'data entry'!J19=\"positive\"),1,\"\")","v":""},"","","","","","","","","","","","","","","","","","","","","","","","","","","","","","","","","",null,{"$f":"IF('data entry'!AH19=\"Positive\",1,\"\")","v":""},{"$f":"IF(AND('data entry'!AH19=\"Positive\",'data entry'!F19=\"Male\"),1,\"\")","v":""},{"$f":"IF(AND('data entry'!AH19=\"Positive\",'data entry'!F19=\"Female\"),1,\"\")","v":""},{"$f":"IF(AND('data entry'!AH19=\"Positive\",BC20=1),1,\"\")","v":""},{"$f":"IF(AND('data entry'!AH19=\"Positive\",'data entry'!F19=\"Male\",BD20=1),1,\"\")","v":""},{"$f":"IF(AND('data entry'!AH19=\"Positive\",'data entry'!F19=\"Female\",BE20=1),1,\"\")","v":""},{"$f":"IF(AND('data entry'!AH19=\"Positive\",BF20=1),1,\"\")","v":""},{"$f":"IF(AND('data entry'!AH19=\"Positive\",'data entry'!F19=\"Male\",BG20=1),1,\"\")","v":""},{"$f":"IF(AND('data entry'!AH19=\"Positive\",'data entry'!F19=\"Female\",BH20=1),1,\"\")","v":""}]
[{"$f":"'data entry'!D20","v":19},{"$f":"IF(ISBLANK('data entry'!AF20),\"no retest date\",(IF(ISBLANK('data entry'!L20),\"no treatment date\",DATEDIF('data entry'!L20,'data entry'!AF20,\"d\"))))","v":"no retest date"},{"$f":"IF(B21=\"no treatment date\",DATEDIF('data entry'!E20,'data entry'!AF20,\"d\"),\"\")","v":""},{"$f":"IF(AND('data entry'!E20<>\"\",'data entry'!J20=\"positive\"),1,\"\")","v":""},{"$f":"IF(AND('data entry'!E20<>\"\",'data entry'!F20= \"Male\",'data entry'!J20=\"positive\"),1,\"\")","v":""},{"$f":"IF(AND('data entry'!E20<>\"\",'data entry'!F20= \"Female\",'data entry'!J20=\"positive\"),1,\"\")","v":""},{"$f":"IF(AND('data entry'!J20=\"positive\",'data entry'!AD20=\"yes\"),1,\"\")","v":""},{"$f":"IF(AND('data entry'!J20=\"positive\",'data entry'!AD20=\"yes\",'data entry'!F20=\"Male\"),1,\"\")","v":""},{"$f":"IF(AND('data entry'!J20=\"positive\",'data entry'!AD20=\"yes\",'data entry'!F20=\"Female\"),1,\"\")","v":""},{"$f":"IF(AND('data entry'!E20<>\"\",'data entry'!AF20<>\"\",'data entry'!L20<>\"\"),1,\"\")","v":""},{"$f":"IF(AND(J21=1,'data entry'!F20= \"Male\"),1,\"\")","v":""},{"$f":"IF(AND(J21=1,'data entry'!F20= \"Female\"),1,\"\")","v":""},"","","","","","","","","","","","","","","",{"$f":"IF(AND('data entry'!E20<>\"\",'data entry'!AF20<>\"\",'data entry'!L20=\"\"),1,\"\")","v":""},{"$f":"IF(AND(AB21=1,'data entry'!F20= \"Male\",'data entry'!J20=\"positive\"),1,\"\")","v":""},{"$f":"IF(AND(AB21=1,'data entry'!F20= \"Female\",'data entry'!J20=\"positive\"),1,\"\")","v":""},"","","","","","","","","","","","","","","","","","","","","","","","","","","","","","","","","",null,{"$f":"IF('data entry'!AH20=\"Positive\",1,\"\")","v":""},{"$f":"IF(AND('data entry'!AH20=\"Positive\",'data entry'!F20=\"Male\"),1,\"\")","v":""},{"$f":"IF(AND('data entry'!AH20=\"Positive\",'data entry'!F20=\"Female\"),1,\"\")","v":""},{"$f":"IF(AND('data entry'!AH20=\"Positive\",BC21=1),1,\"\")","v":""},{"$f":"IF(AND('data entry'!AH20=\"Positive\",'data entry'!F20=\"Male\",BD21=1),1,\"\")","v":""},{"$f":"IF(AND('data entry'!AH20=\"Positive\",'data entry'!F20=\"Female\",BE21=1),1,\"\")","v":""},{"$f":"IF(AND('data entry'!AH20=\"Positive\",BF21=1),1,\"\")","v":""},{"$f":"IF(AND('data entry'!AH20=\"Positive\",'data entry'!F20=\"Male\",BG21=1),1,\"\")","v":""},{"$f":"IF(AND('data entry'!AH20=\"Positive\",'data entry'!F20=\"Female\",BH21=1),1,\"\")","v":""}]
[{"$f":"'data entry'!D21","v":20},{"$f":"IF(ISBLANK('data entry'!AF21),\"no retest date\",(IF(ISBLANK('data entry'!L21),\"no treatment date\",DATEDIF('data entry'!L21,'data entry'!AF21,\"d\"))))","v":"no retest date"},{"$f":"IF(B22=\"no treatment date\",DATEDIF('data entry'!E21,'data entry'!AF21,\"d\"),\"\")","v":""},{"$f":"IF(AND('data entry'!E21<>\"\",'data entry'!J21=\"positive\"),1,\"\")","v":""},{"$f":"IF(AND('data entry'!E21<>\"\",'data entry'!F21= \"Male\",'data entry'!J21=\"positive\"),1,\"\")","v":""},{"$f":"IF(AND('data entry'!E21<>\"\",'data entry'!F21= \"Female\",'data entry'!J21=\"positive\"),1,\"\")","v":""},{"$f":"IF(AND('data entry'!J21=\"positive\",'data entry'!AD21=\"yes\"),1,\"\")","v":""},{"$f":"IF(AND('data entry'!J21=\"positive\",'data entry'!AD21=\"yes\",'data entry'!F21=\"Male\"),1,\"\")","v":""},{"$f":"IF(AND('data entry'!J21=\"positive\",'data entry'!AD21=\"yes\",'data entry'!F21=\"Female\"),1,\"\")","v":""},{"$f":"IF(AND('data entry'!E21<>\"\",'data entry'!AF21<>\"\",'data entry'!L21<>\"\"),1,\"\")","v":""},{"$f":"IF(AND(J22=1,'data entry'!F21= \"Male\"),1,\"\")","v":""},{"$f":"IF(AND(J22=1,'data entry'!F21= \"Female\"),1,\"\")","v":""},"","","","","","","","","","","","","","","",{"$f":"IF(AND('data entry'!E21<>\"\",'data entry'!AF21<>\"\",'data entry'!L21=\"\"),1,\"\")","v":""},{"$f":"IF(AND(AB22=1,'data entry'!F21= \"Male\",'data entry'!J21=\"positive\"),1,\"\")","v":""},{"$f":"IF(AND(AB22=1,'data entry'!F21= \"Female\",'data entry'!J21=\"positive\"),1,\"\")","v":""},"","","","","","","","","","","","","","","","","","","","","","","","",{"$f":"IF(OR(AK22=1,S22=1),1,\"\")","v":""},"","","","","","","","",null,{"$f":"IF('data entry'!AH21=\"Positive\",1,\"\")","v":""},{"$f":"IF(AND('data entry'!AH21=\"Positive\",'data entry'!F21=\"Male\"),1,\"\")","v":""},{"$f":"IF(AND('data entry'!AH21=\"Positive\",'data entry'!F21=\"Female\"),1,\"\")","v":""},{"$f":"IF(AND('data entry'!AH21=\"Positive\",BC22=1),1,\"\")","v":""},{"$f":"IF(AND('data entry'!AH21=\"Positive\",'data entry'!F21=\"Male\",BD22=1),1,\"\")","v":""},{"$f":"IF(AND('data entry'!AH21=\"Positive\",'data entry'!F21=\"Female\",BE22=1),1,\"\")","v":""},{"$f":"IF(AND('data entry'!AH21=\"Positive\",BF22=1),1,\"\")","v":""},{"$f":"IF(AND('data entry'!AH21=\"Positive\",'data entry'!F21=\"Male\",BG22=1),1,\"\")","v":""},{"$f":"IF(AND('data entry'!AH21=\"Positive\",'data entry'!F21=\"Female\",BH22=1),1,\"\")","v":""}]
[{"$f":"'data entry'!D22","v":21},{"$f":"IF(ISBLANK('data entry'!AF22),\"no retest date\",(IF(ISBLANK('data entry'!L22),\"no treatment date\",DATEDIF('data entry'!L22,'data entry'!AF22,\"d\"))))","v":"no retest date"},{"$f":"IF(B23=\"no treatment date\",DATEDIF('data entry'!E22,'data entry'!AF22,\"d\"),\"\")","v":""},{"$f":"IF(AND('data entry'!E22<>\"\",'data entry'!J22=\"positive\"),1,\"\")","v":""},{"$f":"IF(AND('data entry'!E22<>\"\",'data entry'!F22= \"Male\",'data entry'!J22=\"positive\"),1,\"\")","v":""},{"$f":"IF(AND('data entry'!E22<>\"\",'data entry'!F22= \"Female\",'data entry'!J22=\"positive\"),1,\"\")","v":""},{"$f":"IF(AND('data entry'!J22=\"positive\",'data entry'!AD22=\"yes\"),1,\"\")","v":""},{"$f":"IF(AND('data entry'!J22=\"positive\",'data entry'!AD22=\"yes\",'data entry'!F22=\"Male\"),1,\"\")","v":""},{"$f":"IF(AND('data entry'!J22=\"positive\",'data entry'!AD22=\"yes\",'data entry'!F22=\"Female\"),1,\"\")","v":""},{"$f":"IF(AND('data entry'!E22<>\"\",'data entry'!AF22<>\"\",'data entry'!L22<>\"\"),1,\"\")","v":""},{"$f":"IF(AND(J23=1,'data entry'!F22= \"Male\"),1,\"\")","v":""},{"$f":"IF(AND(J23=1,'data entry'!F22= \"Female\"),1,\"\")","v":""},"","","","","","","","","","","","","","","",{"$f":"IF(AND('data entry'!E22<>\"\",'data entry'!AF22<>\"\",'data entry'!L22=\"\"),1,\"\")","v":""},{"$f":"IF(AND(AB23=1,'data entry'!F22= \"Male\",'data entry'!J22=\"positive\"),1,\"\")","v":""},{"$f":"IF(AND(AB23=1,'data entry'!F22= \"Female\",'data entry'!J22=\"positive\"),1,\"\")","v":""},"","","","","","","","","","","","","","","",{"$f":"IF(OR(AB23=1,J23=1),1,\"\")","v":""},"","","","","","","","","","","","","","","","","",null,{"$f":"IF('data entry'!AH22=\"Positive\",1,\"\")","v":""},{"$f":"IF(AND('data entry'!AH22=\"Positive\",'data entry'!F22=\"Male\"),1,\"\")","v":""},{"$f":"IF(AND('data entry'!AH22=\"Positive\",'data entry'!F22=\"Female\"),1,\"\")","v":""},{"$f":"IF(AND('data entry'!AH22=\"Positive\",BC23=1),1,\"\")","v":""},{"$f":"IF(AND('data entry'!AH22=\"Positive\",'data entry'!F22=\"Male\",BD23=1),1,\"\")","v":""},{"$f":"IF(AND('data entry'!AH22=\"Positive\",'data entry'!F22=\"Female\",BE23=1),1,\"\")","v":""},{"$f":"IF(AND('data entry'!AH22=\"Positive\",BF23=1),1,\"\")","v":""},{"$f":"IF(AND('data entry'!AH22=\"Positive\",'data entry'!F22=\"Male\",BG23=1),1,\"\")","v":""},{"$f":"IF(AND('data entry'!AH22=\"Positive\",'data entry'!F22=\"Female\",BH23=1),1,\"\")","v":""}]
[{"$f":"'data entry'!D23","v":22},{"$f":"IF(ISBLANK('data entry'!AF23),\"no retest date\",(IF(ISBLANK('data entry'!L23),\"no treatment date\",DATEDIF('data entry'!L23,'data entry'!AF23,\"d\"))))","v":"no retest date"},{"$f":"IF(B24=\"no treatment date\",DATEDIF('data entry'!E23,'data entry'!AF23,\"d\"),\"\")","v":""},{"$f":"IF(AND('data entry'!E23<>\"\",'data entry'!J23=\"positive\"),1,\"\")","v":""},{"$f":"IF(AND('data entry'!E23<>\"\",'data entry'!F23= \"Male\",'data entry'!J23=\"positive\"),1,\"\")","v":""},{"$f":"IF(AND('data entry'!E23<>\"\",'data entry'!F23= \"Female\",'data entry'!J23=\"positive\"),1,\"\")","v":""},{"$f":"IF(AND('data entry'!J23=\"positive\",'data entry'!AD23=\"yes\"),1,\"\")","v":""},{"$f":"IF(AND('data entry'!J23=\"positive\",'data entry'!AD23=\"yes\",'data entry'!F23=\"Male\"),1,\"\")","v":""},{"$f":"IF(AND('data entry'!J23=\"positive\",'data entry'!AD23=\"yes\",'data entry'!F23=\"Female\"),1,\"\")","v":""},{"$f":"IF(AND('data entry'!E23<>\"\",'data entry'!AF23<>\"\",'data entry'!L23<>\"\"),1,\"\")","v":""},{"$f":"IF(AND(J24=1,'data entry'!F23= \"Male\"),1,\"\")","v":""},{"$f":"IF(AND(J24=1,'data entry'!F23= \"Female\"),1,\"\")","v":""},"","","","","","","","","","","","","","","",{"$f":"IF(AND('data entry'!E23<>\"\",'data entry'!AF23<>\"\",'data entry'!L23=\"\"),1,\"\")","v":""},{"$f":"IF(AND(AB24=1,'data entry'!F23= \"Male\",'data entry'!J23=\"positive\"),1,\"\")","v":""},{"$f":"IF(AND(AB24=1,'data entry'!F23= \"Female\",'data entry'!J23=\"positive\"),1,\"\")","v":""},"","","","","","","","","","","","","","","","","","","","","","","","","","","","","","","","","",null,{"$f":"IF('data entry'!AH23=\"Positive\",1,\"\")","v":""},{"$f":"IF(AND('data entry'!AH23=\"Positive\",'data entry'!F23=\"Male\"),1,\"\")","v":""},{"$f":"IF(AND('data entry'!AH23=\"Positive\",'data entry'!F23=\"Female\"),1,\"\")","v":""},{"$f":"IF(AND('data entry'!AH23=\"Positive\",BC24=1),1,\"\")","v":""},{"$f":"IF(AND('data entry'!AH23=\"Positive\",'data entry'!F23=\"Male\",BD24=1),1,\"\")","v":""},{"$f":"IF(AND('data entry'!AH23=\"Positive\",'data entry'!F23=\"Female\",BE24=1),1,\"\")","v":""},{"$f":"IF(AND('data entry'!AH23=\"Positive\",BF24=1),1,\"\")","v":""},{"$f":"IF(AND('data entry'!AH23=\"Positive\",'data entry'!F23=\"Male\",BG24=1),1,\"\")","v":""},{"$f":"IF(AND('data entry'!AH23=\"Positive\",'data entry'!F23=\"Female\",BH24=1),1,\"\")","v":""}]
[{"$f":"'data entry'!D24","v":23},{"$f":"IF(ISBLANK('data entry'!AF24),\"no retest date\",(IF(ISBLANK('data entry'!L24),\"no treatment date\",DATEDIF('data entry'!L24,'data entry'!AF24,\"d\"))))","v":"no retest date"},{"$f":"IF(B25=\"no treatment date\",DATEDIF('data entry'!E24,'data entry'!AF24,\"d\"),\"\")","v":""},{"$f":"IF(AND('data entry'!E24<>\"\",'data entry'!J24=\"positive\"),1,\"\")","v":""},{"$f":"IF(AND('data entry'!E24<>\"\",'data entry'!F24= \"Male\",'data entry'!J24=\"positive\"),1,\"\")","v":""},{"$f":"IF(AND('data entry'!E24<>\"\",'data entry'!F24= \"Female\",'data entry'!J24=\"positive\"),1,\"\")","v":""},{"$f":"IF(AND('data entry'!J24=\"positive\",'data entry'!AD24=\"yes\"),1,\"\")","v":""},{"$f":"IF(AND('data entry'!J24=\"positive\",'data entry'!AD24=\"yes\",'data entry'!F24=\"Male\"),1,\"\")","v":""},{"$f":"IF(AND('data entry'!J24=\"positive\",'data entry'!AD24=\"yes\",'data entry'!F24=\"Female\"),1,\"\")","v":""},{"$f":"IF(AND('data entry'!E24<>\"\",'data entry'!AF24<>\"\",'data entry'!L24<>\"\"),1,\"\")","v":""},{"$f":"IF(AND(J25=1,'data entry'!F24= \"Male\"),1,\"\")","v":""},{"$f":"IF(AND(J25=1,'data entry'!F24= \"Female\"),1,\"\")","v":""},"","","","","","","","","","","","","","","",{"$f":"IF(AND('data entry'!E24<>\"\",'data entry'!AF24<>\"\",'data entry'!L24=\"\"),1,\"\")","v":""},{"$f":"IF(AND(AB25=1,'data entry'!F24= \"Male\",'data entry'!J24=\"positive\"),1,\"\")","v":""},{"$f":"IF(AND(AB25=1,'data entry'!F24= \"Female\",'data entry'!J24=\"positive\"),1,\"\")","v":""},"","","","","","","","","","","","","","","","","","","","","","","","","","","","","","","","","",null,{"$f":"IF('data entry'!AH24=\"Positive\",1,\"\")","v":""},{"$f":"IF(AND('data entry'!AH24=\"Positive\",'data entry'!F24=\"Male\"),1,\"\")","v":""},{"$f":"IF(AND('data entry'!AH24=\"Positive\",'data entry'!F24=\"Female\"),1,\"\")","v":""},{"$f":"IF(AND('data entry'!AH24=\"Positive\",BC25=1),1,\"\")","v":""},{"$f":"IF(AND('data entry'!AH24=\"Positive\",'data entry'!F24=\"Male\",BD25=1),1,\"\")","v":""},{"$f":"IF(AND('data entry'!AH24=\"Positive\",'data entry'!F24=\"Female\",BE25=1),1,\"\")","v":""},{"$f":"IF(AND('data entry'!AH24=\"Positive\",BF25=1),1,\"\")","v":""},{"$f":"IF(AND('data entry'!AH24=\"Positive\",'data entry'!F24=\"Male\",BG25=1),1,\"\")","v":""},{"$f":"IF(AND('data entry'!AH24=\"Positive\",'data entry'!F24=\"Female\",BH25=1),1,\"\")","v":""}]
[{"$f":"'data entry'!D25","v":24},{"$f":"IF(ISBLANK('data entry'!AF25),\"no retest date\",(IF(ISBLANK('data entry'!L25),\"no treatment date\",DATEDIF('data entry'!L25,'data entry'!AF25,\"d\"))))","v":"no retest date"},{"$f":"IF(B26=\"no treatment date\",DATEDIF('data entry'!E25,'data entry'!AF25,\"d\"),\"\")","v":""},{"$f":"IF(AND('data entry'!E25<>\"\",'data entry'!J25=\"positive\"),1,\"\")","v":""},{"$f":"IF(AND('data entry'!E25<>\"\",'data entry'!F25= \"Male\",'data entry'!J25=\"positive\"),1,\"\")","v":""},{"$f":"IF(AND('data entry'!E25<>\"\",'data entry'!F25= \"Female\",'data entry'!J25=\"positive\"),1,\"\")","v":""},{"$f":"IF(AND('data entry'!J25=\"positive\",'data entry'!AD25=\"yes\"),1,\"\")","v":""},{"$f":"IF(AND('data entry'!J25=\"positive\",'data entry'!AD25=\"yes\",'data entry'!F25=\"Male\"),1,\"\")","v":""},{"$f":"IF(AND('data entry'!J25=\"positive\",'data entry'!AD25=\"yes\",'data entry'!F25=\"Female\"),1,\"\")","v":""},{"$f":"IF(AND('data entry'!E25<>\"\",'data entry'!AF25<>\"\",'data entry'!L25<>\"\"),1,\"\")","v":""},{"$f":"IF(AND(J26=1,'data entry'!F25= \"Male\"),1,\"\")","v":""},{"$f":"IF(AND(J26=1,'data entry'!F25= \"Female\"),1,\"\")","v":""},"","","","","","","","","","","","","","","",{"$f":"IF(AND('data entry'!E25<>\"\",'data entry'!AF25<>\"\",'data entry'!L25=\"\"),1,\"\")","v":""},{"$f":"IF(AND(AB26=1,'data entry'!F25= \"Male\",'data entry'!J25=\"positive\"),1,\"\")","v":""},{"$f":"IF(AND(AB26=1,'data entry'!F25= \"Female\",'data entry'!J25=\"positive\"),1,\"\")","v":""},"","","","","","","","","","","","","","","","","","","","","","","","","","","","","","","","","",null,{"$f":"IF('data entry'!AH25=\"Positive\",1,\"\")","v":""},{"$f":"IF(AND('data entry'!AH25=\"Positive\",'data entry'!F25=\"Male\"),1,\"\")","v":""},{"$f":"IF(AND('data entry'!AH25=\"Positive\",'data entry'!F25=\"Female\"),1,\"\")","v":""},{"$f":"IF(AND('data entry'!AH25=\"Positive\",BC26=1),1,\"\")","v":""},{"$f":"IF(AND('data entry'!AH25=\"Positive\",'data entry'!F25=\"Male\",BD26=1),1,\"\")","v":""},{"$f":"IF(AND('data entry'!AH25=\"Positive\",'data entry'!F25=\"Female\",BE26=1),1,\"\")","v":""},{"$f":"IF(AND('data entry'!AH25=\"Positive\",BF26=1),1,\"\")","v":""},{"$f":"IF(AND('data entry'!AH25=\"Positive\",'data entry'!F25=\"Male\",BG26=1),1,\"\")","v":""},{"$f":"IF(AND('data entry'!AH25=\"Positive\",'data entry'!F25=\"Female\",BH26=1),1,\"\")","v":""}]
[{"$f":"'data entry'!D26","v":25},{"$f":"IF(ISBLANK('data entry'!AF26),\"no retest date\",(IF(ISBLANK('data entry'!L26),\"no treatment date\",DATEDIF('data entry'!L26,'data entry'!AF26,\"d\"))))","v":"no retest date"},{"$f":"IF(B27=\"no treatment date\",DATEDIF('data entry'!E26,'data entry'!AF26,\"d\"),\"\")","v":""},{"$f":"IF(AND('data entry'!E26<>\"\",'data entry'!J26=\"positive\"),1,\"\")","v":""},{"$f":"IF(AND('data entry'!E26<>\"\",'data entry'!F26= \"Male\",'data entry'!J26=\"positive\"),1,\"\")","v":""},{"$f":"IF(AND('data entry'!E26<>\"\",'data entry'!F26= \"Female\",'data entry'!J26=\"positive\"),1,\"\")","v":""},{"$f":"IF(AND('data entry'!J26=\"positive\",'data entry'!AD26=\"yes\"),1,\"\")","v":""},{"$f":"IF(AND('data entry'!J26=\"positive\",'data entry'!AD26=\"yes\",'data entry'!F26=\"Male\"),1,\"\")","v":""},{"$f":"IF(AND('data entry'!J26=\"positive\",'data entry'!AD26=\"yes\",'data entry'!F26=\"Female\"),1,\"\")","v":""},{"$f":"IF(AND('data entry'!E26<>\"\",'data entry'!AF26<>\"\",'data entry'!L26<>\"\"),1,\"\")","v":""},{"$f":"IF(AND(J27=1,'data entry'!F26= \"Male\"),1,\"\")","v":""},{"$f":"IF(AND(J27=1,'data entry'!F26= \"Female\"),1,\"\")","v":""},"","","","","","","","","","","","","","","",{"$f":"IF(AND('data entry'!E26<>\"\",'data entry'!AF26<>\"\",'data entry'!L26=\"\"),1,\"\")","v":""},{"$f":"IF(AND(AB27=1,'data entry'!F26= \"Male\",'data entry'!J26=\"positive\"),1,\"\")","v":""},{"$f":"IF(AND(AB27=1,'data entry'!F26= \"Female\",'data entry'!J26=\"positive\"),1,\"\")","v":""},"","","","","","","","","","","","","","","","","","","","","","","","","","","","","","","","","",null,{"$f":"IF('data entry'!AH26=\"Positive\",1,\"\")","v":""},{"$f":"IF(AND('data entry'!AH26=\"Positive\",'data entry'!F26=\"Male\"),1,\"\")","v":""},{"$f":"IF(AND('data entry'!AH26=\"Positive\",'data entry'!F26=\"Female\"),1,\"\")","v":""},{"$f":"IF(AND('data entry'!AH26=\"Positive\",BC27=1),1,\"\")","v":""},{"$f":"IF(AND('data entry'!AH26=\"Positive\",'data entry'!F26=\"Male\",BD27=1),1,\"\")","v":""},{"$f":"IF(AND('data entry'!AH26=\"Positive\",'data entry'!F26=\"Female\",BE27=1),1,\"\")","v":""},{"$f":"IF(AND('data entry'!AH26=\"Positive\",BF27=1),1,\"\")","v":""},{"$f":"IF(AND('data entry'!AH26=\"Positive\",'data entry'!F26=\"Male\",BG27=1),1,\"\")","v":""},{"$f":"IF(AND('data entry'!AH26=\"Positive\",'data entry'!F26=\"Female\",BH27=1),1,\"\")","v":""}]
[{"$f":"'data entry'!D27","v":26},{"$f":"IF(ISBLANK('data entry'!AF27),\"no retest date\",(IF(ISBLANK('data entry'!L27),\"no treatment date\",DATEDIF('data entry'!L27,'data entry'!AF27,\"d\"))))","v":"no retest date"},{"$f":"IF(B28=\"no treatment date\",DATEDIF('data entry'!E27,'data entry'!AF27,\"d\"),\"\")","v":""},{"$f":"IF(AND('data entry'!E27<>\"\",'data entry'!J27=\"positive\"),1,\"\")","v":""},{"$f":"IF(AND('data entry'!E27<>\"\",'data entry'!F27= \"Male\",'data entry'!J27=\"positive\"),1,\"\")","v":""},{"$f":"IF(AND('data entry'!E27<>\"\",'data entry'!F27= \"Female\",'data entry'!J27=\"positive\"),1,\"\")","v":""},{"$f":"IF(AND('data entry'!J27=\"positive\",'data entry'!AD27=\"yes\"),1,\"\")","v":""},{"$f":"IF(AND('data entry'!J27=\"positive\",'data entry'!AD27=\"yes\",'data entry'!F27=\"Male\"),1,\"\")","v":""},{"$f":"IF(AND('data entry'!J27=\"positive\",'data entry'!AD27=\"yes\",'data entry'!F27=\"Female\"),1,\"\")","v":""},{"$f":"IF(AND('data entry'!E27<>\"\",'data entry'!AF27<>\"\",'data entry'!L27<>\"\"),1,\"\")","v":""},{"$f":"IF(AND(J28=1,'data entry'!F27= \"Male\"),1,\"\")","v":""},{"$f":"IF(AND(J28=1,'data entry'!F27= \"Female\"),1,\"\")","v":""},"","","","","","","","","","","","","","","",{"$f":"IF(AND('data entry'!E27<>\"\",'data entry'!AF27<>\"\",'data entry'!L27=\"\"),1,\"\")","v":""},{"$f":"IF(AND(AB28=1,'data entry'!F27= \"Male\",'data entry'!J27=\"positive\"),1,\"\")","v":""},{"$f":"IF(AND(AB28=1,'data entry'!F27= \"Female\",'data entry'!J27=\"positive\"),1,\"\")","v":""},"","","","","","","","","","","","","","","","","","","","","","","","","","","","","","","","","",null,{"$f":"IF('data entry'!AH27=\"Positive\",1,\"\")","v":""},{"$f":"IF(AND('data entry'!AH27=\"Positive\",'data entry'!F27=\"Male\"),1,\"\")","v":""},{"$f":"IF(AND('data entry'!AH27=\"Positive\",'data entry'!F27=\"Female\"),1,\"\")","v":""},{"$f":"IF(AND('data entry'!AH27=\"Positive\",BC28=1),1,\"\")","v":""},{"$f":"IF(AND('data entry'!AH27=\"Positive\",'data entry'!F27=\"Male\",BD28=1),1,\"\")","v":""},{"$f":"IF(AND('data entry'!AH27=\"Positive\",'data entry'!F27=\"Female\",BE28=1),1,\"\")","v":""},{"$f":"IF(AND('data entry'!AH27=\"Positive\",BF28=1),1,\"\")","v":""},{"$f":"IF(AND('data entry'!AH27=\"Positive\",'data entry'!F27=\"Male\",BG28=1),1,\"\")","v":""},{"$f":"IF(AND('data entry'!AH27=\"Positive\",'data entry'!F27=\"Female\",BH28=1),1,\"\")","v":""}]
[{"$f":"'data entry'!D28","v":27},{"$f":"IF(ISBLANK('data entry'!AF28),\"no retest date\",(IF(ISBLANK('data entry'!L28),\"no treatment date\",DATEDIF('data entry'!L28,'data entry'!AF28,\"d\"))))","v":"no retest date"},{"$f":"IF(B29=\"no treatment date\",DATEDIF('data entry'!E28,'data entry'!AF28,\"d\"),\"\")","v":""},{"$f":"IF(AND('data entry'!E28<>\"\",'data entry'!J28=\"positive\"),1,\"\")","v":""},{"$f":"IF(AND('data entry'!E28<>\"\",'data entry'!F28= \"Male\",'data entry'!J28=\"positive\"),1,\"\")","v":""},{"$f":"IF(AND('data entry'!E28<>\"\",'data entry'!F28= \"Female\",'data entry'!J28=\"positive\"),1,\"\")","v":""},{"$f":"IF(AND('data entry'!J28=\"positive\",'data entry'!AD28=\"yes\"),1,\"\")","v":""},{"$f":"IF(AND('data entry'!J28=\"positive\",'data entry'!AD28=\"yes\",'data entry'!F28=\"Male\"),1,\"\")","v":""},{"$f":"IF(AND('data entry'!J28=\"positive\",'data entry'!AD28=\"yes\",'data entry'!F28=\"Female\"),1,\"\")","v":""},{"$f":"IF(AND('data entry'!E28<>\"\",'data entry'!AF28<>\"\",'data entry'!L28<>\"\"),1,\"\")","v":""},{"$f":"IF(AND(J29=1,'data entry'!F28= \"Male\"),1,\"\")","v":""},{"$f":"IF(AND(J29=1,'data entry'!F28= \"Female\"),1,\"\")","v":""},"","","","","","","","","","","","","","","",{"$f":"IF(AND('data entry'!E28<>\"\",'data entry'!AF28<>\"\",'data entry'!L28=\"\"),1,\"\")","v":""},{"$f":"IF(AND(AB29=1,'data entry'!F28= \"Male\",'data entry'!J28=\"positive\"),1,\"\")","v":""},{"$f":"IF(AND(AB29=1,'data entry'!F28= \"Female\",'data entry'!J28=\"positive\"),1,\"\")","v":""},"","","","","","","","","","","","","","","","","","","","","","","","","","","","","","","","","",null,{"$f":"IF('data entry'!AH28=\"Positive\",1,\"\")","v":""},{"$f":"IF(AND('data entry'!AH28=\"Positive\",'data entry'!F28=\"Male\"),1,\"\")","v":""},{"$f":"IF(AND('data entry'!AH28=\"Positive\",'data entry'!F28=\"Female\"),1,\"\")","v":""},{"$f":"IF(AND('data entry'!AH28=\"Positive\",BC29=1),1,\"\")","v":""},{"$f":"IF(AND('data entry'!AH28=\"Positive\",'data entry'!F28=\"Male\",BD29=1),1,\"\")","v":""},{"$f":"IF(AND('data entry'!AH28=\"Positive\",'data entry'!F28=\"Female\",BE29=1),1,\"\")","v":""},{"$f":"IF(AND('data entry'!AH28=\"Positive\",BF29=1),1,\"\")","v":""},{"$f":"IF(AND('data entry'!AH28=\"Positive\",'data entry'!F28=\"Male\",BG29=1),1,\"\")","v":""},{"$f":"IF(AND('data entry'!AH28=\"Positive\",'data entry'!F28=\"Female\",BH29=1),1,\"\")","v":""}]
[{"$f":"'data entry'!D29","v":28},{"$f":"IF(ISBLANK('data entry'!AF29),\"no retest date\",(IF(ISBLANK('data entry'!L29),\"no treatment date\",DATEDIF('data entry'!L29,'data entry'!AF29,\"d\"))))","v":"no retest date"},{"$f":"IF(B30=\"no treatment date\",DATEDIF('data entry'!E29,'data entry'!AF29,\"d\"),\"\")","v":""},{"$f":"IF(AND('data entry'!E29<>\"\",'data entry'!J29=\"positive\"),1,\"\")","v":""},{"$f":"IF(AND('data entry'!E29<>\"\",'data entry'!F29= \"Male\",'data entry'!J29=\"positive\"),1,\"\")","v":""},{"$f":"IF(AND('data entry'!E29<>\"\",'data entry'!F29= \"Female\",'data entry'!J29=\"positive\"),1,\"\")","v":""},{"$f":"IF(AND('data entry'!J29=\"positive\",'data entry'!AD29=\"yes\"),1,\"\")","v":""},{"$f":"IF(AND('data entry'!J29=\"positive\",'data entry'!AD29=\"yes\",'data entry'!F29=\"Male\"),1,\"\")","v":""},{"$f":"IF(AND('data entry'!J29=\"positive\",'data entry'!AD29=\"yes\",'data entry'!F29=\"Female\"),1,\"\")","v":""},{"$f":"IF(AND('data entry'!E29<>\"\",'data entry'!AF29<>\"\",'data entry'!L29<>\"\"),1,\"\")","v":""},{"$f":"IF(AND(J30=1,'data entry'!F29= \"Male\"),1,\"\")","v":""},{"$f":"IF(AND(J30=1,'data entry'!F29= \"Female\"),1,\"\")","v":""},"","","","","","","","","","","","","","","",{"$f":"IF(AND('data entry'!E29<>\"\",'data entry'!AF29<>\"\",'data entry'!L29=\"\"),1,\"\")","v":""},{"$f":"IF(AND(AB30=1,'data entry'!F29= \"Male\",'data entry'!J29=\"positive\"),1,\"\")","v":""},{"$f":"IF(AND(AB30=1,'data entry'!F29= \"Female\",'data entry'!J29=\"positive\"),1,\"\")","v":""},"","","","","","","","","","","","","","","","","","","","","","","","","","","","","","","","","",null,{"$f":"IF('data entry'!AH29=\"Positive\",1,\"\")","v":""},{"$f":"IF(AND('data entry'!AH29=\"Positive\",'data entry'!F29=\"Male\"),1,\"\")","v":""},{"$f":"IF(AND('data entry'!AH29=\"Positive\",'data entry'!F29=\"Female\"),1,\"\")","v":""},{"$f":"IF(AND('data entry'!AH29=\"Positive\",BC30=1),1,\"\")","v":""},{"$f":"IF(AND('data entry'!AH29=\"Positive\",'data entry'!F29=\"Male\",BD30=1),1,\"\")","v":""},{"$f":"IF(AND('data entry'!AH29=\"Positive\",'data entry'!F29=\"Female\",BE30=1),1,\"\")","v":""},{"$f":"IF(AND('data entry'!AH29=\"Positive\",BF30=1),1,\"\")","v":""},{"$f":"IF(AND('data entry'!AH29=\"Positive\",'data entry'!F29=\"Male\",BG30=1),1,\"\")","v":""},{"$f":"IF(AND('data entry'!AH29=\"Positive\",'data entry'!F29=\"Female\",BH30=1),1,\"\")","v":""}]
[{"$f":"'data entry'!D30","v":29},{"$f":"IF(ISBLANK('data entry'!AF30),\"no retest date\",(IF(ISBLANK('data entry'!L30),\"no treatment date\",DATEDIF('data entry'!L30,'data entry'!AF30,\"d\"))))","v":"no retest date"},{"$f":"IF(B31=\"no treatment date\",DATEDIF('data entry'!E30,'data entry'!AF30,\"d\"),\"\")","v":""},{"$f":"IF(AND('data entry'!E30<>\"\",'data entry'!J30=\"positive\"),1,\"\")","v":""},{"$f":"IF(AND('data entry'!E30<>\"\",'data entry'!F30= \"Male\",'data entry'!J30=\"positive\"),1,\"\")","v":""},{"$f":"IF(AND('data entry'!E30<>\"\",'data entry'!F30= \"Female\",'data entry'!J30=\"positive\"),1,\"\")","v":""},{"$f":"IF(AND('data entry'!J30=\"positive\",'data entry'!AD30=\"yes\"),1,\"\")","v":""},{"$f":"IF(AND('data entry'!J30=\"positive\",'data entry'!AD30=\"yes\",'data entry'!F30=\"Male\"),1,\"\")","v":""},{"$f":"IF(AND('data entry'!J30=\"positive\",'data entry'!AD30=\"yes\",'data entry'!F30=\"Female\"),1,\"\")","v":""},{"$f":"IF(AND('data entry'!E30<>\"\",'data entry'!AF30<>\"\",'data entry'!L30<>\"\"),1,\"\")","v":""},{"$f":"IF(AND(J31=1,'data entry'!F30= \"Male\"),1,\"\")","v":""},{"$f":"IF(AND(J31=1,'data entry'!F30= \"Female\"),1,\"\")","v":""},"","","","","","","","","","","","","","","",{"$f":"IF(AND('data entry'!E30<>\"\",'data entry'!AF30<>\"\",'data entry'!L30=\"\"),1,\"\")","v":""},{"$f":"IF(AND(AB31=1,'data entry'!F30= \"Male\",'data entry'!J30=\"positive\"),1,\"\")","v":""},{"$f":"IF(AND(AB31=1,'data entry'!F30= \"Female\",'data entry'!J30=\"positive\"),1,\"\")","v":""},"","","","","","","","","","","","","","","","","","","","","","","","","","","","","","","","","",null,{"$f":"IF('data entry'!AH30=\"Positive\",1,\"\")","v":""},{"$f":"IF(AND('data entry'!AH30=\"Positive\",'data entry'!F30=\"Male\"),1,\"\")","v":""},{"$f":"IF(AND('data entry'!AH30=\"Positive\",'data entry'!F30=\"Female\"),1,\"\")","v":""},{"$f":"IF(AND('data entry'!AH30=\"Positive\",BC31=1),1,\"\")","v":""},{"$f":"IF(AND('data entry'!AH30=\"Positive\",'data entry'!F30=\"Male\",BD31=1),1,\"\")","v":""},{"$f":"IF(AND('data entry'!AH30=\"Positive\",'data entry'!F30=\"Female\",BE31=1),1,\"\")","v":""},{"$f":"IF(AND('data entry'!AH30=\"Positive\",BF31=1),1,\"\")","v":""},{"$f":"IF(AND('data entry'!AH30=\"Positive\",'data entry'!F30=\"Male\",BG31=1),1,\"\")","v":""},{"$f":"IF(AND('data entry'!AH30=\"Positive\",'data entry'!F30=\"Female\",BH31=1),1,\"\")","v":""}]
[{"$f":"'data entry'!D31","v":30},{"$f":"IF(ISBLANK('data entry'!AF31),\"no retest date\",(IF(ISBLANK('data entry'!L31),\"no treatment date\",DATEDIF('data entry'!L31,'data entry'!AF31,\"d\"))))","v":"no retest date"},{"$f":"IF(B32=\"no treatment date\",DATEDIF('data entry'!E31,'data entry'!AF31,\"d\"),\"\")","v":""},{"$f":"IF(AND('data entry'!E31<>\"\",'data entry'!J31=\"positive\"),1,\"\")","v":""},{"$f":"IF(AND('data entry'!E31<>\"\",'data entry'!F31= \"Male\",'data entry'!J31=\"positive\"),1,\"\")","v":""},{"$f":"IF(AND('data entry'!E31<>\"\",'data entry'!F31= \"Female\",'data entry'!J31=\"positive\"),1,\"\")","v":""},{"$f":"IF(AND('data entry'!J31=\"positive\",'data entry'!AD31=\"yes\"),1,\"\")","v":""},{"$f":"IF(AND('data entry'!J31=\"positive\",'data entry'!AD31=\"yes\",'data entry'!F31=\"Male\"),1,\"\")","v":""},{"$f":"IF(AND('data entry'!J31=\"positive\",'data entry'!AD31=\"yes\",'data entry'!F31=\"Female\"),1,\"\")","v":""},{"$f":"IF(AND('data entry'!E31<>\"\",'data entry'!AF31<>\"\",'data entry'!L31<>\"\"),1,\"\")","v":""},{"$f":"IF(AND(J32=1,'data entry'!F31= \"Male\"),1,\"\")","v":""},{"$f":"IF(AND(J32=1,'data entry'!F31= \"Female\"),1,\"\")","v":""},"","","","","","","","","","","","","","","",{"$f":"IF(AND('data entry'!E31<>\"\",'data entry'!AF31<>\"\",'data entry'!L31=\"\"),1,\"\")","v":""},{"$f":"IF(AND(AB32=1,'data entry'!F31= \"Male\",'data entry'!J31=\"positive\"),1,\"\")","v":""},{"$f":"IF(AND(AB32=1,'data entry'!F31= \"Female\",'data entry'!J31=\"positive\"),1,\"\")","v":""},"","","","","","","","","","","","","","","","","","","","","","","","","","","","","","","","","",null,{"$f":"IF('data entry'!AH31=\"Positive\",1,\"\")","v":""},{"$f":"IF(AND('data entry'!AH31=\"Positive\",'data entry'!F31=\"Male\"),1,\"\")","v":""},{"$f":"IF(AND('data entry'!AH31=\"Positive\",'data entry'!F31=\"Female\"),1,\"\")","v":""},{"$f":"IF(AND('data entry'!AH31=\"Positive\",BC32=1),1,\"\")","v":""},{"$f":"IF(AND('data entry'!AH31=\"Positive\",'data entry'!F31=\"Male\",BD32=1),1,\"\")","v":""},{"$f":"IF(AND('data entry'!AH31=\"Positive\",'data entry'!F31=\"Female\",BE32=1),1,\"\")","v":""},{"$f":"IF(AND('data entry'!AH31=\"Positive\",BF32=1),1,\"\")","v":""},{"$f":"IF(AND('data entry'!AH31=\"Positive\",'data entry'!F31=\"Male\",BG32=1),1,\"\")","v":""},{"$f":"IF(AND('data entry'!AH31=\"Positive\",'data entry'!F31=\"Female\",BH32=1),1,\"\")","v":""}]
[{"$f":"'data entry'!D32","v":31},{"$f":"IF(ISBLANK('data entry'!AF32),\"no retest date\",(IF(ISBLANK('data entry'!L32),\"no treatment date\",DATEDIF('data entry'!L32,'data entry'!AF32,\"d\"))))","v":"no retest date"},{"$f":"IF(B33=\"no treatment date\",DATEDIF('data entry'!E32,'data entry'!AF32,\"d\"),\"\")","v":""},{"$f":"IF(AND('data entry'!E32<>\"\",'data entry'!J32=\"positive\"),1,\"\")","v":""},{"$f":"IF(AND('data entry'!E32<>\"\",'data entry'!F32= \"Male\",'data entry'!J32=\"positive\"),1,\"\")","v":""},{"$f":"IF(AND('data entry'!E32<>\"\",'data entry'!F32= \"Female\",'data entry'!J32=\"positive\"),1,\"\")","v":""},{"$f":"IF(AND('data entry'!J32=\"positive\",'data entry'!AD32=\"yes\"),1,\"\")","v":""},{"$f":"IF(AND('data entry'!J32=\"positive\",'data entry'!AD32=\"yes\",'data entry'!F32=\"Male\"),1,\"\")","v":""},{"$f":"IF(AND('data entry'!J32=\"positive\",'data entry'!AD32=\"yes\",'data entry'!F32=\"Female\"),1,\"\")","v":""},{"$f":"IF(AND('data entry'!E32<>\"\",'data entry'!AF32<>\"\",'data entry'!L32<>\"\"),1,\"\")","v":""},{"$f":"IF(AND(J33=1,'data entry'!F32= \"Male\"),1,\"\")","v":""},{"$f":"IF(AND(J33=1,'data entry'!F32= \"Female\"),1,\"\")","v":""},"","","","","","","","","","","","","","","",{"$f":"IF(AND('data entry'!E32<>\"\",'data entry'!AF32<>\"\",'data entry'!L32=\"\"),1,\"\")","v":""},{"$f":"IF(AND(AB33=1,'data entry'!F32= \"Male\",'data entry'!J32=\"positive\"),1,\"\")","v":""},{"$f":"IF(AND(AB33=1,'data entry'!F32= \"Female\",'data entry'!J32=\"positive\"),1,\"\")","v":""},"","","","","","","","","","","","","","","","","","","","","","","","","","","","","","","","","",null,{"$f":"IF('data entry'!AH32=\"Positive\",1,\"\")","v":""},{"$f":"IF(AND('data entry'!AH32=\"Positive\",'data entry'!F32=\"Male\"),1,\"\")","v":""},{"$f":"IF(AND('data entry'!AH32=\"Positive\",'data entry'!F32=\"Female\"),1,\"\")","v":""},{"$f":"IF(AND('data entry'!AH32=\"Positive\",BC33=1),1,\"\")","v":""},{"$f":"IF(AND('data entry'!AH32=\"Positive\",'data entry'!F32=\"Male\",BD33=1),1,\"\")","v":""},{"$f":"IF(AND('data entry'!AH32=\"Positive\",'data entry'!F32=\"Female\",BE33=1),1,\"\")","v":""},{"$f":"IF(AND('data entry'!AH32=\"Positive\",BF33=1),1,\"\")","v":""},{"$f":"IF(AND('data entry'!AH32=\"Positive\",'data entry'!F32=\"Male\",BG33=1),1,\"\")","v":""},{"$f":"IF(AND('data entry'!AH32=\"Positive\",'data entry'!F32=\"Female\",BH33=1),1,\"\")","v":""}]
[{"$f":"'data entry'!D33","v":32},{"$f":"IF(ISBLANK('data entry'!AF33),\"no retest date\",(IF(ISBLANK('data entry'!L33),\"no treatment date\",DATEDIF('data entry'!L33,'data entry'!AF33,\"d\"))))","v":"no retest date"},{"$f":"IF(B34=\"no treatment date\",DATEDIF('data entry'!E33,'data entry'!AF33,\"d\"),\"\")","v":""},{"$f":"IF(AND('data entry'!E33<>\"\",'data entry'!J33=\"positive\"),1,\"\")","v":""},{"$f":"IF(AND('data entry'!E33<>\"\",'data entry'!F33= \"Male\",'data entry'!J33=\"positive\"),1,\"\")","v":""},{"$f":"IF(AND('data entry'!E33<>\"\",'data entry'!F33= \"Female\",'data entry'!J33=\"positive\"),1,\"\")","v":""},{"$f":"IF(AND('data entry'!J33=\"positive\",'data entry'!AD33=\"yes\"),1,\"\")","v":""},{"$f":"IF(AND('data entry'!J33=\"positive\",'data entry'!AD33=\"yes\",'data entry'!F33=\"Male\"),1,\"\")","v":""},{"$f":"IF(AND('data entry'!J33=\"positive\",'data entry'!AD33=\"yes\",'data entry'!F33=\"Female\"),1,\"\")","v":""},{"$f":"IF(AND('data entry'!E33<>\"\",'data entry'!AF33<>\"\",'data entry'!L33<>\"\"),1,\"\")","v":""},{"$f":"IF(AND(J34=1,'data entry'!F33= \"Male\"),1,\"\")","v":""},{"$f":"IF(AND(J34=1,'data entry'!F33= \"Female\"),1,\"\")","v":""},"","","","","","","","","","","","","","","",{"$f":"IF(AND('data entry'!E33<>\"\",'data entry'!AF33<>\"\",'data entry'!L33=\"\"),1,\"\")","v":""},{"$f":"IF(AND(AB34=1,'data entry'!F33= \"Male\",'data entry'!J33=\"positive\"),1,\"\")","v":""},{"$f":"IF(AND(AB34=1,'data entry'!F33= \"Female\",'data entry'!J33=\"positive\"),1,\"\")","v":""},"","","","","","","","","","","","","","","","","","","","","","","","","","","","","","","","","",null,{"$f":"IF('data entry'!AH33=\"Positive\",1,\"\")","v":""},{"$f":"IF(AND('data entry'!AH33=\"Positive\",'data entry'!F33=\"Male\"),1,\"\")","v":""},{"$f":"IF(AND('data entry'!AH33=\"Positive\",'data entry'!F33=\"Female\"),1,\"\")","v":""},{"$f":"IF(AND('data entry'!AH33=\"Positive\",BC34=1),1,\"\")","v":""},{"$f":"IF(AND('data entry'!AH33=\"Positive\",'data entry'!F33=\"Male\",BD34=1),1,\"\")","v":""},{"$f":"IF(AND('data entry'!AH33=\"Positive\",'data entry'!F33=\"Female\",BE34=1),1,\"\")","v":""},{"$f":"IF(AND('data entry'!AH33=\"Positive\",BF34=1),1,\"\")","v":""},{"$f":"IF(AND('data entry'!AH33=\"Positive\",'data entry'!F33=\"Male\",BG34=1),1,\"\")","v":""},{"$f":"IF(AND('data entry'!AH33=\"Positive\",'data entry'!F33=\"Female\",BH34=1),1,\"\")","v":""}]
[{"$f":"'data entry'!D34","v":33},{"$f":"IF(ISBLANK('data entry'!AF34),\"no retest date\",(IF(ISBLANK('data entry'!L34),\"no treatment date\",DATEDIF('data entry'!L34,'data entry'!AF34,\"d\"))))","v":"no retest date"},{"$f":"IF(B35=\"no treatment date\",DATEDIF('data entry'!E34,'data entry'!AF34,\"d\"),\"\")","v":""},{"$f":"IF(AND('data entry'!E34<>\"\",'data entry'!J34=\"positive\"),1,\"\")","v":""},{"$f":"IF(AND('data entry'!E34<>\"\",'data entry'!F34= \"Male\",'data entry'!J34=\"positive\"),1,\"\")","v":""},{"$f":"IF(AND('data entry'!E34<>\"\",'data entry'!F34= \"Female\",'data entry'!J34=\"positive\"),1,\"\")","v":""},{"$f":"IF(AND('data entry'!J34=\"positive\",'data entry'!AD34=\"yes\"),1,\"\")","v":""},{"$f":"IF(AND('data entry'!J34=\"positive\",'data entry'!AD34=\"yes\",'data entry'!F34=\"Male\"),1,\"\")","v":""},{"$f":"IF(AND('data entry'!J34=\"positive\",'data entry'!AD34=\"yes\",'data entry'!F34=\"Female\"),1,\"\")","v":""},{"$f":"IF(AND('data entry'!E34<>\"\",'data entry'!AF34<>\"\",'data entry'!L34<>\"\"),1,\"\")","v":""},{"$f":"IF(AND(J35=1,'data entry'!F34= \"Male\"),1,\"\")","v":""},{"$f":"IF(AND(J35=1,'data entry'!F34= \"Female\"),1,\"\")","v":""},"","","","","","","","","","","","","","","",{"$f":"IF(AND('data entry'!E34<>\"\",'data entry'!AF34<>\"\",'data entry'!L34=\"\"),1,\"\")","v":""},{"$f":"IF(AND(AB35=1,'data entry'!F34= \"Male\",'data entry'!J34=\"positive\"),1,\"\")","v":""},{"$f":"IF(AND(AB35=1,'data entry'!F34= \"Female\",'data entry'!J34=\"positive\"),1,\"\")","v":""},"","","","","","","","","","","","","","","","","","","","","","","","","","","","","","","","","",null,{"$f":"IF('data entry'!AH34=\"Positive\",1,\"\")","v":""},{"$f":"IF(AND('data entry'!AH34=\"Positive\",'data entry'!F34=\"Male\"),1,\"\")","v":""},{"$f":"IF(AND('data entry'!AH34=\"Positive\",'data entry'!F34=\"Female\"),1,\"\")","v":""},{"$f":"IF(AND('data entry'!AH34=\"Positive\",BC35=1),1,\"\")","v":""},{"$f":"IF(AND('data entry'!AH34=\"Positive\",'data entry'!F34=\"Male\",BD35=1),1,\"\")","v":""},{"$f":"IF(AND('data entry'!AH34=\"Positive\",'data entry'!F34=\"Female\",BE35=1),1,\"\")","v":""},{"$f":"IF(AND('data entry'!AH34=\"Positive\",BF35=1),1,\"\")","v":""},{"$f":"IF(AND('data entry'!AH34=\"Positive\",'data entry'!F34=\"Male\",BG35=1),1,\"\")","v":""},{"$f":"IF(AND('data entry'!AH34=\"Positive\",'data entry'!F34=\"Female\",BH35=1),1,\"\")","v":""}]
[{"$f":"'data entry'!D35","v":34},{"$f":"IF(ISBLANK('data entry'!AF35),\"no retest date\",(IF(ISBLANK('data entry'!L35),\"no treatment date\",DATEDIF('data entry'!L35,'data entry'!AF35,\"d\"))))","v":"no retest date"},{"$f":"IF(B36=\"no treatment date\",DATEDIF('data entry'!E35,'data entry'!AF35,\"d\"),\"\")","v":""},{"$f":"IF(AND('data entry'!E35<>\"\",'data entry'!J35=\"positive\"),1,\"\")","v":""},{"$f":"IF(AND('data entry'!E35<>\"\",'data entry'!F35= \"Male\",'data entry'!J35=\"positive\"),1,\"\")","v":""},{"$f":"IF(AND('data entry'!E35<>\"\",'data entry'!F35= \"Female\",'data entry'!J35=\"positive\"),1,\"\")","v":""},{"$f":"IF(AND('data entry'!J35=\"positive\",'data entry'!AD35=\"yes\"),1,\"\")","v":""},{"$f":"IF(AND('data entry'!J35=\"positive\",'data entry'!AD35=\"yes\",'data entry'!F35=\"Male\"),1,\"\")","v":""},{"$f":"IF(AND('data entry'!J35=\"positive\",'data entry'!AD35=\"yes\",'data entry'!F35=\"Female\"),1,\"\")","v":""},{"$f":"IF(AND('data entry'!E35<>\"\",'data entry'!AF35<>\"\",'data entry'!L35<>\"\"),1,\"\")","v":""},{"$f":"IF(AND(J36=1,'data entry'!F35= \"Male\"),1,\"\")","v":""},{"$f":"IF(AND(J36=1,'data entry'!F35= \"Female\"),1,\"\")","v":""},"","","","","","","","","","","","","","","",{"$f":"IF(AND('data entry'!E35<>\"\",'data entry'!AF35<>\"\",'data entry'!L35=\"\"),1,\"\")","v":""},{"$f":"IF(AND(AB36=1,'data entry'!F35= \"Male\",'data entry'!J35=\"positive\"),1,\"\")","v":""},{"$f":"IF(AND(AB36=1,'data entry'!F35= \"Female\",'data entry'!J35=\"positive\"),1,\"\")","v":""},"","","","","","","","","","","","","","","","","","","","","","","","","","","","","","","","","",null,{"$f":"IF('data entry'!AH35=\"Positive\",1,\"\")","v":""},{"$f":"IF(AND('data entry'!AH35=\"Positive\",'data entry'!F35=\"Male\"),1,\"\")","v":""},{"$f":"IF(AND('data entry'!AH35=\"Positive\",'data entry'!F35=\"Female\"),1,\"\")","v":""},{"$f":"IF(AND('data entry'!AH35=\"Positive\",BC36=1),1,\"\")","v":""},{"$f":"IF(AND('data entry'!AH35=\"Positive\",'data entry'!F35=\"Male\",BD36=1),1,\"\")","v":""},{"$f":"IF(AND('data entry'!AH35=\"Positive\",'data entry'!F35=\"Female\",BE36=1),1,\"\")","v":""},{"$f":"IF(AND('data entry'!AH35=\"Positive\",BF36=1),1,\"\")","v":""},{"$f":"IF(AND('data entry'!AH35=\"Positive\",'data entry'!F35=\"Male\",BG36=1),1,\"\")","v":""},{"$f":"IF(AND('data entry'!AH35=\"Positive\",'data entry'!F35=\"Female\",BH36=1),1,\"\")","v":""}]
[{"$f":"'data entry'!D36","v":35},{"$f":"IF(ISBLANK('data entry'!AF36),\"no retest date\",(IF(ISBLANK('data entry'!L36),\"no treatment date\",DATEDIF('data entry'!L36,'data entry'!AF36,\"d\"))))","v":"no retest date"},{"$f":"IF(B37=\"no treatment date\",DATEDIF('data entry'!E36,'data entry'!AF36,\"d\"),\"\")","v":""},{"$f":"IF(AND('data entry'!E36<>\"\",'data entry'!J36=\"positive\"),1,\"\")","v":""},{"$f":"IF(AND('data entry'!E36<>\"\",'data entry'!F36= \"Male\",'data entry'!J36=\"positive\"),1,\"\")","v":""},{"$f":"IF(AND('data entry'!E36<>\"\",'data entry'!F36= \"Female\",'data entry'!J36=\"positive\"),1,\"\")","v":""},{"$f":"IF(AND('data entry'!J36=\"positive\",'data entry'!AD36=\"yes\"),1,\"\")","v":""},{"$f":"IF(AND('data entry'!J36=\"positive\",'data entry'!AD36=\"yes\",'data entry'!F36=\"Male\"),1,\"\")","v":""},{"$f":"IF(AND('data entry'!J36=\"positive\",'data entry'!AD36=\"yes\",'data entry'!F36=\"Female\"),1,\"\")","v":""},{"$f":"IF(AND('data entry'!E36<>\"\",'data entry'!AF36<>\"\",'data entry'!L36<>\"\"),1,\"\")","v":""},{"$f":"IF(AND(J37=1,'data entry'!F36= \"Male\"),1,\"\")","v":""},{"$f":"IF(AND(J37=1,'data entry'!F36= \"Female\"),1,\"\")","v":""},"","","","","","","","","","","","","","","",{"$f":"IF(AND('data entry'!E36<>\"\",'data entry'!AF36<>\"\",'data entry'!L36=\"\"),1,\"\")","v":""},{"$f":"IF(AND(AB37=1,'data entry'!F36= \"Male\",'data entry'!J36=\"positive\"),1,\"\")","v":""},{"$f":"IF(AND(AB37=1,'data entry'!F36= \"Female\",'data entry'!J36=\"positive\"),1,\"\")","v":""},"","","","","","","","","","","","","","","","","","","","","","","","","","","","","","","","","",null,{"$f":"IF('data entry'!AH36=\"Positive\",1,\"\")","v":""},{"$f":"IF(AND('data entry'!AH36=\"Positive\",'data entry'!F36=\"Male\"),1,\"\")","v":""},{"$f":"IF(AND('data entry'!AH36=\"Positive\",'data entry'!F36=\"Female\"),1,\"\")","v":""},{"$f":"IF(AND('data entry'!AH36=\"Positive\",BC37=1),1,\"\")","v":""},{"$f":"IF(AND('data entry'!AH36=\"Positive\",'data entry'!F36=\"Male\",BD37=1),1,\"\")","v":""},{"$f":"IF(AND('data entry'!AH36=\"Positive\",'data entry'!F36=\"Female\",BE37=1),1,\"\")","v":""},{"$f":"IF(AND('data entry'!AH36=\"Positive\",BF37=1),1,\"\")","v":""},{"$f":"IF(AND('data entry'!AH36=\"Positive\",'data entry'!F36=\"Male\",BG37=1),1,\"\")","v":""},{"$f":"IF(AND('data entry'!AH36=\"Positive\",'data entry'!F36=\"Female\",BH37=1),1,\"\")","v":""}]
[{"$f":"'data entry'!D37","v":36},{"$f":"IF(ISBLANK('data entry'!AF37),\"no retest date\",(IF(ISBLANK('data entry'!L37),\"no treatment date\",DATEDIF('data entry'!L37,'data entry'!AF37,\"d\"))))","v":"no retest date"},{"$f":"IF(B38=\"no treatment date\",DATEDIF('data entry'!E37,'data entry'!AF37,\"d\"),\"\")","v":""},{"$f":"IF(AND('data entry'!E37<>\"\",'data entry'!J37=\"positive\"),1,\"\")","v":""},{"$f":"IF(AND('data entry'!E37<>\"\",'data entry'!F37= \"Male\",'data entry'!J37=\"positive\"),1,\"\")","v":""},{"$f":"IF(AND('data entry'!E37<>\"\",'data entry'!F37= \"Female\",'data entry'!J37=\"positive\"),1,\"\")","v":""},{"$f":"IF(AND('data entry'!J37=\"positive\",'data entry'!AD37=\"yes\"),1,\"\")","v":""},{"$f":"IF(AND('data entry'!J37=\"positive\",'data entry'!AD37=\"yes\",'data entry'!F37=\"Male\"),1,\"\")","v":""},{"$f":"IF(AND('data entry'!J37=\"positive\",'data entry'!AD37=\"yes\",'data entry'!F37=\"Female\"),1,\"\")","v":""},{"$f":"IF(AND('data entry'!E37<>\"\",'data entry'!AF37<>\"\",'data entry'!L37<>\"\"),1,\"\")","v":""},{"$f":"IF(AND(J38=1,'data entry'!F37= \"Male\"),1,\"\")","v":""},{"$f":"IF(AND(J38=1,'data entry'!F37= \"Female\"),1,\"\")","v":""},"","","","","","","","","","","","","","","",{"$f":"IF(AND('data entry'!E37<>\"\",'data entry'!AF37<>\"\",'data entry'!L37=\"\"),1,\"\")","v":""},{"$f":"IF(AND(AB38=1,'data entry'!F37= \"Male\",'data entry'!J37=\"positive\"),1,\"\")","v":""},{"$f":"IF(AND(AB38=1,'data entry'!F37= \"Female\",'data entry'!J37=\"positive\"),1,\"\")","v":""},"","","","","","","","","","","","","","","","","","","","","","","","","","","","","","","","","",null,{"$f":"IF('data entry'!AH37=\"Positive\",1,\"\")","v":""},{"$f":"IF(AND('data entry'!AH37=\"Positive\",'data entry'!F37=\"Male\"),1,\"\")","v":""},{"$f":"IF(AND('data entry'!AH37=\"Positive\",'data entry'!F37=\"Female\"),1,\"\")","v":""},{"$f":"IF(AND('data entry'!AH37=\"Positive\",BC38=1),1,\"\")","v":""},{"$f":"IF(AND('data entry'!AH37=\"Positive\",'data entry'!F37=\"Male\",BD38=1),1,\"\")","v":""},{"$f":"IF(AND('data entry'!AH37=\"Positive\",'data entry'!F37=\"Female\",BE38=1),1,\"\")","v":""},{"$f":"IF(AND('data entry'!AH37=\"Positive\",BF38=1),1,\"\")","v":""},{"$f":"IF(AND('data entry'!AH37=\"Positive\",'data entry'!F37=\"Male\",BG38=1),1,\"\")","v":""},{"$f":"IF(AND('data entry'!AH37=\"Positive\",'data entry'!F37=\"Female\",BH38=1),1,\"\")","v":""}]
[{"$f":"'data entry'!D38","v":37},{"$f":"IF(ISBLANK('data entry'!AF38),\"no retest date\",(IF(ISBLANK('data entry'!L38),\"no treatment date\",DATEDIF('data entry'!L38,'data entry'!AF38,\"d\"))))","v":"no retest date"},{"$f":"IF(B39=\"no treatment date\",DATEDIF('data entry'!E38,'data entry'!AF38,\"d\"),\"\")","v":""},{"$f":"IF(AND('data entry'!E38<>\"\",'data entry'!J38=\"positive\"),1,\"\")","v":""},{"$f":"IF(AND('data entry'!E38<>\"\",'data entry'!F38= \"Male\",'data entry'!J38=\"positive\"),1,\"\")","v":""},{"$f":"IF(AND('data entry'!E38<>\"\",'data entry'!F38= \"Female\",'data entry'!J38=\"positive\"),1,\"\")","v":""},{"$f":"IF(AND('data entry'!J38=\"positive\",'data entry'!AD38=\"yes\"),1,\"\")","v":""},{"$f":"IF(AND('data entry'!J38=\"positive\",'data entry'!AD38=\"yes\",'data entry'!F38=\"Male\"),1,\"\")","v":""},{"$f":"IF(AND('data entry'!J38=\"positive\",'data entry'!AD38=\"yes\",'data entry'!F38=\"Female\"),1,\"\")","v":""},{"$f":"IF(AND('data entry'!E38<>\"\",'data entry'!AF38<>\"\",'data entry'!L38<>\"\"),1,\"\")","v":""},{"$f":"IF(AND(J39=1,'data entry'!F38= \"Male\"),1,\"\")","v":""},{"$f":"IF(AND(J39=1,'data entry'!F38= \"Female\"),1,\"\")","v":""},"","","","","","","","","","","","","","","",{"$f":"IF(AND('data entry'!E38<>\"\",'data entry'!AF38<>\"\",'data entry'!L38=\"\"),1,\"\")","v":""},{"$f":"IF(AND(AB39=1,'data entry'!F38= \"Male\",'data entry'!J38=\"positive\"),1,\"\")","v":""},{"$f":"IF(AND(AB39=1,'data entry'!F38= \"Female\",'data entry'!J38=\"positive\"),1,\"\")","v":""},"","","","","","","","","","","","","","","","","","","","","","","","","","","","","","","","","",null,{"$f":"IF('data entry'!AH38=\"Positive\",1,\"\")","v":""},{"$f":"IF(AND('data entry'!AH38=\"Positive\",'data entry'!F38=\"Male\"),1,\"\")","v":""},{"$f":"IF(AND('data entry'!AH38=\"Positive\",'data entry'!F38=\"Female\"),1,\"\")","v":""},{"$f":"IF(AND('data entry'!AH38=\"Positive\",BC39=1),1,\"\")","v":""},{"$f":"IF(AND('data entry'!AH38=\"Positive\",'data entry'!F38=\"Male\",BD39=1),1,\"\")","v":""},{"$f":"IF(AND('data entry'!AH38=\"Positive\",'data entry'!F38=\"Female\",BE39=1),1,\"\")","v":""},{"$f":"IF(AND('data entry'!AH38=\"Positive\",BF39=1),1,\"\")","v":""},{"$f":"IF(AND('data entry'!AH38=\"Positive\",'data entry'!F38=\"Male\",BG39=1),1,\"\")","v":""},{"$f":"IF(AND('data entry'!AH38=\"Positive\",'data entry'!F38=\"Female\",BH39=1),1,\"\")","v":""}]
[{"$f":"'data entry'!D39","v":38},{"$f":"IF(ISBLANK('data entry'!AF39),\"no retest date\",(IF(ISBLANK('data entry'!L39),\"no treatment date\",DATEDIF('data entry'!L39,'data entry'!AF39,\"d\"))))","v":"no retest date"},{"$f":"IF(B40=\"no treatment date\",DATEDIF('data entry'!E39,'data entry'!AF39,\"d\"),\"\")","v":""},{"$f":"IF(AND('data entry'!E39<>\"\",'data entry'!J39=\"positive\"),1,\"\")","v":""},{"$f":"IF(AND('data entry'!E39<>\"\",'data entry'!F39= \"Male\",'data entry'!J39=\"positive\"),1,\"\")","v":""},{"$f":"IF(AND('data entry'!E39<>\"\",'data entry'!F39= \"Female\",'data entry'!J39=\"positive\"),1,\"\")","v":""},{"$f":"IF(AND('data entry'!J39=\"positive\",'data entry'!AD39=\"yes\"),1,\"\")","v":""},{"$f":"IF(AND('data entry'!J39=\"positive\",'data entry'!AD39=\"yes\",'data entry'!F39=\"Male\"),1,\"\")","v":""},{"$f":"IF(AND('data entry'!J39=\"positive\",'data entry'!AD39=\"yes\",'data entry'!F39=\"Female\"),1,\"\")","v":""},{"$f":"IF(AND('data entry'!E39<>\"\",'data entry'!AF39<>\"\",'data entry'!L39<>\"\"),1,\"\")","v":""},{"$f":"IF(AND(J40=1,'data entry'!F39= \"Male\"),1,\"\")","v":""},{"$f":"IF(AND(J40=1,'data entry'!F39= \"Female\"),1,\"\")","v":""},"","","","","","","","","","","","","","","",{"$f":"IF(AND('data entry'!E39<>\"\",'data entry'!AF39<>\"\",'data entry'!L39=\"\"),1,\"\")","v":""},{"$f":"IF(AND(AB40=1,'data entry'!F39= \"Male\",'data entry'!J39=\"positive\"),1,\"\")","v":""},{"$f":"IF(AND(AB40=1,'data entry'!F39= \"Female\",'data entry'!J39=\"positive\"),1,\"\")","v":""},"","","","","","","","","","","","","","","","","","","","","","","","","","","","","","","","","",null,{"$f":"IF('data entry'!AH39=\"Positive\",1,\"\")","v":""},{"$f":"IF(AND('data entry'!AH39=\"Positive\",'data entry'!F39=\"Male\"),1,\"\")","v":""},{"$f":"IF(AND('data entry'!AH39=\"Positive\",'data entry'!F39=\"Female\"),1,\"\")","v":""},{"$f":"IF(AND('data entry'!AH39=\"Positive\",BC40=1),1,\"\")","v":""},{"$f":"IF(AND('data entry'!AH39=\"Positive\",'data entry'!F39=\"Male\",BD40=1),1,\"\")","v":""},{"$f":"IF(AND('data entry'!AH39=\"Positive\",'data entry'!F39=\"Female\",BE40=1),1,\"\")","v":""},{"$f":"IF(AND('data entry'!AH39=\"Positive\",BF40=1),1,\"\")","v":""},{"$f":"IF(AND('data entry'!AH39=\"Positive\",'data entry'!F39=\"Male\",BG40=1),1,\"\")","v":""},{"$f":"IF(AND('data entry'!AH39=\"Positive\",'data entry'!F39=\"Female\",BH40=1),1,\"\")","v":""}]
[{"$f":"'data entry'!D40","v":39},{"$f":"IF(ISBLANK('data entry'!AF40),\"no retest date\",(IF(ISBLANK('data entry'!L40),\"no treatment date\",DATEDIF('data entry'!L40,'data entry'!AF40,\"d\"))))","v":"no retest date"},{"$f":"IF(B41=\"no treatment date\",DATEDIF('data entry'!E40,'data entry'!AF40,\"d\"),\"\")","v":""},{"$f":"IF(AND('data entry'!E40<>\"\",'data entry'!J40=\"positive\"),1,\"\")","v":""},{"$f":"IF(AND('data entry'!E40<>\"\",'data entry'!F40= \"Male\",'data entry'!J40=\"positive\"),1,\"\")","v":""},{"$f":"IF(AND('data entry'!E40<>\"\",'data entry'!F40= \"Female\",'data entry'!J40=\"positive\"),1,\"\")","v":""},{"$f":"IF(AND('data entry'!J40=\"positive\",'data entry'!AD40=\"yes\"),1,\"\")","v":""},{"$f":"IF(AND('data entry'!J40=\"positive\",'data entry'!AD40=\"yes\",'data entry'!F40=\"Male\"),1,\"\")","v":""},{"$f":"IF(AND('data entry'!J40=\"positive\",'data entry'!AD40=\"yes\",'data entry'!F40=\"Female\"),1,\"\")","v":""},{"$f":"IF(AND('data entry'!E40<>\"\",'data entry'!AF40<>\"\",'data entry'!L40<>\"\"),1,\"\")","v":""},{"$f":"IF(AND(J41=1,'data entry'!F40= \"Male\"),1,\"\")","v":""},{"$f":"IF(AND(J41=1,'data entry'!F40= \"Female\"),1,\"\")","v":""},"","","","","","","","","","","","","","","",{"$f":"IF(AND('data entry'!E40<>\"\",'data entry'!AF40<>\"\",'data entry'!L40=\"\"),1,\"\")","v":""},{"$f":"IF(AND(AB41=1,'data entry'!F40= \"Male\",'data entry'!J40=\"positive\"),1,\"\")","v":""},{"$f":"IF(AND(AB41=1,'data entry'!F40= \"Female\",'data entry'!J40=\"positive\"),1,\"\")","v":""},"","","","","","","","","","","","","","","","","","","","","","","","","","","","","","","","","",null,{"$f":"IF('data entry'!AH40=\"Positive\",1,\"\")","v":""},{"$f":"IF(AND('data entry'!AH40=\"Positive\",'data entry'!F40=\"Male\"),1,\"\")","v":""},{"$f":"IF(AND('data entry'!AH40=\"Positive\",'data entry'!F40=\"Female\"),1,\"\")","v":""},{"$f":"IF(AND('data entry'!AH40=\"Positive\",BC41=1),1,\"\")","v":""},{"$f":"IF(AND('data entry'!AH40=\"Positive\",'data entry'!F40=\"Male\",BD41=1),1,\"\")","v":""},{"$f":"IF(AND('data entry'!AH40=\"Positive\",'data entry'!F40=\"Female\",BE41=1),1,\"\")","v":""},{"$f":"IF(AND('data entry'!AH40=\"Positive\",BF41=1),1,\"\")","v":""},{"$f":"IF(AND('data entry'!AH40=\"Positive\",'data entry'!F40=\"Male\",BG41=1),1,\"\")","v":""},{"$f":"IF(AND('data entry'!AH40=\"Positive\",'data entry'!F40=\"Female\",BH41=1),1,\"\")","v":""}]
[{"$f":"'data entry'!D41","v":40},{"$f":"IF(ISBLANK('data entry'!AF41),\"no retest date\",(IF(ISBLANK('data entry'!L41),\"no treatment date\",DATEDIF('data entry'!L41,'data entry'!AF41,\"d\"))))","v":"no retest date"},{"$f":"IF(B42=\"no treatment date\",DATEDIF('data entry'!E41,'data entry'!AF41,\"d\"),\"\")","v":""},{"$f":"IF(AND('data entry'!E41<>\"\",'data entry'!J41=\"positive\"),1,\"\")","v":""},{"$f":"IF(AND('data entry'!E41<>\"\",'data entry'!F41= \"Male\",'data entry'!J41=\"positive\"),1,\"\")","v":""},{"$f":"IF(AND('data entry'!E41<>\"\",'data entry'!F41= \"Female\",'data entry'!J41=\"positive\"),1,\"\")","v":""},{"$f":"IF(AND('data entry'!J41=\"positive\",'data entry'!AD41=\"yes\"),1,\"\")","v":""},{"$f":"IF(AND('data entry'!J41=\"positive\",'data entry'!AD41=\"yes\",'data entry'!F41=\"Male\"),1,\"\")","v":""},{"$f":"IF(AND('data entry'!J41=\"positive\",'data entry'!AD41=\"yes\",'data entry'!F41=\"Female\"),1,\"\")","v":""},{"$f":"IF(AND('data entry'!E41<>\"\",'data entry'!AF41<>\"\",'data entry'!L41<>\"\"),1,\"\")","v":""},{"$f":"IF(AND(J42=1,'data entry'!F41= \"Male\"),1,\"\")","v":""},{"$f":"IF(AND(J42=1,'data entry'!F41= \"Female\"),1,\"\")","v":""},"","","","","","","","","","","","","","","",{"$f":"IF(AND('data entry'!E41<>\"\",'data entry'!AF41<>\"\",'data entry'!L41=\"\"),1,\"\")","v":""},{"$f":"IF(AND(AB42=1,'data entry'!F41= \"Male\",'data entry'!J41=\"positive\"),1,\"\")","v":""},{"$f":"IF(AND(AB42=1,'data entry'!F41= \"Female\",'data entry'!J41=\"positive\"),1,\"\")","v":""},{"$f":"IF(AND(AB42=1,C42<42),1,\"\")","v":""},{"$f":"IF(AND(AC42=1,C42<42),1,\"\")","v":""},{"$f":"IF(AND(AD42=1,C42<42),1,\"\")","v":""},{"$f":"IF(AB42=1,IF(AND(C42>=42,C42<70),1,\"\"),\"\")","v":""},{"$f":"IF(AC42=1,IF(AND(C42>=42,C42<70),1,\"\"),\"\")","v":""},{"$f":"IF(AD42=1,IF(AND(C42>=42,C42<70),1,\"\"),\"\")","v":""},{"$f":"IF(AB42=1,IF(AND(C42>=70,C42<98),1,\"\"),\"\")","v":""},{"$f":"IF(AC42=1,IF(AND(C42>=70,C42<98),1,\"\"),\"\")","v":""},{"$f":"IF(AD42=1,IF(AND(C42>=70,C42<98),1,\"\"),\"\")","v":""},{"$f":"IF(AB42=1,IF(AND(C42>=70,C42<189),1,\"\"),\"\")","v":""},{"$f":"IF(AC42=1,IF(AND(C42>=70,C42<189),1,\"\"),\"\")","v":""},{"$f":"IF(AD42=1,IF(AND(C42>=70,C42<189),1,\"\"),\"\")","v":""},{"$f":"IF(AND(AB42=1,C42>=189),1,\"\")","v":""},{"$f":"IF(AND(AC42=1,C42>=189),1,\"\")","v":""},{"$f":"IF(AND(AD42=1,C42>=189),1,\"\")","v":""},{"$f":"IF(OR(AB42=1,J42=1),1,\"\")","v":""},{"$f":"IF(OR(AC42=1,K42=1),1,\"\")","v":""},{"$f":"IF(OR(AD42=1,L42=1),1,\"\")","v":""},{"$f":"IF(OR(AE42=1,M42=1),1,\"\")","v":""},{"$f":"IF(OR(AF42=1,N42=1),1,\"\")","v":""},{"$f":"IF(OR(AG42=1,O42=1),1,\"\")","v":""},{"$f":"IF(OR(AH42=1,P42=1),1,\"\")","v":""},{"$f":"IF(OR(AI42=1,Q42=1),1,\"\")","v":""},{"$f":"IF(OR(AJ42=1,R42=1),1,\"\")","v":""},{"$f":"IF(OR(AK42=1,S42=1),1,\"\")","v":""},{"$f":"IF(OR(AL42=1,T42=1),1,\"\")","v":""},{"$f":"IF(OR(AM42=1,U42=1),1,\"\")","v":""},{"$f":"IF(OR(AN42=1,V42=1),1,\"\")","v":""},{"$f":"IF(OR(AO42=1,W42=1),1,\"\")","v":""},{"$f":"IF(OR(AP42=1,X42=1),1,\"\")","v":""},{"$f":"IF(OR(AQ42=1,Y42=1),1,\"\")","v":""},{"$f":"IF(OR(AR42=1,Z42=1),1,\"\")","v":""},{"$f":"IF(OR(AS42=1,AA42=1),1,\"\")","v":""},null,{"$f":"IF('data entry'!AH41=\"Positive\",1,\"\")","v":""},{"$f":"IF(AND('data entry'!AH41=\"Positive\",'data entry'!F41=\"Male\"),1,\"\")","v":""},{"$f":"IF(AND('data entry'!AH41=\"Positive\",'data entry'!F41=\"Female\"),1,\"\")","v":""},{"$f":"IF(AND('data entry'!AH41=\"Positive\",BC42=1),1,\"\")","v":""},{"$f":"IF(AND('data entry'!AH41=\"Positive\",'data entry'!F41=\"Male\",BD42=1),1,\"\")","v":""},{"$f":"IF(AND('data entry'!AH41=\"Positive\",'data entry'!F41=\"Female\",BE42=1),1,\"\")","v":""},{"$f":"IF(AND('data entry'!AH41=\"Positive\",BF42=1),1,\"\")","v":""},{"$f":"IF(AND('data entry'!AH41=\"Positive\",'data entry'!F41=\"Male\",BG42=1),1,\"\")","v":""},{"$f":"IF(AND('data entry'!AH41=\"Positive\",'data entry'!F41=\"Female\",BH42=1),1,\"\")","v":""}]

{"sheet":"Results overview","index":9,"n_rows":38,"n_cols":4,"rows_kept":38,"cut":false,"hidden":false,"merged":[[24,3,25,3],[33,0,33,1],[32,0,32,1],[30,0,30,1],[29,0,29,2]]}
["Local audit results for:"]
[{"$f":"IF(ISBLANK('data entry'!B2),\"\",'data entry'!B2)","v":""}]
[{"$f":"'data entry'!A2","v":0}]
[]
[]
[]
[]
[]
[]
[]
[]
[]
[]
[]
[]
[]
[null,null,null,"Link to Chlamydia Care Pathway component"]
["Turnaround times","Standard","Audit result"]
["Proportion of patients that meet result notification of 10 working days from test date",0.95,{"$f":"'local turnaround time results'!B18","v":{"$error":"#DIV/0!"}},"Component 4: result notification"]
["Proportion of patients that meet treatment within six working weeks from test date",0.95,{"$f":"'local turnaround time results'!B19","v":0},"Component 5: timeliness of treatment"]
["Proportion of patients that meet both the result notification and the treatment standard","na",{"$f":"'local turnaround time results'!B20","v":0}]
[]
[]
["Partner Notification","Standard","Audit result"]
["Number of contacts per index case with contact attendance reported by index or HCW within 4 weeks of PN discussion:",0.6,{"$f":"'local PN results'!F6","v":{"$error":"#DIV/0!"}},"Component 6: partner notification"]
["Proportion of positive patients offered a PN discussion",0.97,{"$f":"'local PN results'!F15","v":0}]
["Positivity in contacts that were tested","na",{"$f":"'local PN results'!B53","v":{"$error":"#DIV/0!"}}]
[]
["Re-testing"]
["Recommended case management: for those testing positive for chlamydia to include routine offer of re-testing, around three months after treatment"]
["Number of positive patients in selected period",null,{"$f":"COUNTIF('data entry'!J2:J41,\"positive\")","v":40}]
["Proportion of positive patients that were offered a re-test",null,{"$f":"'local re-testing results'!B6","v":{"$error":"#DIV/0!"}}]
["Proportion of positive patients that re-tested at this service out of all positive patients",null,{"$f":"'local re-testing results'!B7","v":0}]
["Proportion of positive patients that re-tested at this service around the recommended 10 to 14 weeks out of all positive patients",null,{"$f":"'local re-testing results'!B8","v":0},"Component 7: re-testing rate"]
["Positivity in patients that returned for a re-test within 10-14 weeks",null,{"$f":"'local re-testing results'!B51","v":{"$error":"#DIV/0!"}}]
[]
[]
["Back to Contents"]

{"sheet":"local turnaround time results","index":10,"n_rows":75,"n_cols":13,"rows_kept":75,"cut":false,"hidden":false,"merged":[[54,6,55,6],[61,0,61,2],[43,0,43,2],[53,0,53,2],[58,11,58,12],[57,11,57,12],[54,4,55,4],[54,5,55,5],[33,4,33,12],[53,4,53,6],[44,9,44,10],[45,9,45,10],[46,9,46,10],[43,5,43,6],[43,7,43,8],[43,9,43,10],[47,9,47,10],[48,9,48,10]]}
["Turnaround times",{"$f":"IF(ISBLANK('data entry'!B2),\"\",'data entry'!B2)","v":""}]
["Result notification standard: 95% of patients receive result within 10 working days of test date"]
["Treatment standard: 95% of patients receive treatment within 6 working weeks of test date"]
[]
["standard: ",0.95]
["2014 local result notification outcome*"]
["2014 national  audit result notification outcome",0.95]
["2017 local result notification outcome",{"$f":"B18","v":{"$error":"#DIV/0!"}}]
["2014 local treatment turnaround outcome*"]
["2014 national audit treatment turnaround outcome",0.93]
["2017 local treatment turnaround outcome",{"$f":"B19","v":0}]
["2014 national audit proportion of patients with both standards met",0.75]
["2017 local audit proportion of patients with both standard met",{"$f":"B20","v":0}]
["*= if service took part in 2014, result can be entered manually and chart will automically update"]
[]
[]
["Turnaround time local audit results"]
["Proportion of all patients that meet result notification standard",{"$f":"COUNTIF('turnaround calc'!D2:D51,\"=1\")/COUNT('turnaround calc'!B2:B51)","v":{"$error":"#DIV/0!"}}]
["Proportion of positive patients that meet treatment standard",{"$f":"COUNTIF('turnaround calc'!I2:I41,\"=1\")/COUNTIF('turnaround calc'!E2:E41,\"=1\")","v":0}]
["Proportion of positive patients that meet both the result notification and the treatment standard",{"$f":"COUNTIF('turnaround calc'!K2:K41,\"=1\")/COUNTIF('turnaround calc'!E2:E41,\"=1\")","v":0}]
[]
[]
[]
[]
[]
[]
[]
[]
[]
[]
[]
[null,null,null,null,"*= if service took part in 2014, result can be entered manually and chart will automically update"]
[]
[null,"number","proportion",null,"Numbers and proportions of young people tested and treated by gender"]
["number of tested young people not able to be notified of their result",{"$f":"COUNTIF('turnaround calc'!B2:B51,\"not notified\")","v":0},{"$f":"B35/COUNT('turnaround calc'!B2:B41)","v":{"$error":"#DIV/0!"}},null,null,"male","%","female","%","unknown","%","total","%"]
["patients with treatment date on or before test date (i.e. epidemiological treatment)",{"$f":"COUNTIF('turnaround calc'!J2:J51,\">0\")","v":0},{"$f":"B36/COUNT('turnaround calc'!J2:J41)","v":{"$error":"#DIV/0!"}},null,"numbers tested",{"$f":"COUNTIF('data entry'!$F$2:$F$51,\"male\")","v":0},{"$f":"F36/COUNT('data entry'!$G$2:$G$41)","v":{"$error":"#DIV/0!"}},{"$f":"COUNTIF('data entry'!$F$2:$F$51,\"female\")","v":0},{"$f":"H36/COUNT('data entry'!$G$2:$G$41)","v":{"$error":"#DIV/0!"}},{"$f":"COUNTIF('data entry'!$F$2:$F$51,\"unknown\")","v":0},{"$f":"J36/COUNT('data entry'!$G$2:$G$41)","v":{"$error":"#DIV/0!"}},{"$f":"F36+H36+J36","v":0},{"$f":"L36/COUNT('data entry'!$G$2:$G$51)","v":{"$error":"#DIV/0!"}}]
[null,null,null,null,"negative test result",{"$f":"COUNTIFS('data entry'!$F$2:$F$51,\"male\",'data entry'!$J$2:$J$51,\"negative\")","v":0},{"$f":"F37/COUNT('data entry'!$G$2:$G$41)","v":{"$error":"#DIV/0!"}},{"$f":"COUNTIFS('data entry'!$F$2:$F$51,\"female\",'data entry'!$J$2:$J$51,\"negative\")","v":0},{"$f":"H37/COUNT('data entry'!$G$2:$G$41)","v":{"$error":"#DIV/0!"}},{"$f":"COUNTIFS('data entry'!$F$2:$F$51,\"unknown\",'data entry'!$J$2:$J$51,\"negative\")","v":0},{"$f":"J37/COUNT('data entry'!$G$2:$G$41)","v":{"$error":"#DIV/0!"}},{"$f":"F37+H37+J37","v":0},{"$f":"L37/COUNT('data entry'!$G$2:$G$51)","v":{"$error":"#DIV/0!"}}]
[null,null,null,null,"positive test result",{"$f":"COUNTIFS('data entry'!$F$2:$F$41,\"male\",'data entry'!$J$2:$J$41,\"positive\")","v":0},{"$f":"F38/COUNT('data entry'!$G$2:$G$41)","v":{"$error":"#DIV/0!"}},{"$f":"COUNTIFS('data entry'!$F$2:$F$41,\"female\",'data entry'!$J$2:$J$41,\"positive\")","v":0},{"$f":"H38/COUNT('data entry'!$G$2:$G$41)","v":{"$error":"#DIV/0!"}},{"$f":"COUNTIFS('data entry'!$F$2:$F$41,\"unknown\",'data entry'!$J$2:$J$41,\"positive\")","v":0},{"$f":"J38/COUNT('data entry'!$G$2:$G$41)","v":{"$error":"#DIV/0!"}},{"$f":"F38+H38+J38","v":0},{"$f":"L38/COUNT('data entry'!$G$2:$G$41)","v":{"$error":"#DIV/0!"}}]
[null,null,null,null,"Treatment accepted",{"$f":"COUNTIFS('data entry'!$F$2:$F$41,\"male\",'data entry'!$J$2:$J$41,\"positive\",'data entry'!$K$2:$K$41,\"yes\")","v":0},{"$f":"F39/COUNT('data entry'!$G$2:$G$41)","v":{"$error":"#DIV/0!"}},{"$f":"COUNTIFS('data entry'!$F$2:$F$41,\"female\",'data entry'!$J$2:$J$41,\"positive\",'data entry'!$K$2:$K$41,\"yes\")","v":0},{"$f":"H39/COUNT('data entry'!$G$2:$G$41)","v":{"$error":"#DIV/0!"}},{"$f":"COUNTIFS('data entry'!$F$2:$F$41,\"unknown\",'data entry'!$J$2:$J$41,\"positive\",'data entry'!$K$2:$K$41,\"yes\")","v":0},{"$f":"J39/COUNT('data entry'!$G$2:$G$41)","v":{"$error":"#DIV/0!"}},{"$f":"F39+H39+J39","v":0},{"$f":"L39/COUNT('data entry'!$G$2:$G$41)","v":{"$error":"#DIV/0!"}}]
[null,null,null,null,"Treatment not accepted",{"$f":"COUNTIFS('data entry'!$F$2:$F$41,\"male\",'data entry'!$J$2:$J$41,\"positive\",'data entry'!$K$2:$K$41,\"no\")","v":0},{"$f":"F40/COUNT('data entry'!$G$2:$G$41)","v":{"$error":"#DIV/0!"}},{"$f":"COUNTIFS('data entry'!$F$2:$F$41,\"female\",'data entry'!$J$2:$J$41,\"positive\",'data entry'!$K$2:$K$41,\"no\")","v":0},{"$f":"H40/COUNT('data entry'!$G$2:$G$41)","v":{"$error":"#DIV/0!"}},{"$f":"COUNTIFS('data entry'!$F$2:$F$41,\"unknown\",'data entry'!$J$2:$J$41,\"positive\",'data entry'!$K$2:$K$41,\"no\")","v":0},{"$f":"J40/COUNT('data entry'!$G$2:$G$41)","v":{"$error":"#DIV/0!"}},0,{"$f":"L40/COUNT('data entry'!$G$2:$G$41)","v":{"$error":"#DIV/0!"}}]
[null,null,null,null,"Treatment outcome unknown",{"$f":"COUNTIFS('data entry'!$F$2:$F$41,\"male\",'data entry'!$J$2:$J$41,\"positive\",'data entry'!$K$2:$K$41,\"unknown\")","v":0},{"$f":"F41/COUNT('data entry'!$G$2:$G$41)","v":{"$error":"#DIV/0!"}},{"$f":"COUNTIFS('data entry'!$F$2:$F$41,\"female\",'data entry'!$J$2:$J$41,\"positive\",'data entry'!$K$2:$K$41,\"unknown\")","v":0},{"$f":"H41/COUNT('data entry'!$G$2:$G$41)","v":{"$error":"#DIV/0!"}},{"$f":"COUNTIFS('data entry'!$F$2:$F$41,\"unknown\",'data entry'!$J$2:$J$41,\"positive\",'data entry'!$K$2:$K$41,\"unknown\")","v":0},{"$f":"J41/COUNT('data entry'!$G$2:$G$41)","v":{"$error":"#DIV/0!"}},0,{"$f":"L41/COUNT('data entry'!$G$2:$G$41)","v":{"$error":"#DIV/0!"}}]
[]
[]
["Frequency distribution of number of days between test and treatment date",null,null,null,null,"Numbers and proportions of young people tested by age group",null,"Numbers and proportions of young people with positive result by age group",null,"Positivity by age group"]
["No of days between test date and treatment date","frequency","proportion",null,"age","numbers","%","numbers","%","number of positive tests/ number of tests by age (%)"]
["0 -7 days",{"$f":"COUNTIF('turnaround calc'!$H$2:$H$41,\"<8\")","v":0},{"$f":"B46/$B$51","v":{"$error":"#DIV/0!"}},null,"between 15 and 19",{"$f":"COUNTIFS('data entry'!$G$2:$G$51,\">14\",'data entry'!$G$2:$G$51,\"<20\")","v":0},{"$f":"F46/$F$49","v":0},{"$f":"COUNTIFS('data entry'!$G$2:$G$41,\">14\",'data entry'!$G$2:$G$41,\"<20\",'data entry'!$J$2:$J$41,\"positive\")","v":0},{"$f":"H46/$H$49","v":0},{"$f":"IF(F46=0,\"-\",H46/F46)","v":"-"}]
["8-14 days",{"$f":"COUNTIFS('turnaround calc'!$H$2:$H$41,\">7\",'turnaround calc'!$H$2:$H$41,\"<15\")","v":0},{"$f":"B47/$B$51","v":{"$error":"#DIV/0!"}},null,"between 20 and 24",{"$f":"COUNTIFS('data entry'!$G$2:$G$51,\">19\",'data entry'!$G$2:$G$51,\"<25\")","v":0},{"$f":"F47/$F$49","v":0},{"$f":"COUNTIFS('data entry'!$G$2:$G$41,\">19\",'data entry'!$G$2:$G$41,\"<25\",'data entry'!$J$2:$J$41,\"positive\")","v":0},{"$f":"H47/$H$49","v":0},{"$f":"IF(F47=0,\"-\",H47/F47)","v":"-"}]
["15 - 21 days",{"$f":"COUNTIFS('turnaround calc'!$H$2:$H$41,\">14\",'turnaround calc'!$H$2:$H$41,\"<22\")","v":0},{"$error":"#DIV/0!"},null,"blank",{"$f":"COUNTIF('data entry'!$G$2:$G$51,\"\")","v":50},{"$f":"F48/$F$49","v":1},{"$f":"COUNTIFS('data entry'!$G$2:$G$41,\"\",'data entry'!$J$2:$J$41,\"positive\")","v":40},{"$f":"H48/$H$49","v":1}]
["22 - 30 days",{"$f":"COUNTIFS('turnaround calc'!$H$2:$H$41,\">21\",'turnaround calc'!$H$2:$H$41,\"<31\")","v":0},{"$error":"#DIV/0!"},null,"total",{"$f":"SUM(F46:F48)","v":50},{"$f":"F49/$F$49","v":1},{"$f":"SUM(H46:H48)","v":40},{"$f":"H49/$H$49","v":1}]
[">30 days",{"$f":"COUNTIF('turnaround calc'!$H$2:$H$41,\">30\")","v":0},{"$error":"#DIV/0!"}]
["total",{"$f":"SUM(B46:B50)","v":0},{"$f":"SUM(C46:C50)","v":{"$error":"#DIV/0!"}}]
[]
[]
["Frequency distribution of number of days between test and result notification",null,null,null,"Frequency distribution of testing and treatment service types"]
["No of days between test date and result","frequency","proportion",null,"service types","testing service type (all tested)","treatment service type (positive and treatment accepted)"]
["0 -2 days",{"$f":"COUNTIF('turnaround calc'!$C$2:$C$51,\"<3\")","v":0},{"$f":"B56/$B$60","v":{"$error":"#DIV/0!"}}]
["3 - 5 days",{"$f":"COUNTIFS('turnaround calc'!$C$2:$C$51,\">2\",'turnaround calc'!$C$2:$C$51,\"<6\")","v":0},{"$f":"B57/$B$60","v":{"$error":"#DIV/0!"}},null,"GUM clinic",{"$f":"COUNTIF('data entry'!H2:H51,\"GUM clinic\")","v":0},{"$f":"COUNTIFS('data entry'!$J$2:$J$51,\"positive\",'data entry'!$K$2:$K$51,\"yes\",'data entry'!$N$2:$N$51,\"GUM clinic\")","v":0}]
["6 - 10 days",{"$f":"COUNTIFS('turnaround calc'!$C$2:$C$51,\">5\",'turnaround calc'!$C$2:$C$51,\"<11\")","v":0},{"$error":"#DIV/0!"},null,"SRH/CASH clinic",{"$f":"COUNTIF('data entry'!H2:H51,\"SRH/CASH clinic\")","v":0},{"$f":"COUNTIFS('data entry'!$J$2:$J$51,\"positive\",'data entry'!$K$2:$K$51,\"yes\",'data entry'!$N$2:$N$51,\"SRH/CASH clinic\")","v":0}]
[">10  days",{"$f":"COUNTIF('turnaround calc'!$C$2:$C$51,\">10\")","v":0},{"$error":"#DIV/0!"},null,"GP",{"$f":"COUNTIF('data entry'!H2:H51,\"GP\")","v":0},{"$f":"COUNTIFS('data entry'!$J$2:$J$51,\"positive\",'data entry'!$K$2:$K$51,\"yes\",'data entry'!$N$2:$N$51,\"GP\")","v":0}]
["total",{"$f":"SUM(B56:B59)","v":0},{"$f":"SUM(C56:C59)","v":{"$error":"#DIV/0!"}},null,"Community Pharmacy",{"$f":"COUNTIF('data entry'!H2:H51,\"Community Pharmacy\")","v":0},{"$f":"COUNTIFS('data entry'!$J$2:$J$51,\"positive\",'data entry'!$K$2:$K$51,\"yes\",'data entry'!$N$2:$N$51,\"Community Pharmacy\")","v":0}]
[null,null,null,null,"remote test/postal treatment",{"$f":"COUNTIF('data entry'!H2:H51,\"remote/online testing\")","v":0},{"$f":"COUNTIFS('data entry'!$J$2:$J$51,\"positive\",'data entry'!$K$2:$K$51,\"yes\",'data entry'!$N$2:$N$51,\"Remote/postal treatment\")","v":0}]
["Numbers and proportion of reasons for no treatment",null,null,null,"CSO",{"$f":"COUNTIF('data entry'!H2:H51,\"CSO\")","v":0},{"$f":"COUNTIFS('data entry'!$J$2:$J$51,\"positive\",'data entry'!$K$2:$K$51,\"yes\",'data entry'!$N$2:$N$51,\"CSO\")","v":0}]
["Reasons for no treatment","Number","proportion",null,"Outreach & education",{"$f":"COUNTIF('data entry'!H2:H51,\"outreach & education\")","v":0},{"$f":"COUNTIFS('data entry'!$J$2:$J$51,\"positive\",'data entry'!$K$2:$K$51,\"yes\",'data entry'!$N$2:$N$51,\"Outreach & education\")","v":0}]
["No response after 3 or more efforts at contacting patient",{"$f":"COUNTIF('data entry'!M2:M41,\"No response after 3 or more efforts at contacting patient\")","v":0},{"$f":"B64/$B$73","v":{"$error":"#DIV/0!"}},null,"Integrated sexual health service",{"$f":"COUNTIF('data entry'!H2:H51,\"Integrated Sexual Health Service\")","v":0},{"$f":"COUNTIFS('data entry'!$J$2:$J$51,\"positive\",'data entry'!$K$2:$K$51,\"yes\",'data entry'!$N$2:$N$51,\"Integrated Sexual Health Service\")","v":0}]
["No response after less than 3 attempts at contacting patient",{"$f":"COUNTIF('data entry'!M2:M41,\"No response after less than 3 attempts at contacting patient\")","v":0},{"$f":"B65/$B$73","v":{"$error":"#DIV/0!"}},null,"Other (incl prison/YOI, military, ToP, gynae, A&E/MIU, antenatal etc)",{"$f":"COUNTIF('data entry'!H2:H51,\"other, incl prison/YOI, military, ToP, gynae, A&E/MIU, antenatal etc\")","v":0},{"$f":"COUNTIFS('data entry'!$J$2:$J$51,\"positive\",'data entry'!$K$2:$K$51,\"yes\",'data entry'!$N$2:$N$51,\"other, incl prison/YOI, military, ToP, gynae, A&E/MIU, antenatal etc\")","v":0}]
["Treatment elsewhere, confirmed",{"$f":"COUNTIF('data entry'!M2:M41,\"Treatment elsewhere, confirmed\")","v":0},{"$error":"#DIV/0!"},null,"blank",{"$f":"COUNTBLANK('data entry'!H2:H51)","v":50},{"$f":"COUNTBLANK('data entry'!N2:N51)","v":50}]
["Treatment elsewhere, unconfirmed",{"$f":"COUNTIF('data entry'!M2:M41,\"Treatment elsewhere, unconfirmed\")","v":0},{"$error":"#DIV/0!"},null,"total",{"$f":"SUM(F57:F66)","v":50},{"$f":"SUM(G57:G66)","v":50}]
["Young person did not attend scheduled appointment for treatment",{"$f":"COUNTIF('data entry'!M2:M41,\"Young person did not attend scheduled appointment for treatment\")","v":0},{"$error":"#DIV/0!"}]
["Incorrect or no contact details on test form",{"$f":"COUNTIF('data entry'!M2:M41,\"Incorrect or no contact details on test form\")","v":0},{"$error":"#DIV/0!"}]
["Treatment refused",{"$f":"COUNTIF('data entry'!M2:M41,\"Treatment refused\")","v":0},{"$error":"#DIV/0!"}]
["Outcome not recorded",{"$f":"COUNTIF('data entry'!M2:M41,\"Outcome not recorded\")","v":0},{"$error":"#DIV/0!"}]
["Unknown/ other",{"$f":"COUNTIF('data entry'!M2:M41,\"Unknown/ other\")","v":0},{"$error":"#DIV/0!"}]
["Total",{"$f":"SUM(B64:B72)","v":0},{"$error":"#DIV/0!"}]
[]
["Back to Contents"]

{"sheet":"local PN results","index":11,"n_rows":55,"n_cols":10,"rows_kept":55,"cut":false,"hidden":false,"merged":[[1,7,1,9],[9,7,9,9],[11,7,11,8],[12,7,12,8],[13,7,13,8],[10,7,10,8],[1,0,1,4],[4,0,4,4],[5,0,5,4],[7,0,7,4],[10,0,10,4],[2,0,2,4],[2,7,2,8],[3,7,3,8],[4,7,4,8],[5,7,5,8],[15,0,15,4],[14,7,14,9],[12,0,12,4],[11,0,11,4]]}
["Local partner notification audit results",{"$f":"IF(ISBLANK('data entry'!B2),\"\",'data entry'!B2)","v":""},null,null,null,"Patient/HCW reported"]
["Number of contacts where standard has been achieved of contact's attendance 28 days (20 working days) after date of PN discussion with index patient(a)",null,null,null,null,{"$f":"SUMIF('PN calc'!$S$2:'PN calc'!$S$41,\">0\")","v":0},null,"Number of contacts per index that attend a sexual health service within 20 working days after date of PN discussion"]
["Number of contacts where attendance has not met the standard of attending a service within 28 days (20 working days) after date of PN discussion with index patient (b)",null,null,null,null,{"$f":"SUM('PN calc'!T2:T41)-SUM('PN calc'!S2:S41)","v":0},null,"Standard",null,0.6]
["Number of index cases not offered PN",null,null,null,null,{"$f":"COUNTIF('PN calc'!$B$2:$B$41,\"not offered\")","v":0},null,"2016 local PN audit result*"]
["Total number of index cases (c)",null,null,null,null,{"$f":"B22","v":0},null,"2016 national  audit PN performance",null,0.53]
["Number of contacts per index case that met the standard (contacts that meet the standard/index cases: =a/c)",null,null,null,null,{"$f":"F2/F5","v":{"$error":"#DIV/0!"}},null,"2017 local PN audit result",null,{"$f":"F6","v":{"$error":"#DIV/0!"}}]
["Standard",null,null,null,null,0.6]
["Difference from standard",null,null,null,null,{"$f":"F6-F7","v":{"$error":"#DIV/0!"}}]
["Total number of contacts (d)",null,null,null,null,{"$f":"SUM('data entry'!$R$2:$R$41)","v":0}]
["Total number of contactable contacts (e)",null,null,null,null,{"$f":"SUM('data entry'!$S$2:$S$41)","v":0},null,"Proportion of positive patients that were documented as offered a PN discussion"]
["Proportion of contacts that attended a service (those within and outside the standard of 28 days =(a+b)/d)",null,null,null,null,{"$f":"SUM('PN calc'!T2:'PN calc'!T41)/SUM('PN calc'!U2:'PN calc'!U41)","v":{"$error":"#DIV/0!"}},null,"Standard",null,0.97]
["Proportion of contactable contacts that attended a service (those within and outside the standard of 28 days = (a+b)/e)",null,null,null,null,{"$f":"(F2+F3)/F10","v":{"$error":"#DIV/0!"}},null,"2016 local PN audit result*"]
["Average number of days between date of first PN discussion and date of attendance of all contacts with an attendance date (both inside and outside the standard)",null,null,null,null,{"$f":"AVERAGE('PN calc'!I2:M41)","v":{"$error":"#DIV/0!"}}," ","2016 national  audit PN performance",null,0.92]
["Proportion of patients offered a PN discussion",null,null,null,"Standard",0.97,null,"2017 local PN audit result",null,{"$f":"F15","v":0}]
["Proportion of patients offered a PN discussion",null,null,null,"Audit result",{"$f":"D22","v":0},null,"*= if service took part in 2016, result can be entered manually and chart will automatically update"]
["Difference from standard",null,null,null,null,{"$f":"F15-F14","v":-0.97}]
[]
["Positive patients and offer of PN by gender","No of positive patients","No of patients offered PN","% of patients offered PN","No of patients not offered PN","% of patients not offered PN"]
["female",{"$f":"COUNTIFS('data entry'!$F$2:'data entry'!$F$41,\"Female\",'data entry'!J2:J41,\"positive\")","v":0},{"$f":"COUNTIFS('data entry'!$O$2:'data entry'!$O$41,\"Yes\",'data entry'!$F$2:'data entry'!$F$41,\"Female\")","v":0},{"$f":"IF(B19=0,0,C19/B19)","v":0},{"$f":"B19-C19","v":0},{"$f":"IF(B19=0,0,E19/B19)","v":0}]
["male",{"$f":"COUNTIFS('data entry'!$F$2:'data entry'!$F$41,\"Male\",'data entry'!J2:J41,\"positive\")","v":0},{"$f":"COUNTIFS('data entry'!$O$2:'data entry'!$O$41,\"Yes\",'data entry'!$F$2:'data entry'!$F$41,\"Male\")","v":0},{"$f":"IF(B20=0,0,C20/B20)","v":0},{"$f":"B20-C20","v":0},{"$f":"IF(B20=0,0,E20/B20)","v":0}]
["unknown",{"$f":"COUNTIFS('data entry'!$F$2:'data entry'!$F$41,\"Unknown\",'data entry'!J2:J41,\"positive\")","v":0},{"$f":"COUNTIFS('data entry'!$O$2:'data entry'!$O$41,\"Yes\",'data entry'!$F$2:'data entry'!$F$41,\"Unknown\")","v":0},0,0,0]
["total",{"$f":"SUM(B19:B21)","v":0},{"$f":"SUM(C19:C21)","v":0},0,0,0]
[]
["Positive patients and offer of PN by age group","No of positive patients","No of patients offered PN","% of patients offered PN","No of patients not offered PN","% of patients not offered PN"]
["between 15 and 19",{"$f":"COUNTIFS('data entry'!$G$2:'data entry'!$G$41,\">14\",'data entry'!$G$2:'data entry'!$G$41,\"<20\",'data entry'!$J$2:'data entry'!$J$41, \"positive\")","v":0},{"$f":"COUNTIFS('data entry'!$O$2:'data entry'!$O$41,\"Yes\",'data entry'!$G$2:'data entry'!$G$41,\">14\",'data entry'!$G$2:'data entry'!$G$41,\"<20\")","v":0},{"$f":"IF(B25=0,0,C25/B25)","v":0},{"$f":"B25-C25","v":0},{"$f":"IF(B25=0,0,E25/B25)","v":0}]
["between 20 and 24",{"$f":"COUNTIFS('data entry'!$G$2:'data entry'!$G$41,\">19\",'data entry'!$G$2:'data entry'!$G$41,\"<25\",'data entry'!$J$2:'data entry'!$J$41, \"positive\")","v":0},{"$f":"COUNTIFS('data entry'!$O$2:'data entry'!$O$41,\"Yes\",'data entry'!$G$2:'data entry'!$G$41,\">19\",'data entry'!$G$2:'data entry'!$G$41,\"<25\")","v":0},{"$f":"IF(B26=0,0,C26/B26)","v":0},{"$f":"B26-C26","v":0},{"$f":"IF(B26=0,0,E26/B26)","v":0}]
["total",{"$f":"SUM(B25:B26)","v":0},{"$f":"SUM(C25:C26)","v":0},{"$f":"IF(B27=0,0,C27/B27)","v":0},{"$f":"B27-C27","v":0},0]
[]
["Reasons for PN not being offered","Number","Proportion (of those not offered PN)"]
["no documented evidence of PN",{"$f":"COUNTIF('data entry'!$Q$2:$Q$41,\"no documented evidence of PN\")","v":0},{"$f":"B30/$B$36","v":{"$error":"#DIV/0!"}}]
["patient routinely seen for SH care elsewhere",{"$f":"COUNTIF('data entry'!$Q$2:$Q$41,\"patient routinely seen for SH care elsewhere\")","v":0},{"$f":"B31/$B$36","v":{"$error":"#DIV/0!"}}]
["patient transferred care",{"$f":"COUNTIF('data entry'!$Q$2:$Q$41,\"patient transferred care\")","v":0},{"$error":"#DIV/0!"}]
["documented that PN performed elsewhere",{"$f":"COUNTIF('data entry'!$Q$2:$Q$41,\"documented that PN performed elsewhere\")","v":0},{"$error":"#DIV/0!"}]
["lost to follow up before PN initiated",{"$f":"COUNTIF('data entry'!$Q$2:$Q$41,\"lost to follow up before PN initiated\")","v":0},{"$error":"#DIV/0!"}]
["other",{"$f":"COUNTIF('data entry'!$Q$2:$Q$41,\"other\")","v":0},{"$error":"#DIV/0!"}]
["total",{"$f":"SUM(B30:B35)","v":0},{"$f":"SUM(C30:C35)","v":{"$error":"#DIV/0!"}}]
[]
["PN outcomes","Number","Proportion"]
["contact already known to have chlamydia infection (a)",{"$f":"SUM('PN calc'!W2:W41)","v":0},{"$f":"B39/$B$49","v":{"$error":"#DIV/0!"}}]
["contact had a negative test in your service (b)",{"$f":"SUM('PN calc'!X2:X41)","v":0},{"$error":"#DIV/0!"}]
["contact had a negative test in another service ( c )",{"$f":"SUM('PN calc'!Y2:Y41)","v":0},{"$error":"#DIV/0!"}]
["contact had a positive test in your service (d)",{"$f":"SUM('PN calc'!Z2:Z41)","v":0},{"$error":"#DIV/0!"}]
["contact had a positive test in another service ( e )",{"$f":"SUM('PN calc'!AA2:AA41)","v":0},{"$error":"#DIV/0!"}]
["contact had a chlamydia test, but result not known (f)",{"$f":"SUM('PN calc'!AB2:AB41)","v":0},{"$error":"#DIV/0!"}]
["record made that contact informed of risk of chlamydia infection, but not known to have had a chlamydia test",{"$f":"SUM('PN calc'!AC2:AC41)","v":0},{"$error":"#DIV/0!"}]
["contact not known to have been informed of risk of chlamydia infection",{"$f":"SUM('PN calc'!AD2:AD41)","v":0},{"$error":"#DIV/0!"}]
["contact treated but not tested",{"$f":"SUM('PN calc'!AE2:AE41)","v":0},{"$f":"B47/$B$49","v":{"$error":"#DIV/0!"}}]
["other",{"$f":"SUM('PN calc'!AF2:AF41)","v":0},{"$error":"#DIV/0!"}]
["Total",{"$f":"SUM(B39:B48)","v":0},{"$error":"#DIV/0!"}]
[]
["total number of new positive contacts (=d+e)",{"$f":"B42+B43","v":0}]
["total number of contacts having had a test (=b+c+d+e+f)",{"$f":"SUM(B40:B44)","v":0}]
["positivity in contacts following PN (incl those with unknown result)",{"$f":"B51/B52","v":{"$error":"#DIV/0!"}}]
[]
["Back to Contents"]

{"sheet":"local re-testing results","index":12,"n_rows":69,"n_cols":8,"rows_kept":69,"cut":false,"hidden":false,"merged":[[10,0,10,3],[22,0,22,3],[34,0,34,3],[0,5,0,7],[1,5,1,6],[2,5,2,6],[3,5,3,6],[4,5,4,10]]}
["Local re-testing audit results",null,null,null,null,"Re-testing audit results"]
[{"$f":"IF(ISBLANK('data entry'!B2),\"\",'data entry'!B2)","v":""},"All","Men","Women",null,"2015 local re-testing audit result*"]
["Number of positive patients in selected period (a)",{"$f":"COUNTIF('data entry'!J2:J41,\"positive\")","v":40},{"$f":"COUNTIFS('data entry'!J2:J41,\"positive\",'data entry'!F2:F41,\"Male\")","v":0},{"$f":"COUNTIFS('data entry'!F2:F41,\"Female\",'data entry'!J2:J41,\"positive\")","v":0},null,"2015 national audit re-testing performance",null,0.08]
["Number of positive patients that were offered a re-test ( b )",{"$f":"COUNTIFS('data entry'!J2:J41,\"positive\",'data entry'!AD2:AD41,\"yes\")","v":0},{"$f":"COUNTIFS('data entry'!J2:J41,\"positive\",'data entry'!F2:F41,\"Male\",'data entry'!AD2:AD41,\"yes\")","v":0},{"$f":"COUNTIFS('data entry'!F2:F41,\"Female\",'data entry'!J2:J41,\"positive\",'data entry'!AD2:AD41,\"yes\")","v":0},null,"2017 local re-testing audit result",null,{"$f":"B8","v":0}]
["Total number of positive patients that re-tested ( c )",{"$f":"COUNT('re-testing calc'!AT3:AT42)","v":0},{"$f":"COUNT('re-testing calc'!AU3:AU42)","v":0},{"$f":"COUNT('re-testing calc'!AV3:AV42)","v":0}," ","*= if service took part in 2015, result can be entered manually and chart will automatically update"]
["Proportion of positive patients that were offered a re-test (b/a)",{"$f":"COUNTIF('re-testing calc'!G3:G42,\"1\")/COUNTIF('re-testing calc'!D3:D42,\"1\")","v":{"$error":"#DIV/0!"}},{"$f":"COUNTIF('re-testing calc'!H3:H42,\"1\")/COUNTIF('re-testing calc'!E3:E42,\"1\")","v":{"$error":"#DIV/0!"}},{"$f":"COUNTIF('re-testing calc'!I3:I42,\"1\")/COUNTIF('re-testing calc'!F3:F42,\"1\")","v":{"$error":"#DIV/0!"}}]
["Proportion of positive patients that re-tested at this service out of all positive patients (c/a)",{"$f":"B5/B3","v":0},{"$f":"C5/C3","v":{"$error":"#DIV/0!"}},{"$f":"D5/D3","v":{"$error":"#DIV/0!"}}]
["Proportion of positive patients that re-tested at this service within 10 to 14 weeks out of all positive patients",{"$f":"B43","v":0},{"$f":"C43","v":{"$error":"#DIV/0!"}},{"$f":"D43","v":{"$error":"#DIV/0!"}}]
[]
["Detailed data: number and proportion of patients re-tested by number of weeks","All","Men","Women"]
["Patients that re-tested of number of positive patients in selected period, based on treatment date, by number of weeks"]
["Number re-tested in less than 6 weeks",{"$f":"SUM('re-testing calc'!M3:M42)","v":0},{"$f":"SUM('re-testing calc'!N3:N42)","v":0},{"$f":"SUM('re-testing calc'!O3:O42)","v":0}]
["Number re-tested between 6 to 10 weeks",{"$f":"SUM('re-testing calc'!P3:P42)","v":0},{"$f":"SUM('re-testing calc'!Q3:Q42)","v":0},{"$f":"SUM('re-testing calc'!R3:R42)","v":0}]
["Number re-tested within 10 to 14 weeks",{"$f":"SUM('re-testing calc'!S3:S42)","v":0},{"$f":"SUM('re-testing calc'!T3:T42)","v":0},{"$f":"SUM('re-testing calc'!U3:U42)","v":0}]
["Number re-tested within 10 to 26 weeks",{"$f":"SUM('re-testing calc'!V3:V42)","v":0},{"$f":"SUM('re-testing calc'!W3:W42)","v":0},{"$f":"SUM('re-testing calc'!X3:X42)","v":0}]
["Number re-tested after 26 weeks",{"$f":"SUM('re-testing calc'!Y3:Y42)","v":0},{"$f":"SUM('re-testing calc'!Z3:Z42)","v":0},{"$f":"SUM('re-testing calc'!AA3:AA42)","v":0}]
["Proportion re-tested in less than 6 weeks",{"$f":"B12/B3","v":0},{"$f":"C12/C3","v":{"$error":"#DIV/0!"}},{"$f":"D12/D3","v":{"$error":"#DIV/0!"}}]
["Proportion re-tested between 6 to 10 weeks",{"$f":"B13/B3","v":0},{"$f":"C13/C3","v":{"$error":"#DIV/0!"}},{"$f":"D13/D3","v":{"$error":"#DIV/0!"}}]
["Proportion re-tested within 10 to 14 weeks, based on treatment date",{"$f":"B14/B3","v":0},{"$f":"C14/C3","v":{"$error":"#DIV/0!"}},{"$f":"D14/D3","v":{"$error":"#DIV/0!"}}]
["Proportion re-tested between 10 to 26 weeks",{"$f":"B15/B3","v":0},{"$f":"C15/C3","v":{"$error":"#DIV/0!"}},{"$f":"D15/D3","v":{"$error":"#DIV/0!"}}]
["Proportion re-tested after 26 weeks",{"$f":"B16/B3","v":0},{"$f":"C16/C3","v":{"$error":"#DIV/0!"}},{"$f":"D16/D3","v":{"$error":"#DIV/0!"}}]
[]
["Patients that re-tested of number of positive patients in selected period, based on test date, by number of weeks"]
["Number re-tested in less than 6 weeks",{"$f":"SUM('re-testing calc'!AE3:AE42)","v":0},{"$f":"SUM('re-testing calc'!AF3:AF42)","v":0},{"$f":"SUM('re-testing calc'!AG3:AG42)","v":0}]
["Number re-tested between 6 to 10 weeks",{"$f":"SUM('re-testing calc'!AH3:AH42)","v":0},{"$f":"SUM('re-testing calc'!AI3:AI42)","v":0},{"$f":"SUM('re-testing calc'!AJ3:AJ42)","v":0}]
["Number re-tested within 10 to 14 weeks",{"$f":"SUM('re-testing calc'!AK3:AK42)","v":0},{"$f":"SUM('re-testing calc'!AL3:AL42)","v":0},{"$f":"SUM('re-testing calc'!AM3:AM42)","v":0}]
["Number re-tested within 10 to 26 weeks",{"$f":"SUM('re-testing calc'!AN3:AN42)","v":0},{"$f":"SUM('re-testing calc'!AO3:AO42)","v":0},{"$f":"SUM('re-testing calc'!AP3:AP42)","v":0}]
["Number re-tested after 26 weeks",{"$f":"SUM('re-testing calc'!AQ3:AQ42)","v":0},{"$f":"SUM('re-testing calc'!AR3:AR42)","v":0},{"$f":"SUM('re-testing calc'!AS3:AS42)","v":0}]
["Proportion re-tested in less than 6 weeks",{"$f":"B24/B3","v":0},{"$f":"C24/C3","v":{"$error":"#DIV/0!"}},{"$f":"D24/D3","v":{"$error":"#DIV/0!"}}]
["Proportion re-tested between 6 to 10 weeks",{"$f":"B25/B3","v":0},{"$f":"C25/C3","v":{"$error":"#DIV/0!"}},{"$f":"D25/D3","v":{"$error":"#DIV/0!"}}]
["Proportion re-tested within 10 to 14 weeks, based on test date",{"$f":"B26/B3","v":0},{"$f":"C26/C3","v":{"$error":"#DIV/0!"}},{"$f":"D26/D3","v":{"$error":"#DIV/0!"}}]
["Proportion re-tested between 10 to 26 weeks",{"$f":"B27/B3","v":0},{"$f":"C27/C3","v":{"$error":"#DIV/0!"}},{"$f":"D27/D3","v":{"$error":"#DIV/0!"}}]
["Proportion re-tested after 26 weeks",{"$f":"B28/B3","v":0},{"$f":"C28/C3","v":{"$error":"#DIV/0!"}},{"$f":"D28/D3","v":{"$error":"#DIV/0!"}}]
[]
["Patients that re-tested of number of positive patients in selected period, total, by number of weeks"]
["Number re-tested in less than 6 weeks",{"$f":"SUM('re-testing calc'!AW3:AW42)","v":0},{"$f":"SUM('re-testing calc'!AX3:AX42)","v":0},{"$f":"SUM('re-testing calc'!AY3:AY42)","v":0}]
["Number re-tested between 6 to 10 weeks",{"$f":"SUM('re-testing calc'!AZ3:AZ42)","v":0},{"$f":"SUM('re-testing calc'!BA3:BA42)","v":0},{"$f":"SUM('re-testing calc'!BB3:BB42)","v":0}]
["Number re-tested within 10 to 14 weeks (d)",{"$f":"SUM('re-testing calc'!BC3:BC42)","v":0},{"$f":"SUM('re-testing calc'!BD3:BD42)","v":0},{"$f":"SUM('re-testing calc'!BE3:BE42)","v":0}]
["Number re-tested within 10 to 26 weeks",{"$f":"SUM('re-testing calc'!BF3:BF42)","v":0},{"$f":"SUM('re-testing calc'!BG3:BG42)","v":0},{"$f":"SUM('re-testing calc'!BH3:BH42)","v":0}]
["Number re-tested after 26 weeks",{"$f":"SUM('re-testing calc'!BI3:BI42)","v":0},{"$f":"SUM('re-testing calc'!BJ3:BJ42)","v":0},{"$f":"SUM('re-testing calc'!BK3:BK42)","v":0}]
["Proportion re-tested in less than 6 weeks",{"$f":"B36/$B$3","v":0},{"$f":"C36/$C$3","v":{"$error":"#DIV/0!"}},{"$f":"D36/$D$3","v":{"$error":"#DIV/0!"}}]
["Proportion re-tested between 6 to 10 weeks",{"$f":"B37/$B$3","v":0},{"$f":"C37/$C$3","v":{"$error":"#DIV/0!"}},{"$f":"D37/$D$3","v":{"$error":"#DIV/0!"}}]
["Proportion of all positive patients that re-tested within 10 to 14 weeks (based on either treatment or test date)",{"$f":"B38/$B$3","v":0},{"$f":"C38/$C$3","v":{"$error":"#DIV/0!"}},{"$f":"D38/$D$3","v":{"$error":"#DIV/0!"}}]
["Proportion re-tested within 10 to 26 weeks",{"$f":"B39/$B$3","v":0},{"$f":"C39/$C$3","v":{"$error":"#DIV/0!"}},{"$f":"D39/$D$3","v":{"$error":"#DIV/0!"}}]
["Proportion re-tested after 26 weeks",{"$f":"B40/$B$3","v":0},{"$f":"C40/$C$3","v":{"$error":"#DIV/0!"}},{"$f":"D40/$D$3","v":{"$error":"#DIV/0!"}}]
[]
["Number and proportion positive at re-test","All","Men","Women"]
["Number of positives identified at re-test ( c ) (at any time)",{"$f":"SUM('re-testing calc'!BM3:BM41)","v":0},{"$f":"SUM('re-testing calc'!BN3:BN41)","v":0},{"$f":"SUM('re-testing calc'!BO3:BO41)","v":0}]
["Positivity of re-tests (at any time) (c/b)",{"$f":"B48/B5","v":{"$error":"#DIV/0!"}},{"$f":"C48/C5","v":{"$error":"#DIV/0!"}},{"$f":"D48/D5","v":{"$error":"#DIV/0!"}}]
["Number of positives identified at re-test ( c ) (between 10-14 weeks)",{"$f":"SUM('re-testing calc'!BP3:BP41)","v":0},{"$f":"SUM('re-testing calc'!BQ3:BQ41)","v":0},{"$f":"SUM('re-testing calc'!BR3:BR41)","v":0}]
["Positivity of re-tests (between 10-14 weeks) (c/d)",{"$f":"B50/B38","v":{"$error":"#DIV/0!"}},{"$f":"C50/C5","v":{"$error":"#DIV/0!"}},{"$f":"D50/D5","v":{"$error":"#DIV/0!"}}]
[]
["Recall method for all positive index cases","numbers by recall method","Proportion of all recall methods","number that came back for retesting by recall method","% retest rate by recall method","number that attended for re-test within 10- 14 weeks by recall method"]
["Conversation about re-testing when given your test result and no further reminder",{"$f":"COUNTIF('data entry'!AE2:AE41,\"a. Conversation about re-testing when given your test result and no further reminder \")","v":0},{"$f":"$B54/COUNTIF('data entry'!$J$2:$J$41,\"positive\")","v":0},{"$f":"COUNTIFS('data entry'!$AF$2:$AF$41,\"<>\",'data entry'!$AE$2:$AE$41,\"a. Conversation about re-testing when given your test result and no further reminder \")","v":0},{"$f":"IF(B54=0,\"-\",D54/B54)","v":"-"},{"$f":"COUNTIFS('data entry'!$AF$2:$AF$41,\">0\",'data entry'!$AE$2:$AE$41,\"a. Conversation about re-testing when given your test result and no further reminder \",'re-testing calc'!BC3:BC42,\"=1\")","v":0}]
["Reminder card when given your test result and no further reminder",{"$f":"COUNTIF('data entry'!AE2:AE41,\"b. Reminder card when given your test result and no further reminder\")","v":0},{"$f":"$B55/COUNTIF('data entry'!$J$2:$J$41,\"positive\")","v":0},{"$f":"COUNTIFS('data entry'!$AF$2:$AF$41,\"<>\",'data entry'!$AE$2:$AE$41,\"b. Reminder card when given your test result and no further reminder\")","v":0},{"$f":"IF(B55=0,\"-\",D55/B55)","v":"-"},{"$f":"COUNTIFS('data entry'!$AF$2:$AF$41,\">0\",'data entry'!$AE$2:$AE$41,\"b. Reminder card when given your test result and no further reminder\",'re-testing calc'!$BC$3:$BC$42,\"=1\")","v":0}]
["Appointment to be re-tested made when given your test result",{"$f":"COUNTIF('data entry'!AE2:AE41,\"c. Appointment to be re-tested made when given your test result\")","v":0},{"$f":"$B56/COUNTIF('data entry'!$J$2:$J$41,\"positive\")","v":0},{"$f":"COUNTIFS('data entry'!$AF$2:$AF$41,\"<>\",'data entry'!$AE$2:$AE$41,\"c. Appointment to be re-tested made when given your test result\")","v":0},{"$f":"IF(B56=0,\"-\",D56/B56)","v":"-"},{"$f":"COUNTIFS('data entry'!$AF$2:$AF$41,\">0\",'data entry'!$AE$2:$AE$41,\"c. Appointment to be re-tested made when given your test result\",'re-testing calc'!$BC$3:$BC$42,\"=1\")","v":0}]
["Given testing kit when given your test result and no further reminder",{"$f":"COUNTIF('data entry'!AE2:AE41,\"d. Given testing kit when given your test result and no further reminder\")","v":0},{"$f":"$B57/COUNTIF('data entry'!$J$2:$J$41,\"positive\")","v":0},{"$f":"COUNTIFS('data entry'!$AF$2:$AF$41,\"<>\",'data entry'!$AE$2:$AE$41,\"d. Given testing kit when given your test result and no further reminder\")","v":0},"-",{"$f":"COUNTIFS('data entry'!$AF$2:$AF$41,\">0\",'data entry'!$AE$2:$AE$41,\"d. Given testing kit when given your test result and no further reminder\",'re-testing calc'!BC3:BC42,\"=1\")","v":0}]
["Given testing kit when given your test result and later reminded when you should test again",{"$f":"COUNTIF('data entry'!AE2:AE41,\"e. Given testing kit when given your test result and later reminded when you should test again\")","v":0},{"$f":"$B58/COUNTIF('data entry'!$J$2:$J$41,\"positive\")","v":0},{"$f":"COUNTIFS('data entry'!$AF$2:$AF$41,\"<>\",'data entry'!$AE$2:$AE$41,\"e. Given testing kit when given your test result and later reminded when you should test again\")","v":0},"-",{"$f":"COUNTIFS('data entry'!$AF$2:$AF$41,\">0\",'data entry'!$AE$2:$AE$41,\"e. Given testing kit when given your test result and later reminded when you should test again\",'re-testing calc'!$BC$3:$BC$42,\"=1\")","v":0}]
["Sent text message when you should test again",{"$f":"COUNTIF('data entry'!AE2:AE41,\"f. Sent text message when you should test again\")","v":0},{"$f":"$B59/COUNTIF('data entry'!$J$2:$J$41,\"positive\")","v":0},{"$f":"COUNTIFS('data entry'!$AF$2:$AF$41,\"<>\",'data entry'!$AE$2:$AE$41,\"f. Sent text message when you should test again\")","v":0},"-",{"$f":"COUNTIFS('data entry'!$AF$2:$AF$41,\">0\",'data entry'!$AE$2:$AE$41,\"f. Sent text message when you should test again\",'re-testing calc'!$BC$3:$BC$42,\"=1\")","v":0}]
["Invited by phone call when you should test again",{"$f":"COUNTIF('data entry'!AE2:AE41,\"g. Invited by phone call when you should test again\")","v":0},{"$f":"$B60/COUNTIF('data entry'!$J$2:$J$41,\"positive\")","v":0},{"$f":"COUNTIFS('data entry'!$AF$2:$AF$41,\"<>\",'data entry'!$AE$2:$AE$41,\"g. Invited by phone call when you should test again\")","v":0},"-",{"$f":"COUNTIFS('data entry'!$AF$2:$AF$41,\">0\",'data entry'!$AE$2:$AE$41,\"g. Invited by phone call when you should test again\",'re-testing calc'!$BC$3:$BC$42,\"=1\")","v":0}]
["Invited by post when you should test again",{"$f":"COUNTIF('data entry'!AE2:AE41,\"h. Invited by post when you should test again\")","v":0},{"$f":"$B61/COUNTIF('data entry'!$J$2:$J$41,\"positive\")","v":0},{"$f":"COUNTIFS('data entry'!$AF$2:$AF$41,\"<>\",'data entry'!$AE$2:$AE$41,\"h. Invited by post when you should test again\")","v":0},"-",{"$f":"COUNTIFS('data entry'!$AF$2:$AF$41,\">0\",'data entry'!$AE$2:$AE$41,\"h. Invited by post when you should test again\",'re-testing calc'!$BC$3:$BC$42,\"=1\")","v":0}]
["Sent email when you should test again",{"$f":"COUNTIF('data entry'!AE2:AE41,\"i. Sent email when you should test again\")","v":0},{"$f":"$B62/COUNTIF('data entry'!$J$2:$J$41,\"positive\")","v":0},{"$f":"COUNTIFS('data entry'!$AF$2:$AF$41,\"<>\",'data entry'!$AE$2:$AE$41,\"i. Sent email when you should test again\")","v":0},"-",{"$f":"COUNTIFS('data entry'!$AF$2:$AF$41,\">0\",'data entry'!$AE$2:$AE$41,\"i. Sent email when you should test again\",'re-testing calc'!$BC$3:$BC$42,\"=1\")","v":0}]
["Testing kit posted to an address of your choice when you should test again",{"$f":"COUNTIF('data entry'!AE2:AE41,\"j. Testing kit posted to an address of your choice when you should test again\")","v":0},{"$f":"$B63/COUNTIF('data entry'!$J$2:$J$41,\"positive\")","v":0},{"$f":"COUNTIFS('data entry'!$AF$2:$AF$41,\"<>\",'data entry'!$AE$2:$AE$41,\"j. Testing kit posted to an address of your choice when you should test again\")","v":0},"-",{"$f":"COUNTIFS('data entry'!$AF$2:$AF$41,\">0\",'data entry'!$AE$2:$AE$41,\"j. Testing kit posted to an address of your choice when you should test again\",'re-testing calc'!$BC$3:$BC$42,\"=1\")","v":0}]
["Retesting advised at follow up call - text message will be sent at 3 months",{"$f":"COUNTIF('data entry'!AE2:AE41,\"k. Retesting advised at follow up call - text message will be sent at 3 months\")","v":0},{"$f":"$B64/COUNTIF('data entry'!$J$2:$J$41,\"positive\")","v":0},{"$f":"COUNTIFS('data entry'!AF2:AF41,\"<>\",'data entry'!$AE$2:$AE$41,\"k. Retesting advised at follow up call - text message will be sent at 3 months\")","v":0},"-",{"$f":"COUNTIFS('data entry'!$AF$2:$AF$41,\">0\",'data entry'!$AE$2:$AE$41,\"k. Retesting advised at follow up call - text message will be sent at 3 months\",'re-testing calc'!$BC$3:$BC$42,\"=1\")","v":0}]
["recall method not recorded",{"$f":"COUNTIFS('data entry'!AE2:AE41,\"\",'data entry'!J2:J41,\"positive\")","v":40},{"$f":"$B65/COUNTIF('data entry'!$J$2:$J$41,\"positive\")","v":1},{"$f":"COUNTIFS('data entry'!AF2:AF41,\"<>\",'data entry'!$AE$2:$AE$41,\"\")","v":0},0,{"$f":"COUNTIFS('data entry'!$AF$2:$AF$41,\">0\",'data entry'!$AE$2:$AE$41,\"\",'re-testing calc'!$BC$3:$BC$42,\"=1\")","v":0}]
["Total",{"$f":"SUM(B54:B65)","v":40},{"$f":"SUM(C54:C65)","v":1},{"$f":"SUM(D54:D65)","v":0},0,{"$f":"SUM(F54:F65)","v":0}]
[]
[]
["Back to Contents"]

{"sheet":"lists","index":13,"n_rows":12,"n_cols":15,"rows_kept":12,"cut":false,"hidden":true,"merged":[]}
["Testing service type","Treatment service type","Gender","test result","Treatment accepted?","reason for no treatment","PN offer","No PN reasons","number of partners","number of contactable partners","PN outcome","offered a re-test","recall method","re-testing service type","re-test result"]
["GUM clinic","GUM clinic","Male","positive","Yes","No response after 3 or more efforts at contacting patient","Yes","no documented evidence of PN",1,0,"contact already known to have chlamydia infection","yes","a. Conversation about re-testing when given your test result and no further reminder ","GUM clinic","positive"]
["SRH/CASH clinic","SRH/CASH clinic","Female","negative","No","No response after less than 3 attempts at contacting patient","No","patient routinely seen for SH care elsewhere",2,1,"contact had a negative test in your service","no","b. Reminder card when given your test result and no further reminder","SRH/CASH clinic","negative"]
["GP","GP","Unknown",null,"Unknown","Treatment elsewhere, confirmed","Unknown","patient transferred care",3,2,"contact had a negative test in another service","unknown","c. Appointment to be re-tested made when given your test result","GP","equivocal/inhibitory"]
["Community Pharmacy","Community Pharmacy",null,null,null,"Treatment elsewhere, unconfirmed",null,"documented that PN performed elsewhere",4,3,"contact had a positive test in your service",null,"d. Given testing kit when given your test result and no further reminder","Community Pharmacy","insufficient"]
["Remote/online testing","Remote/postal treatment",null,null,null,"Young person did not attend scheduled appointment for treatment",null,"lost to follow up before PN initiated",5,4,"contact had a positive test in another service",null,"e. Given testing kit when given your test result and later reminded when you should test again","Remote testing","unknown"]
["CSO","CSO",null,null,null,"Incorrect or no contact details on test form",null,"other","unknown",5,"contact had a chlamydia test, but result not known",null,"f. Sent text message when you should test again","CSO"]
["Outreach & education","Outreach & education",null,null,null,"Treatment refused",null,null,null,"unknown","record made that contact informed of risk of chlamydia infection, but not known to have had a chlamydia test",null,"g. Invited by phone call when you should test again","Outreach & education"]
["Integrated Sexual Health Service","Integrated Sexual Health Service",null,null,null,"Outcome not recorded",null,null,null,null,"contact not known to have been informed of risk of chlamydia infection",null,"h. Invited by post when you should test again","Integrated Sexual Health Service"]
["Other, incl prison/YOI, military, ToP, gynae, A&E/MIU, antenatal etc","Other, incl prison/YOI, military, ToP, gynae, A&E/MIU, antenatal etc",null,null,null,"Unknown/ other",null,null,null,null,"contact treated but not tested",null,"i. Sent email when you should test again","Other, incl prison/YOI, military, ToP, gynae, A&E/MIU, antenatal etc"]
[null,null,null,null,null,null,null,null,null,null,"other",null,"j. Testing kit posted to an address of your choice when you should test again","unknown"]
[null,null,null,null,null,null,null,null,null,null,null,null,"k. Retesting advised at follow up call - text message will be sent at 3 months"]

{"sheet":"days & weeks","index":14,"n_rows":56,"n_cols":5,"rows_kept":56,"cut":false,"hidden":true,"merged":[]}
["no of weeks","no of days"]
[0,0,6]
[1,7,13]
[2,14,20]
[3,21,27]
[4,28,34]
[5,35,41]
[6,42,48]
[7,49,55]
[8,56,62]
[9,63,69]
[10,70,76,"10 - 26 weeks"]
[11,77,83]
[12,84,90]
[13,91,97]
[14,98,104]
[15,105,111]
[16,112,118]
[17,119,125]
[18,126,132]
[19,133,139]
[20,140,146]
[21,147,153]
[22,154,160]
[23,161,167]
[24,168,174]
[25,175,181]
[26,182,188]
[27,189,195,">26","=>189"]
[28,196,202]
[29,203,209]
[30,210,216]
[31,217,223]
[32,224,230]
[33,231,237]
[34,238,244]
[35,245,251]
[36,252,258]
[37,259,265]
[38,266,272]
[39,273,279]
[40,280,286]
[41,287,293]
[42,294,300]
[43,301,307]
[44,308,314]
[45,315,321]
[46,322,328]
[47,329,335]
[48,336,342]
[49,343,349]
[50,350,356]
[51,357,363]
[52,364,370]
[53,371,377]
[54,378,384]